Workbook

Sheet HOJA DE PEDIDO
H5: CLIENTES DIRECTOS
D6: CLIENTE
C7: RIFJ-40847190-6 | D7: VENDEDOR
D8: CONDICION
D9: OBSERVACION | H9: LISTA DE PRECIO $
B12: LINEA PROTECCION BEBE
B13: CODIGO | C13: MODELO | D13: CODIGO UPC | E13: DESCRIPCION | F13: UNID PAQ | G13: UNID BULTO | H13: PRECIO UNIDAD | I13: PRECIO BULTO | J13: DESCUENTO | K13: BULTOS | L13: UND | M13: TOTAL | N13: INV. BULTOS
B14: 901060270142 | C14: PB-HUG-RN | D14: 7702425804654 | E14: HUGGIES PANAL BEBE ACTIVE TALLA RN (RECIEN NACIDO) 32 UND | F14: 32 | G14: 06 | H14: 5.14 | I14: =+H14*G14 -> 30.84 | L14: =+K14*G14 -> 0 | M14: =L14*H14*(1-J14) -> 0 | N14: =IFERROR(VLOOKUP(B14,inventario!$B$2:$G$164,6,0),0) -> 1684
B15: 901060270141 | C15: PB-HUG-P36 | D15: 7702425806597 | E15: HUGGIES PANAL BEBE ACTIVE TALLA P 36 UND | F15: 36 | G15: 06 | H15: 5.48 | I15: =+G15*H15 -> 32.88 | J15: 0.07 | L15: =+K15*G15 -> 0 | M15: =L15*H15*(1-J15) -> 0 | N15: =IFERROR(VLOOKUP(B15,inventario!$B$2:$G$164,6,0),0) -> 2291
B16: 901060270139 | C16: PB-HUG-M | D16: 7702425801462 | E16: HUGGIES PANAL BEBE ACTIVE TALLA M 30 UND | F16: 30 | G16: 08 | H16: 5.51 | I16: 44.08 | J16: 0.07 | L16: 0 | M16: 0 | N16: =IFERROR(VLOOKUP(B16,inventario!$B$2:$G$164,6,0),0) -> 1907
B17: 901060270137 | C17: PB-HUG-G | D17: 7702425801530 | E17: HUGGIES PANAL BEBE ACTIVE TALLA G 30 UND | F17: 30 | G17: 08 | H17: 6.42 | I17: 51.36 | J17: 0.12 | L17: 0 | M17: =L17*H17*(1-J17) -> 0 | N17: =IFERROR(VLOOKUP(B17,inventario!$B$2:$G$164,6,0),0) -> 127
B18: 901060270143 | C18: PB-HUG-XG | D18: 7702425801615 | E18: HUGGIES PANAL BEBE ACTIVE TALLA XG 30 UND | F18: 30 | G18: 08 | H18: 7.72 | I18: 61.76 | J18: 0.12 | L18: 0 | M18: 0 | N18: =IFERROR(VLOOKUP(B18,inventario!$B$2:$G$164,6,0),0) -> 1175
B19: 901060270145 | C19: PB-HUG-XXG | D19: 7702425801677 | E19: HUGGIES PANAL BEBE ACTIVE TALLA XXG 30 UND | F19: 30 | G19: 08 | H19: 8.34 | I19: 66.72 | J19: 0.12 | L19: 0 | M19: 0 | N19: =IFERROR(VLOOKUP(B19,inventario!$B$2:$G$164,6,0),0) -> 2518
B20: 901060270149 | C20: PB-HUGNAT-P | D20: 7702425802155 | E20: HUGGIES PANAL BEBE NATURAL CARE (ROJOS) TALLA P 30 UND | F20: 30 | G20: 08 | H20: 5.82 | I20: 46.56 | J20: 0.05 | L20: 0 | M20: 0 | N20: =IFERROR(VLOOKUP(B20,inventario!$B$2:$G$164,6,0),0) -> 910
B21: 901060270148 | C21: PB-HUGNAT-M | D21: 7702425808690 | E21: HUGGIES PANAL BEBE NATURAL CARE (ROJOS) TALLA M 30 UND | F21: 30 | G21: 08 | H21: 6.72 | I21: 53.76 | J21: 0.05 | L21: 0 | M21: 0 | N21: =IFERROR(VLOOKUP(B21,inventario!$B$2:$G$164,6,0),0) -> 586
B22: 901060270147 | C22: PB-HUGNAT-G | D22: 7702425808706 | E22: HUGGIES PANAL BEBE NATURAL CARE (ROJOS) TALLA G 30 UND | F22: 30 | G22: 08 | H22: 8.13 | I22: 65.04 | J22: 0.05 | L22: 0 | M22: 0 | N22: =IFERROR(VLOOKUP(B22,inventario!$B$2:$G$164,6,0),0) -> 155
B23: 901060270151 | C23: PB-HUGNAT-XG | D23: 7702425802438 | E23: HUGGIES PANAL BEBE NATURAL CARE (ROJOS) TALLA XG 30 UND | F23: 30 | G23: 04 | H23: 9.65 | I23: 38.6 | J23: 0.05 | L23: 0 | M23: 0 | N23: =IFERROR(VLOOKUP(B23,inventario!$B$2:$G$164,6,0),0) -> 0
B24: 901060270152 | C24: PB-HUGNAT-XXG | D24: 7702425808720 | E24: HUGGIES PANAL BEBE NATURAL CARE (ROJOS) TALLA XXG 30 UND | F24: 30 | G24: 08 | H24: 10.27 | I24: 82.16 | J24: 0.05 | L24: =+K24*G24 -> 0 | M24: =L24*H24*(1-J24) -> 0 | N24: =IFERROR(VLOOKUP(B24,inventario!$B$2:$G$164,6,0),0) -> 3
B25: 901060270150 | C25: PB-HUGNAT-RN20 | D25: 7702425802148 | E25: PANAL HUGGIES NATURAL CARE RN 20un | F25: 20 | G25: 08 | H25: 3.75 | I25: =+G25*H25 -> 30 | L25: =+K25*G25 -> 0 | M25: =L25*H25*(1-J25) -> 0 | N25: =IFERROR(VLOOKUP(B25,inventario!$B$2:$G$164,6,0),0) -> 1007
B26: 901060270138 | C26: PB-HUG-G20 | D26: 7702425810754 | E26: PANAL HUGGIES ACTIVE SEC G 20un | F26: 20 | G26: 08 | H26: 4.56 | I26: 36.48 | J26: 0.07 | L26: 0 | M26: =L26*H26*(1-J26) -> 0 | N26: =IFERROR(VLOOKUP(B26,inventario!$B$2:$G$164,6,0),0) -> 501
B27: 901060270144 | C27: PB-HUG-XG20 | D27: 7702425810761 | E27: PANAL HUGGIES ACTIVE SEC XG 20un | F27: 20 | G27: 08 | H27: 5.48 | I27: 43.84 | J27: 0.15 | L27: 0 | M27: 0 | N27: =IFERROR(VLOOKUP(B27,inventario!$B$2:$G$164,6,0),0) -> 6
B28: 901060270146 | C28: PB-HUG-XXG20 | D28: 7702425810778 | E28: PANAL HUGGIES ACTIVE SEC XXG 20un | F28: 20 | G28: 08 | H28: 6.36 | I28: =+H28*G28 -> 50.88 | J28: 0.18 | L28: 0 | M28: 0 | N28: =IFERROR(VLOOKUP(B28,inventario!$B$2:$G$164,6,0),0) -> 1512
B31: LINEA PROTECCION FEMENINA
B32: CODIGO | C32: MODELO | D32: CODIGO UPC | E32: DESCRIPCION | F32: UNID PAQ | G32: UNID BULTO | H32: PRECIO UNIDAD | I32: PRECIO BULTO | J32: DESCUENTO | K32: BULTOS | L32: UND | M32: TOTAL | N32: INV. BULTOS
B33: 1101070210120 | C33: KOTEX-TAMM | D33: 7702425540613 | E33: TAMPONES KOTEX MEDIUM 12X8 SPORT | F33: 8 | G33: 12 | H33: 3.49 | I33: =+G33*H33 -> 41.88 | J33: 0.075 | L33: =+K33*G33 -> 0 | M33: =L33*H33*(1-J33) -> 0 | N33: =IFERROR(VLOOKUP(B33,inventario!$B$2:$G$164,6,0),0) -> 0
B34: 1101070210121 | C34: KOTEX-TAMS | D34: 7702425540606 | E34: TAMPONES KOTEX SUPER 12X8 | F34: 8 | G34: 12 | H34: 3.63 | I34: =+G34*H34 -> 43.56 | J34: 0.075 | L34: 0 | M34: 0 | N34: =IFERROR(VLOOKUP(B34,inventario!$B$2:$G$164,6,0),0) -> 0
B35: 1101070190123 | C35: KOTEX-UFNOCT | D35: 7702425807648 | E35: KOTEX TOALLA FEM UF DIA & NOCHE | F35: 8 | G35: 12 | H35: 1.22 | I35: 14.64 | L35: 0 | M35: 0 | N35: =IFERROR(VLOOKUP(B35,inventario!$B$2:$G$164,6,0),0) -> 1721
B36: 1101070190125 | C36: KOTEX-ULTRAF | D36: 7702425801288 | E36: KOTEX TOALLA FEMENINA DISCRETA 10 UND | F36: 10 | G36: 48 | H36: 0.71 | I36: 34.08 | L36: 0 | M36: 0 | N36: =IFERROR(VLOOKUP(B36,inventario!$B$2:$G$164,6,0),0) -> 2129
B37: 1101070190113 | C37: KOTEX-DIA | D37: 7702425800779 | E37: KOTEX TOALLA FEMENINA DIURNA 10 UND | F37: 10 | G37: 48 | H37: 0.74 | I37: 35.52 | L37: 0 | M37: 0 | N37: =IFERROR(VLOOKUP(B37,inventario!$B$2:$G$164,6,0),0) -> 0
B38: 1101070190119 | C38: KOTEX-NOC | D38: 7702425803008 | E38: KOTEX TOALLA FEMENINA NOCTURNA 8 UND | F38: 08 | G38: 12 | H38: 1.03 | I38: 12.36 | L38: 0 | M38: 0 | N38: =IFERROR(VLOOKUP(B38,inventario!$B$2:$G$164,6,0),0) -> 0
B39: 1101070200114 | C39: KOTEX-LIN15 | D39: 7702425544932 | E39: KOTEX PROTECTOR DIARIO FEMENINO (LINER) 15 UND | F39: 15 | G39: 12 | H39: 0.55 | I39: 6.6 | L39: 0 | M39: 0 | N39: =IFERROR(VLOOKUP(B39,inventario!$B$2:$G$164,6,0),0) -> 2444
B40: 1101070200115 | C40: KOTEX-LIN50 | D40: 7702425809765 | E40: KOTEX PROTECTOR DIARIO FEMENINO (LINER) 50 UND | F40: 50 | G40: 12 | H40: 1.78 | I40: 21.36 | J40: 0.07 | L40: 0 | M40: 0 | N40: =IFERROR(VLOOKUP(B40,inventario!$B$2:$G$164,6,0),0) -> 4140.833333
B41: 1101070190117 | C41: KOTEX-LINAB50 | D41: 7702425809758 | E41: KOTEX LINER ANTIBACTERIAL 12X50 | F41: 50 | G41: 12 | H41: 1.84 | I41: 22.08 | L41: =+K41*G41 -> 0 | M41: 0 | N41: =IFERROR(VLOOKUP(B41,inventario!$B$2:$G$164,6,0),0) -> 1130
B42: 1101070190116 | C42: KOTEX-LINAB15 | D42: 7702425807549 | E42: KOTEX LINER ANTIBACTERIAL 12X15 | F42: 15 | G42: 12 | H42: 0.56 | I42: 6.72 | L42: =+K42*G42 -> 0 | M42: =L42*H42*(1-J42) -> 0 | N42: =IFERROR(VLOOKUP(B42,inventario!$B$2:$G$164,6,0),0) -> 2266
B43: 1101070190122 | C43: KOTEX-UFAB-R5 | D43: 7702425810006 | E43: =VLOOKUP(C43,'[1]DESPUES DEL CAMBIO'!$C$13:$I$1048576,2,0) -> KOTEX TOALLA FEM UF AB 10X5X5 RISTRA | F43: 5 | G43: 10 | H43: 2.67 | I43: 26.7 | L43: 0 | M43: 0 | N43: =IFERROR(VLOOKUP(B43,inventario!$B$2:$G$164,6,0),0) -> 1296
B44: 1101070190118 | C44: KOTEX-LINPURE50 | D44: 7702425810860 | E44: KOTEX LINER PURE 12X50 | F44: 50 | G44: 12 | H44: 1.94 | I44: 23.28 | L44: 0 | M44: 0 | N44: =IFERROR(VLOOKUP(B44,inventario!$B$2:$G$164,6,0),0) -> 0
B45: 1101070190208 | C45: KOTEX-ESENSA10 | D45: 7441008164326 | E45: KOTEX TOALLA FEMENINA ESENCIAL S/ALAS 24X10 | F45: 10 | G45: 24 | H45: 0.56 | I45: 13.44 | L45: 0 | M45: 0 | N45: =IFERROR(VLOOKUP(B45,inventario!$B$2:$G$164,6,0),0) -> 3496.875
B46: 1101070190124 | C46: KOTEX-UFPURE | D46: 7702425810501 | E46: KOTEX TOALLA FEM UF PURE 12X10UND | F46: 10 | G46: 12 | H46: 0.78 | I46: =+H46*G46 -> 9.36 | L46: 0 | M46: 0 | N46: =IFERROR(VLOOKUP(B46,inventario!$B$2:$G$164,6,0),0) -> 2164
B49: LINEA CUIDADO PERSONAL-TOALLAS HUMEDAS
B50: CODIGO | C50: MODELO | D50: CODIGO UPC | E50: DESCRIPCION | F50: UNID PAQ | G50: UNID BULTO | H50: PRECIO UNIDAD | I50: PRECIO BULTO | J50: DESCUENTO | K50: BULTOS | L50: UND | M50: TOTAL | N50: INV. BULTOS
B51: 901060170191 | C51: TH-HUGMAN-80 | D51: 7702425804821 | E51: TOALLAS HUMEDAS HUGGIES MANITAS 80 UND | F51: 80 | G51: 12 | H51: 1.51 | I51: =+H51*G51 -> 18.12 | L51: =+K51*G51 -> 0 | M51: =L51*H51*(1-J51) -> 0 | N51: =IFERROR(VLOOKUP(B51,inventario!$B$2:$G$164,6,0),0) -> 0
B52: 901060170190 | C52: TH-HUGMAN-48 | D52: 7702425809772 | E52: TOALLAS HUMEDAS HUGGIES MANITAS 48 UND | F52: 48 | G52: 24 | H52: 1.14 | I52: =+H52*G52 -> 27.36 | L52: 0 | M52: =L52*H52*(1-J52) -> 0 | N52: =IFERROR(VLOOKUP(B52,inventario!$B$2:$G$164,6,0),0) -> 0
B53: 901060170189 | C53: TH-HUGEFI-48 | D53: 7896018700628 | E53: TOALLAS HUMEDAS HUGGIES LIMP EFECTIVA (VERDES) 48 UND CON TAPA | F53: 48 | G53: 24 | H53: 1.04 | I53: 24.96 | L53: 0 | M53: =L53*H53*(1-J53) -> 0 | N53: =IFERROR(VLOOKUP(B53,inventario!$B$2:$G$164,6,0),0) -> 0
B54: 901060170188 | C54: TH-HUGCOT-80 | D54: 7702425805187 | E54: TOALLAS HUMEDAS HUGGIES LIMP COTIDIANA (AMARILLOS) 80 UND | F54: 80 | G54: 12 | H54: 1.15 | I54: 13.8 | J54: 0.15 | L54: 0 | M54: 0 | N54: =IFERROR(VLOOKUP(B54,inventario!$B$2:$G$164,6,0),0) -> 0
B55: 401060170186 | C55: TH-BABYSOFT-40 | D55: 8699444262031 | E55: TOALLAS HUMEDADAS DE 40 UNIDADES BABY SOFT PREMIUM | F55: 40 | G55: 36 | H55: 0.58 | I55: =+G55*H55 -> 20.88 | J55: 0.1 | L55: =+K55*G55 -> 0 | M55: =L55*H55*(1-J55) -> 0 | N55: =IFERROR(VLOOKUP(B55,inventario!$B$2:$G$164,6,0),0) -> 0
B56: 401060170187 | C56: TH-BABYSOFT-72 | D56: 8699444260631 | E56: TOALLAS HUMEDADAS DE 72 UNIDADES BABY SOFT PREMIUM CON TAPA | F56: 72 | G56: 24 | H56: 0.95 | I56: 20.88 | M56: =L56*H56*(1-J56) -> 0 | N56: =IFERROR(VLOOKUP(B56,inventario!$B$2:$G$164,6,0),0) -> 0
B59: LINEA CUIDADO PERSONAL-TALCOS
B60: CODIGO | C60: MODELO | D60: CODIGO UPC | E60: DESCRIPCION | F60: UNID PAQ | G60: UNID BULTO | H60: PRECIO UNIDAD | I60: PRECIO BULTO | J60: DESCUENTO | K60: BULTOS | L60: UND | M60: TOTAL | N60: INV. BULTOS
B61: 101010040019 | C61: AMMENS-ORI125 | D61: 7502221182143 | E61: TALCO AMMENS ORIGINAL - 125G | F61: 01 | G61: 12 | H61: 2.16 | I61: =+H61*G61 -> 25.92 | L61: =+K61*G61 -> 0 | M61: 0 | N61: =IFERROR(VLOOKUP(B61,inventario!$B$2:$G$164,6,0),0) -> 682
B62: 101010040015 | C62: AMMENS-BABY125 | D62: 7502221182181 | E62: TALCO AMMENS BABY - 125G | F62: 01 | G62: 12 | H62: 2.16 | I62: 25.92 | L62: 0 | M62: 0 | N62: =IFERROR(VLOOKUP(B62,inventario!$B$2:$G$164,6,0),0) -> 579
B63: 101010040017 | C63: AMMENS-FRESH125 | D63: 7502221182167 | E63: TALCO AMMENS FRESCO AROMA - 125G | F63: 01 | G63: 12 | H63: 2.16 | I63: 25.92 | L63: 0 | M63: 0 | N63: =IFERROR(VLOOKUP(B63,inventario!$B$2:$G$164,6,0),0) -> 722
B64: 101010040020 | C64: AMMENS-PIE60 | D64: 7502221184437 | E64: TALCO AMMENS PARA PIES - 60G | F64: 01 | G64: 12 | H64: 1.65 | I64: 19.8 | L64: 0 | M64: 0 | N64: =IFERROR(VLOOKUP(B64,inventario!$B$2:$G$164,6,0),0) -> 720
B67: LINEA CUIDADO PERSONAL-DESODORANTES
B68: CODIGO | C68: MODELO | D68: CODIGO UPC | E68: DESCRIPCION | F68: UNID PAQ | G68: UNID BULTO | H68: PRECIO UNIDAD | I68: PRECIO BULTO | J68: DESCUENTO | K68: BULTOS | L68: UND | M68: TOTAL | N68: INV. BULTOS
B69: 201020030010 | C69: AH-FRESH | D69: 033200197249 | E69: DESODORANTE ARM & HAMMER ULTRAMAX SOLID FRESH / FRESCO - 73g | F69: 01 | G69: 12 | H69: 2.4 | I69: =+H69*G69 -> 28.8 | J69: 0.4 | L69: =+K69*G69 -> 0 | M69: =L69*H69*(1-J69) -> 0 | N69: =IFERROR(VLOOKUP(B69,inventario!$B$2:$G$164,6,0),0) -> 0
B70: 201020030014 | C70: AH-UNSCENTED | D70: 033200194606 | E70: DESODORANTE ARM & HAMMER ULTRAMAX SOLID UNCENTED / SIN AROMA - 73g | F70: 01 | G70: 12 | H70: 2.4 | I70: 28.8 | J70: 0.4 | L70: 0 | M70: 0 | N70: =IFERROR(VLOOKUP(B70,inventario!$B$2:$G$164,6,0),0) -> 0
B71: 201020030011 | C71: AH-GELCOOL | D71: 033200197560 | E71: DESODORANTE ARM & HAMMER ULTRAMAX GEL COOL BLAST - 113g | F71: 01 | G71: 12 | H71: 2.7 | I71: 32.4 | J71: 0.4 | L71: 0 | M71: 0 | N71: =IFERROR(VLOOKUP(B71,inventario!$B$2:$G$164,6,0),0) -> 0
B72: 201020030012 | C72: AH-MAXPWER | D72: 33200194705 | E72: A&H DEO POWDER FRESH 12X73G | F72: 1 | G72: 12 | H72: 2.4 | I72: =+H72*G72 -> 28.8 | J72: 0.4 | L72: 0 | M72: 0 | N72: =IFERROR(VLOOKUP(B72,inventario!$B$2:$G$164,6,0),0) -> 0
B73: 201020030013 | C73: AH-MAXSPORT | D73: 33200197447 | E73: A&H DEO ACTIVE SPORT 12X73G | F73: 1 | G73: 12 | H73: 2.4 | I73: 28.8 | J73: 0.4 | L73: 0 | M73: 0 | N73: =IFERROR(VLOOKUP(B73,inventario!$B$2:$G$164,6,0),0) -> 0
B74: 301020120049 | C74: DEO-AXBS-BLCK | D74: 079400589873 | E74: AXE SPRAY PARA EL CUERPO -BLACK 113G | F74: 01 | G74: 12 | H74: 2.12 | I74: 25.44 | L74: 0 | M74: 0 | N74: =IFERROR(VLOOKUP(B74,inventario!$B$2:$G$164,6,0),0) -> 0
B75: 301020120052 | C75: DEO-AXBS-DARK | D75: 079400379979 | E75: AXE SPRAY PARA EL CUERPO -DARK TEMPTATION 113G | F75: 01 | G75: 12 | H75: 2.12 | I75: 25.44 | L75: 0 | M75: 0 | N75: =IFERROR(VLOOKUP(B75,inventario!$B$2:$G$164,6,0),0) -> 0
B76: 301020120047 | C76: DEO-AXBS-ANARC | D76: 079400197207 | E76: AXE SPRAY PARA EL CUERPO - ANARCHY MALE 113G | F76: 01 | G76: 12 | H76: 2.12 | I76: 25.44 | L76: =+K76*G76 -> 0 | M76: =L76*H76*(1-J76) -> 0 | N76: =IFERROR(VLOOKUP(B76,inventario!$B$2:$G$164,6,0),0) -> 0
B77: 301020120053 | C77: DEO-AXBS-DARKT | D77: 7791293025797 | E77: AXE BODY SPRAY DARK TEMPTATION 150ML | F77: 01 | G77: 12 | H77: 2.12 | I77: 25.44 | L77: =+K77*G77 -> 0 | M77: =L77*H77*(1-J77) -> 0 | N77: =IFERROR(VLOOKUP(B77,inventario!$B$2:$G$164,6,0),0) -> 2114
B78: 301020120048 | C78: DEO-AXBS-APOLLO | D78: 7791293025780 | E78: AXE BODY SPRAY APOLLO 150ML | F78: 01 | G78: 12 | H78: 2.12 | I78: 25.44 | L78: 0 | M78: 0 | N78: =IFERROR(VLOOKUP(B78,inventario!$B$2:$G$164,6,0),0) -> 1402
B79: 301020120050 | C79: DEO-AXBS-BLKNGHT | D79: 7791293032153 | E79: AXE BODY SPRAY BLACK KNIGHT 150ML | F79: 01 | G79: 12 | H79: 2.12 | I79: 25.44 | L79: 0 | M79: 0 | N79: =IFERROR(VLOOKUP(B79,inventario!$B$2:$G$164,6,0),0) -> 3099
B80: 301020120054 | C80: DEO-AXBS-EXCITE | D80: 7791293025803 | E80: AXE BODY SPRAY EXCITE 150ML | F80: 01 | G80: 12 | H80: 2.12 | I80: 25.44 | L80: 0 | M80: 0 | N80: =IFERROR(VLOOKUP(B80,inventario!$B$2:$G$164,6,0),0) -> 2777
B81: 301020120055 | C81: DEO-AXBS-FUSION | D81: 7791293025810 | E81: AXE BODY SPRAY FUSION 150ML | F81: 01 | G81: 12 | H81: 2.12 | I81: 25.44 | L81: 0 | M81: 0 | N81: =IFERROR(VLOOKUP(B81,inventario!$B$2:$G$164,6,0),0) -> 1970
B82: 301020120051 | C82: DEO-AXBS-COLL | D82: 7506306202832 | E82: AXE BODY SPRAY COLLISION 150ML | F82: 01 | G82: 12 | H82: 2.12 | I82: 25.44 | L82: 0 | M82: 0 | N82: =IFERROR(VLOOKUP(B82,inventario!$B$2:$G$164,6,0),0) -> 2324
B83: 301020030058 | C83: DEO-AXSTI-DARK | D83: 000075025922 | E83: AXE DEO STICK DARK TEMPTATION 50G | F83: 01 | G83: 12 | H83: 2.28 | I83: 27.36 | L83: 0 | M83: 0 | N83: =IFERROR(VLOOKUP(B83,inventario!$B$2:$G$164,6,0),0) -> 0
B84: 301020030197 | C84: DEO-AXSTI-BLK | D84: 000075048082 | E84: AXE DEO STICK BLACK 50G | F84: 01 | G84: 12 | H84: 2.28 | I84: 27.36 | L84: 0 | M84: 0 | N84: =IFERROR(VLOOKUP(B84,inventario!$B$2:$G$164,6,0),0) -> 488
B85: 301020030057 | C85: DEO-AXSTI-COLL | D85: 000075060206 | E85: AXE DEO STICK COLLISION 50G | F85: 01 | G85: 12 | H85: 2.28 | I85: 27.36 | L85: 0 | M85: 0 | N85: =IFERROR(VLOOKUP(B85,inventario!$B$2:$G$164,6,0),0) -> 601
B88: LINEA CUIDADO DEL HOGAR-PAPEL HIGIENICO
B89: CODIGO | C89: MODELO | D89: CODIGO UPC | E89: DESCRIPCION | F89: UNID PAQ | G89: UNID BULTO | H89: PRECIO UNIDAD | I89: PRECIO BULTO | J89: DESCUENTO | K89: BULTOS | L89: UND | M89: TOTAL | N89: INV. BULTOS
B90: 2002030280153 | C90: PH-SCOTT-4R | D90: 7702425808034 | E90: SCOTT PAPEL HIGIENICO RINDEMAX 4 ROLLOS - 28 METROS | F90: 04 | G90: 12 | H90: 1.84 | I90: =+H90*G90 -> 22.08 | J90: 0.1 | L90: =+K90*G90 -> 0 | M90: =L90*H90*(1-J90) -> 0 | N90: =IFERROR(VLOOKUP(B90,inventario!$B$2:$G$164,6,0),0) -> 0
B91: 2002030420240 | C91: N/A | D91: 7702425810808 | E91: SCOTT PAPEL TOALLIN CALORIE ABSORB 12X1UND | F91: 04 | G91: 12 | H91: 0.8 | I91: =+H91*G91 -> 9.6 | N91: =IFERROR(VLOOKUP(B91,inventario!$B$2:$G$164,6,0),0) -> 0
B93: LINEACUIDADODELHOGAR-DETERGENTELIQUIDO
B94: CODIGO | C94: MODELO | D94: CODIGO UPC | E94: DESCRIPCION | F94: UNID PAQ | G94: UNID BULTO | H94: PRECIO UNIDAD | I94: PRECIO BULTO | J94: DESCUENTO | K94: BULTOS | L94: UND | M94: TOTAL | N94: INV. BULTOS
C95: QM-OXISPR-636ML | D95: 757037516935 | E95: OXICLEAN QUITAMANCHA DE ROPA - SPRAY 636ml AGOTADO | F95: 01 | G95: 8 | H95: 3.73 | I95: =+H95*G95 -> 29.84 | L95: =+K95*G95 -> 0 | M95: 0 | N95: =IFERROR(VLOOKUP(C95,inventario!$B$2:$H$218,9,0),0) -> 0
C96: QM-OXIPLV-800G | D96: 757037950869 | E96: OXICLEAN VERSATILE QUITAMANCHA DE ROPA - POLVO 802g AGOTADO | F96: 01 | G96: 4 | H96: 4.84 | I96: 19.36 | L96: 0 | M96: 0 | N96: =IFERROR(VLOOKUP(C96,inventario!$B$2:$H$218,9,0),0) -> 0
B97: 202020150084 | C97: DL-AHESTALLIDO | D97: 033200099901 | E97: ARM & HAMMER DETERGENTE LIQUIDO ESTALLIDO DE LIMPIEZA - 1.47L | F97: 01 | G97: 8 | H97: 4.1 | I97: 32.8 | J97: 0.4 | L97: 0 | M97: 0 | N97: =IFERROR(VLOOKUP(B97,inventario!$B$2:$G$164,6,0),0) -> 0
B98: 202020150085 | C98: DL-AHJARDIN | D98: 033200099949 | E98: ARM & HAMMER DETERGENTE LIQUIDO JARDIN FLORECIENTE CON SUAVIZANTE - 1.47L | F98: 01 | G98: 8 | H98: 4.1 | I98: 32.8 | J98: 0.4 | L98: 0 | M98: 0 | N98: =IFERROR(VLOOKUP(B98,inventario!$B$2:$G$164,6,0),0) -> 2
B99: 2502020150087 | C99: DL-XTROXI | D99: 094514428863 | E99: XTRA DETERGENTE LIQUIDO LIMPIEZA CRISTAL CON OXICLEAN (C/DESMANCHANTE) - 1.50L | F99: 01 | G99: 8 | H99: 3.55 | I99: 28.4 | J99: 0.4 | L99: 0 | M99: 0 | N99: =IFERROR(VLOOKUP(B99,inventario!$B$2:$G$164,6,0),0) -> 0
B100: 2502020150088 | C100: DL-XTRTROPICAL | D100: 094514424049 | E100: XTRA DETERGENTE LIQUIDO PASION TROPICAL - 1.50L | F100: 01 | G100: 8 | H100: 3.55 | I100: 28.4 | J100: 0.4 | L100: 0 | M100: 0 | N100: =IFERROR(VLOOKUP(B100,inventario!$B$2:$G$164,6,0),0) -> 2
B103: LINEA CUIDADO PERSONAL-LOCIONES CORPORALES
B104: CODIGO | C104: MODELO | D104: CODIGO UPC | E104: DESCRIPCION | F104: UNID PAQ | G104: UNID BULTO | H104: PRECIO UNIDAD | I104: PRECIO BULTO | J104: DESCUENTO | K104: BULTOS | L104: UND | M104: TOTAL | N104: INV. BULTOS
B105: 2401010220126 | C105: LC-VASEALM-295 | D105: 305210044654 | E105: LOCION CORPORAL VASELINE ALMOND SMOOTH 295ML | F105: 01 | G105: 6 | H105: 2.48 | I105: =H105*G105 -> 14.88 | L105: =+K105*G105 -> 0 | M105: =L105*H105*(1-J105) -> 0 | N105: =IFERROR(VLOOKUP(B105,inventario!$B$2:$G$164,6,0),0) -> 0
B106: 2401010220127 | C106: LC-VASEALOE-295 | D106: 305213091006 | E106: LOCION CORPORAL VASELINE ALOE SOOTHE 295ML | F106: 01 | G106: 6 | H106: 2.48 | I106: =H106*G106 -> 14.88 | L106: 0 | M106: 0 | N106: =IFERROR(VLOOKUP(B106,inventario!$B$2:$G$164,6,0),0) -> 0
B107: 2401010220128 | C107: LC-VASECOCOA-295 | D107: 305210134416 | E107: LOCION CORPORAL VASELINE COCOA RADIANT 295ML | F107: 01 | G107: 6 | H107: 2.48 | I107: 14.88 | L107: 0 | M107: 0 | N107: =IFERROR(VLOOKUP(B107,inventario!$B$2:$G$164,6,0),0) -> 0
B108: 2401010300166 | C108: PJ-VASEPUR-100 | D108: 305210541344 | E108: VASELINA VASELINE PURE ORIGINAL 100G | F108: 01 | G108: 72 | H108: 2.1 | I108: 151.2 | L108: 0 | M108: 0 | N108: =IFERROR(VLOOKUP(B108,inventario!$B$2:$G$164,6,0),0) -> 0
B109: 2401010300167 | C109: PJ-VASEPUR-50 | D109: 305210541412 | E109: VASELINA VASELINE PURE ORIGINAL 50G | F109: 01 | G109: 72 | H109: 1.4 | I109: 100.8 | L109: 0 | M109: 0 | N109: =IFERROR(VLOOKUP(B109,inventario!$B$2:$G$164,6,0),0) -> 0
B112: LINEABATERIAS
B113: CODIGO | C113: MODELO | D113: CODIGO UPC | E113: DESCRIPCION | F113: UNID PAQ | G113: UNID BULTO | H113: PRECIO UNIDAD | I113: PRECIO BULTO | J113: DESCUENTO | K113: BULTOS | L113: UND | M113: TOTAL | N113: INV. BULTOS
B114: 702010290156 | C114: PIL-EGZR-AAAX2 | D114: 039800014009 | E114: ENERGIZER MAX AAAx2 - BATERIA ALKALINA | F114: 02 | G114: 24 | H114: 1.16 | I114: =+H114*G114 -> 27.84 | L114: =+K114*G114 -> 0 | M114: 0 | N114: =IFERROR(VLOOKUP(B114,inventario!$B$2:$G$164,6,0),0) -> 109
B115: 702010290157 | C115: PIL-EGZR-AAAX4 | D115: 039800099099 | E115: ENERGIZER MAX AAAx4 - BATERIA ALKALINA | F115: 04 | G115: 24 | H115: 2.02 | I115: 48.48 | L115: 0 | M115: 0 | N115: =IFERROR(VLOOKUP(B115,inventario!$B$2:$G$164,6,0),0) -> 0
B116: 702010290158 | C116: PIL-EGZR-AAX2 | D116: 039800015464 | E116: ENERGIZER MAX AAx2 - BATERIA ALKALINA | F116: 02 | G116: 24 | H116: 1.16 | I116: 27.84 | L116: 0 | M116: 0 | N116: =IFERROR(VLOOKUP(B116,inventario!$B$2:$G$164,6,0),0) -> 126
B117: 702010290159 | C117: PIL-EGZR-AAX4 | D117: 039800011329 | E117: ENERGIZER MAX AAx4 - BATERIA ALKALINA | F117: 04 | G117: 24 | H117: 2.02 | I117: 48.48 | L117: 0 | M117: 0 | N117: =IFERROR(VLOOKUP(B117,inventario!$B$2:$G$164,6,0),0) -> 0
B118: 702010290160 | C118: PIL-EGZR-CX2 | D118: 039800011367 | E118: ENERGIZER MAX Cx2 - BATERIA ALKALINA | F118: 02 | G118: 12 | H118: 2.3 | I118: 27.6 | L118: 0 | M118: =L118*H118*(1-J118) -> 0 | N118: =IFERROR(VLOOKUP(B118,inventario!$B$2:$G$164,6,0),0) -> 0
B119: 702010290161 | C119: PIL-EGZR-DX2 | D119: 039800011398 | E119: ENERGIZER MAX Dx2 - BATERIA ALKALINA | F119: 02 | G119: 12 | H119: 3.65 | I119: 43.8 | L119: 0 | M119: 0 | N119: =IFERROR(VLOOKUP(B119,inventario!$B$2:$G$164,6,0),0) -> 1
B120: 702010290154 | C120: PIL-EGZR-9V | D120: 039800013613 | E120: ENERGIZER MAX 9V - BATERIA ALKALINA | F120: 01 | G120: 24 | H120: 1.57 | I120: 37.68 | L120: 0 | M120: 0 | N120: =IFERROR(VLOOKUP(B120,inventario!$B$2:$G$164,6,0),0) -> 330
B121: 702010290155 | C121: PIL-EGZR-A23X2 | D121: 39800110091 | E121: ENERGIZER A23X2 BATERIA ALKALINA MINI | F121: 2 | G121: 72 | H121: 1.17 | I121: =+H121*G121 -> 84.24 | L121: 0 | M121: 0 | N121: =IFERROR(VLOOKUP(B121,inventario!$B$2:$G$164,6,0),0) -> 0
B122: 802010290162 | C122: PIL-EVR-AAAX4 | D122: 39800040015 | E122: PILA EVEREADY AAAX4 | F122: 4 | G122: 24 | H122: 0.8 | I122: =+H122*G122 -> 19.2 | L122: =+K122*G122 -> 0 | M122: =L122*H122*(1-J122) -> 0 | N122: =IFERROR(VLOOKUP(B122,inventario!$B$2:$G$164,6,0),0) -> 0
B123: 802010290163 | C123: PIL-EVR-AAX4 | D123: 39800040008 | E123: PILA EVEREADY AAX4 | F123: 4 | G123: 24 | H123: 0.8 | I123: 19.2 | L123: 0 | M123: 0 | N123: =IFERROR(VLOOKUP(B123,inventario!$B$2:$G$164,6,0),0) -> 32
B124: 802010290164 | C124: PIL-EVR-CX2 | D124: 39800059154 | E124: PILA EVEREADY CX2 | F124: 2 | G124: 12 | H124: 0.97 | I124: 11.64 | J124: 0.1 | L124: 0 | M124: 0 | N124: =IFERROR(VLOOKUP(B124,inventario!$B$2:$G$164,6,0),0) -> 335.916667
B125: 802010290165 | C125: PIL-EVR-DX2 | D125: 39800059352 | E125: PILA EVEREADY DX2 | F125: 2 | G125: 12 | H125: 1.59 | I125: 19.08 | J125: 0.1 | L125: 0 | M125: 0 | N125: =IFERROR(VLOOKUP(B125,inventario!$B$2:$G$164,6,0),0) -> 281
B126: 702010230130 | C126: N/A | D126: 8888021302974 | E126: ENERGIZER LINTERNA 50 LED + AAAX6 | F126: 1 | G126: 4 | H126: 3.5 | I126: =+H126*G126 -> 14 | N126: =IFERROR(VLOOKUP(B126,inventario!$B$2:$G$164,6,0),0) -> 1585
B128: LINEA ALIMENTOS
B129: CODIGO | C129: MODELO | D129: CODIGO UPC | E129: DESCRIPCION | F129: UNID PAQ | G129: UNID BULTO | H129: PRECIO UNIDAD | I129: PRECIO BULTO | J129: DESCUENTO | K129: BULTOS | L129: UND | M129: TOTAL | N129: INV. BULTOS
B130: 1003010110045 | C130: CUB-KNORRPOL-8 | D130: 8886467068768 | E130: Cubito Knorr de Pollo Deshidratado 8un | F130: 01 | G130: 144 | H130: 0.8 | I130: =+H130*G130 -> 115.2 | L130: =+K130*G130 -> 0 | M130: =L130*H130*(1-J130) -> 0 | N130: =IFERROR(VLOOKUP(B130,inventario!$B$2:$G$164,6,0),0) -> 8785
B131: 1003010110043 | C131: CUB-KNORRPOL-12 | D131: 8886467068751 | E131: Cubito Knorr de Pollo Deshidratado 12un | F131: 01 | G131: 96 | H131: 0.99 | I131: =+H131*G131 -> 95.04 | L131: 0 | M131: 0 | N131: =IFERROR(VLOOKUP(B131,inventario!$B$2:$G$164,6,0),0) -> 9068
B132: 1003010110044 | C132: CUB-KNORRPOL-120 | D132: 8886467068157 | E132: Cubito Knorr de Pollo Deshidratado 120un | F132: 01 | G132: 12 | H132: 11.95 | I132: 143.4 | L132: 0 | M132: 0 | N132: =IFERROR(VLOOKUP(B132,inventario!$B$2:$G$164,6,0),0) -> 3081
B133: 1003010110223 | C133: CUB-KNORRCAR-8 | D133: 8886467052651 | E133: CUBITO KNORR DE CARNE DESHIDRATADO 8UN | F133: 01 | G133: 144 | H133: 0.85 | I133: 122.4 | L133: 0 | M133: 0 | N133: =IFERROR(VLOOKUP(B133,inventario!$B$2:$G$164,6,0),0) -> 682
B134: 1003010110222 | C134: CUB-KNORRCAR-12 | D134: 8886467052644 | E134: CUBITO KNORR DE CARNE DESHIDRATADO 12UN | F134: 01 | G134: 96 | H134: 1.06 | I134: 101.76 | L134: 0 | M134: 0 | N134: =IFERROR(VLOOKUP(B134,inventario!$B$2:$G$164,6,0),0) -> 735
B135: 1003010110225 | C135: CUB-KNORRCOS-8 | D135: 8886467052682 | E135: CUBITO KNORR DE COSTILLA DESHIDRATADO 8UN | F135: 01 | G135: 144 | H135: 0.85 | I135: 122.4 | L135: 0 | M135: 0 | N135: =IFERROR(VLOOKUP(B135,inventario!$B$2:$G$164,6,0),0) -> 664
B136: 1003010110224 | C136: CUB-KNORRCOS-12 | D136: 8886467052675 | E136: CUBITO KNORR DE COSTILLA DESHIDRATADO 12UN | F136: 01 | G136: 96 | H136: 1.06 | I136: 101.76 | L136: 0 | M136: 0 | N136: =IFERROR(VLOOKUP(B136,inventario!$B$2:$G$164,6,0),0) -> 726
B137: 1003020250133 | C137: NOO-KNORPOL-75 | D137: 8886467052033 | E137: KNORR NOODLES POLLO 75G | F137: 01 | G137: 30 | H137: 0.28 | I137: =H137*G137 -> 8.4 | L137: 0 | M137: 0 | N137: =IFERROR(VLOOKUP(B137,inventario!$B$2:$G$164,6,0),0) -> 77
B138: 1003020250132 | C138: NOO-KNORCAR-75 | D138: 8886467052040 | E138: KNORR NOODLES CARNE 75G | F138: 01 | G138: 30 | H138: 0.24 | I138: =H138*G138 -> 7.2 | L138: 0 | M138: 0 | N138: =IFERROR(VLOOKUP(B138,inventario!$B$2:$G$164,6,0),0) -> 4161
B139: 1003030380226 | C139: SOP-KNORRPOL-60 | D139: 8886467052798 | E139: SOPA INSTANTANEA DE POLLO 72X60GR | F139: 01 | G139: 72 | H139: 0.45 | I139: =H139*G139 -> 32.4 | L139: =+K139*G139 -> 0 | M139: =L139*H139*(1-J139) -> 0 | N139: =IFERROR(VLOOKUP(B139,inventario!$B$2:$G$164,6,0),0) -> 3156
B140: 1003030380227 | C140: SOP-KNORRVEG-60 | D140: 8886467052811 | E140: SOPA INSTANTANEA DE VEGETALES 72X60GR | F140: 01 | G140: 72 | H140: 0.45 | I140: 32.4 | L140: 0 | M140: 0 | N140: =IFERROR(VLOOKUP(B140,inventario!$B$2:$G$164,6,0),0) -> 1480
B141: 1003030390228 | C141: CRE-KNORRPOL-60 | D141: 8886467052828 | E141: CREMA DE POLLO 72X60GR | F141: 01 | G141: 72 | H141: 0.5 | I141: 36 | L141: 0 | M141: 0 | N141: =IFERROR(VLOOKUP(B141,inventario!$B$2:$G$164,6,0),0) -> 2187
B142: 1003030390229 | C142: CRE-KNORRCHA-60 | D142: 8886467052835 | E142: CREMA DE CHAMPIÑONES 72X60GR | F142: 01 | G142: 72 | H142: 0.5 | I142: 36 | L142: 0 | M142: 0 | N142: =IFERROR(VLOOKUP(B142,inventario!$B$2:$G$164,6,0),0) -> 1421
B143: 1003030390230 | C143: CRE-KNORRMAIZ-60 | D143: 8886467052859 | E143: CREMA DE MAÍZ 72X60GR | F143: 01 | G143: 72 | H143: 0.5 | I143: 36 | L143: 0 | M143: 0 | N143: =IFERROR(VLOOKUP(B143,inventario!$B$2:$G$164,6,0),0) -> 1525
B144: 1003030390231 | C144: CRE-KNORRCAM-60 | D144: 8886467052866 | E144: CREMA DE CAMARONES 72X60GR | F144: 01 | G144: 72 | H144: 0.5 | I144: 36 | L144: 0 | M144: 0 | N144: =IFERROR(VLOOKUP(B144,inventario!$B$2:$G$164,6,0),0) -> 1580
B145: 1003040400232 | C145: SAZ-KNORRTODO-200 | D145: 8886467052781 | E145: SAZONADOR 48X200GR | F145: 01 | G145: 48 | H145: 1.83 | I145: 87.84 | L145: 0 | M145: 0 | N145: =IFERROR(VLOOKUP(B145,inventario!$B$2:$G$164,6,0),0) -> 1653
B146: 1006010410235 | D146: 725765285515 | E146: KNORR PROMO 2 SOPAS 60G + 1 CUBITO 12 UND (PROMO) | F146: 01 | G146: 36 | H146: 1.39 | I146: 50.04 | L146: =+K146*G146 -> 0 | M146: =L146*H146*(1-J146) -> 0 | N146: =IFERROR(VLOOKUP(B146,inventario!$B$2:$G$164,6,0),0) -> 0
B147: 1006010410236 | D147: 725765285508 | E147: KNORR PROMO 1 SOPA 60G + 2 CUBITOS 8UND (PROMO) | F147: 01 | G147: 36 | H147: 1.39 | I147: 50.04 | L147: 0 | M147: 0 | N147: =IFERROR(VLOOKUP(B147,inventario!$B$2:$G$164,6,0),0) -> 12
B148: 1006010410237 | D148: 725765285539 | E148: KNORR PROMO 1 SAZONADOR 200 G + (1 NOODLES MUESTRA GRATIS) | F148: 01 | G148: 24 | H148: 1.83 | I148: 43.92 | L148: 0 | M148: 0 | N148: =IFERROR(VLOOKUP(B148,inventario!$B$2:$G$164,6,0),0) -> 3
B149: 1006010410238 | D149: 725765285522 | E149: KNORR PROMO 1 CUBITO 12 UND + (1 NOODLES MUESTRA GRATIS) | F149: 01 | G149: 36 | H149: 0.99 | I149: 35.64 | L149: 0 | M149: 0 | N149: =IFERROR(VLOOKUP(B149,inventario!$B$2:$G$164,6,0),0) -> 33
B152: UNILEVER
B153: CUIDADOCORPORAL
B154: DESODORANTES REXONA
B155: CODIGO | C155: MODELO | D155: CODIGO UPC | E155: DESCRIPCION | F155: UNID PAQ | G155: UNID BULTO | H155: PRECIO UNIDAD | I155: PRECIO BULTO | J155: DESCUENTO | K155: BULTOS | L155: UND | M155: TOTAL | N155: INV. BULTOS
B156: 1901020130081 | C156: DEO-REXV8-A150 | D156: 7791293022567 | E156: DESODORANTE SPRAY REXONA V8 90GR | F156: 01 | G156: 12 | H156: 2.5 | I156: =+H156*G156 -> 30 | L156: =+K156*G156 -> 0 | M156: 0 | N156: =IFERROR(VLOOKUP(B156,inventario!$B$2:$G$164,6,0),0) -> 102
B157: 1901020030083 | C157: DEO-REXV8-S50 | D157: 0000075024956 | E157: DESODORANTE BARRA REXONA V8 50GR | F157: 01 | G157: 12 | H157: 2.01 | I157: =+H157*G157 -> 24.12 | L157: 0 | M157: 0 | N157: =IFERROR(VLOOKUP(B157,inventario!$B$2:$G$164,6,0),0) -> 522
B158: 1901020140082 | C158: DEO-REXV8-R50 | D158: 0000078923454 | E158: DESODORANTE ROLLON REXONA DEOS V8 50 ML | F158: 01 | G158: 12 | H158: 1.11 | I158: 13.32 | L158: 0 | M158: 0 | N158: =IFERROR(VLOOKUP(B158,inventario!$B$2:$G$164,6,0),0) -> 185
B159: 1901020130077 | C159: DEO-REXSPFAN-A150 | D159: 7791293022543 | E159: DESODORANTE SPRAY REXONA SPORTFAN 90GR | F159: 01 | G159: 12 | H159: 2.5 | I159: 30 | L159: 0 | M159: 0 | N159: =IFERROR(VLOOKUP(B159,inventario!$B$2:$G$164,6,0),0) -> 133
B160: 1901020030079 | C160: DEO-REXSPFAN-S50 | D160: 0000075026608 | E160: DESODORANTE REXONA DEOS STICK SPORTFAN 50 GR | F160: 01 | G160: 12 | H160: 1.92 | I160: 23.04 | L160: 0 | M160: 0 | N160: =IFERROR(VLOOKUP(B160,inventario!$B$2:$G$164,6,0),0) -> 0
B161: 1901020140078 | C161: DEO-REXSPFAN-R50 | D161: 0000078924895 | E161: DESODORANTE ROLLON REXONA SPORT FAN 50ML | F161: 01 | G161: 12 | H161: 1.02 | I161: 12.24 | L161: 0 | M161: 0 | N161: =IFERROR(VLOOKUP(B161,inventario!$B$2:$G$164,6,0),0) -> 0
B162: 1901020130074 | C162: DEO-REXMAB-A150 | D162: 7506306244184 | E162: DESODORANTE REXONA MEN AEROSOL ANTIBACTERIAL INVISIBLE 150 ML | F162: 01 | G162: 12 | H162: 2.5 | I162: 30 | L162: 0 | M162: 0 | N162: =IFERROR(VLOOKUP(B162,inventario!$B$2:$G$164,6,0),0) -> 123
B163: 1901020030076 | C163: DEO-REXMAB-S50 | D163: 0000075058838 | E163: DESODORANTE REXONA MEN DEOS STICK ANTIBACTERIAL INVISIBLE 50 GR | F163: 01 | G163: 12 | H163: 2.01 | I163: 24.12 | L163: 0 | M163: 0 | N163: =IFERROR(VLOOKUP(B163,inventario!$B$2:$G$164,6,0),0) -> 0
B164: 1901020140075 | C164: DEO-REXMAB-R50 | D164: 000075058852 | E164: DESODORANTE REXONA DEO ROLLON ANTIBACTERIAL INVISIBLE 50 ML | F164: 01 | G164: 12 | H164: 1.11 | I164: 13.32 | L164: 0 | M164: 0 | N164: =IFERROR(VLOOKUP(B164,inventario!$B$2:$G$164,6,0),0) -> 0
B165: 1901020130070 | C165: DEO-REXBAMB-A150 | D165: 7791293036069 | E165: DESODORANTE SPRAY REXONA WOMEN BAMBOO & ALOE VERA 150 ML | F165: 01 | G165: 12 | H165: 2.5 | I165: 30 | L165: 0 | M165: 0 | N165: =IFERROR(VLOOKUP(B165,inventario!$B$2:$G$164,6,0),0) -> 321
B166: 1901020130071 | C166: DEO-REXCOTT-A150 | D166: 7791293032467 | E166: DESODORANTE REXONA AEROSOL COTTON DRY 150ML | F166: 01 | G166: 12 | H166: 2.5 | I166: 30 | L166: 0 | M166: 0 | N166: =IFERROR(VLOOKUP(B166,inventario!$B$2:$G$164,6,0),0) -> 741
B167: 1901020030072 | C167: DEO-REXCOTT-S50 | D167: 0000078084117 | E167: DESODORANTE REXONA DEOS STICK COTTON 50 GR. | F167: 01 | G167: 12 | H167: 2.01 | I167: 24.12 | L167: 0 | M167: 0 | N167: =IFERROR(VLOOKUP(B167,inventario!$B$2:$G$164,6,0),0) -> 723
B168: 1901020130073 | C168: DEO-REXEFFI-A153 | D168: 7791293033471 | E168: DESODORANTE REXONA AEROSOL EFFICIENT 153ML | F168: 01 | G168: 12 | H168: 2.5 | I168: 30 | L168: 0 | M168: 0 | N168: =IFERROR(VLOOKUP(B168,inventario!$B$2:$G$164,6,0),0) -> 0
B169: 1901020130199 | C169: DEO-REXPERFECT-A150 | D169: 7506306206625 | E169: REXONA DEO AER PERFECT TONE 12X90GR/150ML | F169: 01 | G169: 12 | H169: 2.5 | I169: 30 | L169: =+K169*G169 -> 0 | M169: =L169*H169*(1-J169) -> 0 | N169: =IFERROR(VLOOKUP(B169,inventario!$B$2:$G$164,6,0),0) -> 0
B170: 1901020140200 | C170: DEO-REXPERFECT-R50 | D170: 75062804 | E170: REXONA DEO ROLLON PERFECT TONE 12X50ML | F170: 01 | G170: 12 | H170: 1.11 | I170: 13.32 | L170: 0 | M170: 0 | N170: =IFERROR(VLOOKUP(B170,inventario!$B$2:$G$164,6,0),0) -> 0
B171: 1901020030201 | C171: DEO-REXPERFECT-S45 | D171: 75062798 | E171: REXONA DEO STICK PERFECT TONE 12X45GR | F171: 01 | G171: 12 | H171: 2.01 | I171: 24.12 | L171: 0 | M171: 0 | N171: =IFERROR(VLOOKUP(B171,inventario!$B$2:$G$164,6,0),0) -> 0
B172: 1901020130080 | C172: DEO-REXV8-2PK | D172: 7702006200981 | E172: REXONA DEO AER BIPACK V8 6X2X90GR/150ML | F172: 2 | G172: 6 | H172: 4.07 | I172: =H172*G172 -> 24.42 | L172: =+K172*G172 -> 0 | M172: =L172*H172*(1-J172) -> 0 | N172: =IFERROR(VLOOKUP(B172,inventario!$B$2:$G$164,6,0),0) -> 124
B173: 1901020130069 | C173: DEO-REXBAMB-2PK | D173: 7702006200998 | E173: REXONA DEO AER BIPACK BAMB AL VERA 6X2X90GR/150ML | F173: 2 | G173: 6 | H173: 4.07 | I173: =H173*G173 -> 24.42 | L173: 0 | M173: =L173*H173*(1-J173) -> 0 | N173: =IFERROR(VLOOKUP(B173,inventario!$B$2:$G$164,6,0),0) -> 115
B174: 1901020030194 | C174: DEO-REXBAMB-S50 | D174: 78004498 | E174: REXONA DEO STICK BAMBOO 12X50GR | F174: 1 | G174: 12 | H174: 2.01 | I174: =H174*G174 -> 24.12 | L174: =+K174*G174 -> 0 | M174: =L174*H174*(1-J174) -> 0 | N174: =IFERROR(VLOOKUP(B174,inventario!$B$2:$G$164,6,0),0) -> 239
B175: 1901020130198 | C175: DEO-REXEFFIDEL-A210 | D175: 7791293042091 | E175: REXONA DEO AER AP EFFI DELICATE 12X210ML | F175: 01 | G175: 12 | H175: 2.94 | I175: =+H175*G175 -> 35.28 | L175: =+K175*G175 -> 0 | M175: =L175*H175*(1-J175) -> 0 | N175: =IFERROR(VLOOKUP(B175,inventario!$B$2:$G$164,6,0),0) -> 78
B176: 1901020140233 | C176: N/A | D176: 78924345 | E176: REXONA DEO ROLLON BAMBOO 12X50ML | F176: 01 | G176: 12 | H176: 1.11 | I176: 13.32 | N176: =IFERROR(VLOOKUP(B176,inventario!$B$2:$G$164,6,0),0) -> 215
B177: 1901020130221 | C177: N/A | D177: 7791293042114 | E177: REXONA DEO AER AP EFFI ORIGINAL 12X210ML | F177: 01 | G177: 12 | H177: 2.94 | I177: 35.28 | N177: =IFERROR(VLOOKUP(B177,inventario!$B$2:$G$164,6,0),0) -> 218
B180: DESODORANTES DOVE
B181: CODIGO | C181: MODELO | D181: CODIGO UPC | E181: DESCRIPCION | F181: UNID PAQ | G181: UNID BULTO | H181: PRECIO UNIDAD | I181: PRECIO BULTO | J181: DESCUENTO | K181: BULTOS | L181: UND | M181: TOTAL | N181: INV. BULTOS
B182: 601020130062 | C182: DEO-DOVMINV-A150 | D182: 7791293022819 | E182: DESODORANTE DOVE AEROSOL MEN INVISIBLE DRY 150ML | F182: 01 | G182: 12 | H182: 2.74 | I182: 32.88 | L182: 0 | M182: 0 | N182: =IFERROR(VLOOKUP(B182,inventario!$B$2:$G$164,6,0),0) -> 143
B183: 601020030063 | C183: DEO-DOVMINV-S50 | D183: 75046224 | E183: DESODORANTE DOVE BARRA MEN INVISIBLE DRY 50GR | F183: 01 | G183: 12 | H183: 2.21 | I183: 26.52 | L183: 0 | M183: 0 | N183: =IFERROR(VLOOKUP(B183,inventario!$B$2:$G$164,6,0),0) -> 0
B184: 601020130065 | C184: DEO-DOVORG-A150 | D184: 7506306241183 | E184: DESODORANTE DOVE AEROSOL DAMA ORIGINAL 150 ML | F184: 01 | G184: 12 | H184: 2.74 | I184: 32.88 | L184: 0 | M184: 0 | N184: =IFERROR(VLOOKUP(B184,inventario!$B$2:$G$164,6,0),0) -> 905
B185: 601020030067 | C185: DEO-DOVORG-S50 | D185: 000075027513 | E185: DESODORANTE DOVE BARRA ORIGINAL 50 ML | F185: 01 | G185: 12 | H185: 2.21 | I185: 26.52 | L185: 0 | M185: 0 | N185: =IFERROR(VLOOKUP(B185,inventario!$B$2:$G$164,6,0),0) -> 0
B186: 601020140066 | C186: DEO-DOVORG-R50 | D186: 0000078924468 | E186: DESODORANTE DOVE ROLLON DAMA ORIGINAL 50ML | F186: 01 | G186: 12 | H186: 1.26 | I186: 15.12 | L186: 0 | M186: 0 | N186: =IFERROR(VLOOKUP(B186,inventario!$B$2:$G$164,6,0),0) -> 0
B187: 601020130059 | C187: DEO-DOVDERM-A150 | D187: 7506306241152 | E187: DESODORANTE DOVE AEROSOL DAMA DERMOACLARANTE 150 ML | F187: 01 | G187: 12 | H187: 2.74 | I187: 32.88 | L187: 0 | M187: 0 | N187: =IFERROR(VLOOKUP(B187,inventario!$B$2:$G$164,6,0),0) -> 277
B188: 601020030061 | C188: DEO-DOVDERM-S50 | D188: 0000075034238 | E188: DOVE DEO STICK DERMO ACLARANT 12X50G | F188: 01 | G188: 12 | H188: 2.21 | I188: 26.52 | L188: =+K188*G188 -> 0 | M188: 0 | N188: =IFERROR(VLOOKUP(B188,inventario!$B$2:$G$164,6,0),0) -> 654
B189: 601020140060 | C189: DEO-DOVDERM-R50 | D189: 0000078928503 | E189: DESODORANTE DOVE ROLLON DAMA DERMOACLARANTE 50 ML | F189: 01 | G189: 12 | H189: 1.26 | I189: 15.12 | L189: 0 | M189: 0 | N189: =IFERROR(VLOOKUP(B189,inventario!$B$2:$G$164,6,0),0) -> 383
B190: 601020130064 | C190: DEO-DOVORG-2PK | D190: 7702006201032 | E190: DOVE DEO WOMEN AER ORIGINAL BIPACK 6X2X89GR/150ML | F190: 2 | G190: 6 | H190: 4.52 | I190: =H190*G190 -> 27.12 | L190: =+K190*G190 -> 0 | M190: =L190*H190*(1-J190) -> 0 | N190: =IFERROR(VLOOKUP(C190,inventario!$D$2:$G$164,4,0),0) -> 119
B193: ROSTRO
B194: CODIGO | C194: MODELO | D194: CODIGO UPC | E194: DESCRIPCION | F194: UNID PAQ | G194: UNID BULTO | H194: PRECIO UNIDAD | I194: PRECIO BULTO | J194: DESCUENTO | K194: BULTOS | L194: UND | M194: TOTAL | N194: INV. BULTOS
B195: 1801040060022 | C195: CF-PONDBIO-100 | D195: =VLOOKUP(C195,[2]Hoja1!$G$27:$H$42,2,0) -> 7501056330330 | E195: PONDS CR BIOHIDRATANTE 24X100G | F195: 01 | G195: 24 | H195: 2.61 | I195: 62.64 | L195: 0 | M195: 0 | N195: =IFERROR(VLOOKUP(B195,inventario!$B$2:$G$164,6,0),0) -> 418
B196: 1801040060023 | C196: CF-PONDBIO-50 | D196: =VLOOKUP(C196,[2]Hoja1!$G$27:$H$42,2,0) -> 7501056330323 | E196: PONDS CR BIOHIDRATANTE 24X50G | F196: 01 | G196: 24 | H196: 1.41 | I196: 33.84 | L196: 0 | M196: 0 | N196: =IFERROR(VLOOKUP(B196,inventario!$B$2:$G$164,6,0),0) -> 528
B197: 1801040070024 | C197: CF-PONDC-45 | D197: =VLOOKUP(C197,[2]Hoja1!$G$27:$H$42,2,0) -> 7501056325169 | E197: PONDS CR C ORIGINAL 24X45G | F197: 01 | G197: 24 | H197: 0.87 | I197: 20.88 | L197: 0 | M197: 0 | N197: =IFERROR(VLOOKUP(B197,inventario!$B$2:$G$164,6,0),0) -> 412
B198: 1801040070025 | C198: CF-PONDC-95 | D198: =VLOOKUP(C198,[2]Hoja1!$G$27:$H$42,2,0) -> 7501056325176 | E198: PONDS CR C ORIGINAL 24X95G | F198: 01 | G198: 24 | H198: 1.41 | I198: 33.84 | L198: 0 | M198: =L198*H198*(1-J198) -> 0 | N198: =IFERROR(VLOOKUP(B198,inventario!$B$2:$G$164,6,0),0) -> 516
B199: 1801040070026 | C199: CF-PONDC-SCH10 | D199: =VLOOKUP(C199,[2]Hoja1!$G$27:$H$42,2,0) -> 7702006201827 | E199: PONDS CR C ORIGINAL DPL 12X10X10G | F199: 01 | G199: 120 | H199: 0.25 | I199: 30 | L199: 0 | M199: 0 | N199: =IFERROR(VLOOKUP(B199,inventario!$B$2:$G$164,6,0),0) -> 0
B200: 1801040080027 | C200: CF-PONDCLAR-100 | D200: 7501056330309 | E200: PONDS CR CLARANT B3 GRASA 24X100G | F200: 01 | G200: 24 | H200: 3 | I200: 72 | L200: 0 | M200: 0 | N200: =IFERROR(VLOOKUP(B200,inventario!$B$2:$G$164,6,0),0) -> 177
B201: 1801040080028 | C201: CF-PONDCLAR-50 | D201: 7501056330293 | E201: PONDS CR CLARANT B3 GRASA 24X50G | F201: 01 | G201: 24 | H201: 1.94 | I201: 46.56 | L201: 0 | M201: 0 | N201: =IFERROR(VLOOKUP(B201,inventario!$B$2:$G$164,6,0),0) -> 45
B202: 1801040070029 | C202: CF-PONDCPEP-100 | D202: =VLOOKUP(C202,[2]Hoja1!$G$27:$H$42,2,0) -> 7501056324889 | E202: PONDS CR C PEPINO 24X100G | F202: 01 | G202: 24 | H202: 1.41 | I202: 33.84 | L202: 0 | M202: 0 | N202: =IFERROR(VLOOKUP(B202,inventario!$B$2:$G$164,6,0),0) -> 37
B203: 1801040060030 | C203: CF-PONDH-100 | D203: 7501056325398 | E203: PONDS CR H 24X100G | F203: 01 | G203: 24 | H203: 2.26 | I203: 54.24 | L203: 0 | M203: 0 | N203: =IFERROR(VLOOKUP(B203,inventario!$B$2:$G$164,6,0),0) -> 206
B204: 1801040060031 | C204: CF-PONDH-50 | D204: 7501056325381 | E204: PONDS CR H 24X50G | F204: 01 | G204: 24 | H204: 1.35 | I204: 32.4 | L204: 0 | M204: 0 | N204: =IFERROR(VLOOKUP(B204,inventario!$B$2:$G$164,6,0),0) -> 0
B205: 1801040090033 | C205: CF-PONDREJ-100 | D205: 7501056330491 | E205: PONDS CR REJUVENESS DIA 24X100G | F205: 01 | G205: 24 | H205: 2.88 | I205: 69.12 | L205: 0 | M205: 0 | N205: =IFERROR(VLOOKUP(B205,inventario!$B$2:$G$164,6,0),0) -> 324
B206: 1801040090034 | C206: CF-PONDREJ-50 | D206: 7501056330484 | E206: PONDS CR REJUVENESS 24X50G | F206: 01 | G206: 24 | H206: 1.87 | I206: 44.88 | L206: 0 | M206: 0 | N206: =IFERROR(VLOOKUP(B206,inventario!$B$2:$G$164,6,0),0) -> 99
B207: 1801040090035 | C207: CF-PONDREJ-SCH10 | D207: =VLOOKUP(C207,[2]Hoja1!$G$27:$H$42,2,0) -> 7702006920742 | E207: PONDS CR REJUVENESS SCH 12X10X10G | F207: 01 | G207: 120 | H207: 0.53 | I207: 63.6 | L207: 0 | M207: 0 | N207: =IFERROR(VLOOKUP(B207,inventario!$B$2:$G$164,6,0),0) -> 0
B208: 1801040060036 | C208: CF-PONDS-100 | D208: 7501056326142 | E208: PONDS CR S HUMECTANTE NUTRITIVA 24X100G | F208: 01 | G208: 24 | H208: 2.53 | I208: 60.72 | L208: 0 | M208: 0 | N208: =IFERROR(VLOOKUP(B208,inventario!$B$2:$G$164,6,0),0) -> 94
B209: 1801040060037 | C209: CF-PONDS-50 | D209: 7501056325442 | E209: PONDS CR S HUMECTANTE NUTRITIVA 24X50G | F209: 01 | G209: 24 | H209: 1.41 | I209: 33.84 | L209: 0 | M209: 0 | N209: =IFERROR(VLOOKUP(B209,inventario!$B$2:$G$164,6,0),0) -> 318
B210: 1801040060038 | C210: CF-PONDS-SCH10 | D210: =VLOOKUP(C210,[2]Hoja1!$G$27:$H$42,2,0) -> 7702006920612 | E210: PONDS CR S SCH 12X10X10G | F210: 01 | G210: 120 | H210: 0.35 | I210: 42 | L210: 0 | M210: 0 | N210: =IFERROR(VLOOKUP(B210,inventario!$B$2:$G$164,6,0),0) -> 0
B211: 1801040080196 | C211: CF-PONDCLARS-100 | D211: 7501056330262 | E211: PONDS CR CLARANT B3 SECA 24X100G | F211: 01 | G211: 24 | H211: 3 | I211: 72 | L211: 0 | M211: 0 | N211: =IFERROR(VLOOKUP(B211,inventario!$B$2:$G$164,6,0),0) -> 208
B212: 1801040080217 | C212: CF-PONDCLARS-SCH8 | E212: PONDS CR CLARA B3 P SECA DPL 12X10X8.5G | F212: 01 | G212: 120 | H212: 0.42 | I212: 50.4 | L212: 0 | M212: 0 | N212: =IFERROR(VLOOKUP(B212,inventario!$B$2:$G$164,6,0),0) -> 0
B213: 1801040080216 | C213: N/A | D213: 7501056330255 | E213: PONDS CR CLARANT B3 SECA 24X50G | F213: 1 | G213: 24 | H213: 1.94 | I213: 46.56 | L213: =+K213*G213 -> 0 | M213: =L213*H213*(1-J213) -> 0 | N213: =IFERROR(VLOOKUP(B213,inventario!$B$2:$G$164,6,0),0) -> 141
B216: LIMPIEZA DE LA PIEL DOVE
B217: CODIGO | C217: MODELO | D217: CODIGO UPC | E217: DESCRIPCION | F217: UNID PAQ | G217: UNID BULTO | H217: PRECIO UNIDAD | I217: PRECIO BULTO | J217: DESCUENTO | K217: BULTOS | L217: UND | M217: TOTAL | N217: INV. BULTOS
B218: 601050180095 | C218: JB-DOVVAN-90 | D218: 7891150019560 | E218: JABON EN BARRA DOVE KARITE Y VAINILLA 90GR | F218: 01 | G218: 48 | H218: 0.68 | I218: 32.64 | L218: 0 | M218: 0 | N218: =IFERROR(VLOOKUP(B218,inventario!$B$2:$G$164,6,0),0) -> 1248
B219: 601050180094 | C219: JB-DOVORG-90 | D219: 7898422746759 | E219: JABON EN BARRA DOVE ORIGINAL 90GR | F219: 01 | G219: 48 | H219: 0.68 | I219: 32.64 | L219: 0 | M219: 0 | N219: =IFERROR(VLOOKUP(B219,inventario!$B$2:$G$164,6,0),0) -> 1142
B220: 601050180093 | C220: JB-DOVCOCO-90 | D220: 7891150034075 | E220: JABON EN BARRA DOVE LECHE DE COCO 90GR | F220: 01 | G220: 48 | H220: 0.68 | I220: 32.64 | L220: 0 | M220: 0 | N220: =IFERROR(VLOOKUP(B220,inventario!$B$2:$G$164,6,0),0) -> 0
B223: LIMPIEZA DE LA PIEL LUX
B224: CODIGO | C224: MODELO | D224: CODIGO UPC | E224: DESCRIPCION | F224: UNID PAQ | G224: UNID BULTO | H224: PRECIO UNIDAD | I224: PRECIO BULTO | J224: DESCUENTO | K224: BULTOS | L224: UND | M224: TOTAL | N224: INV. BULTOS
B225: 1201050180096 | C225: JB-LUXJAZ-125 | D225: 7702006205016 | E225: JABON BARRA LUX JAZMIN 48X125G | F225: 01 | G225: 48 | H225: 0.5 | I225: 24 | L225: 0 | M225: 0 | N225: =IFERROR(VLOOKUP(B225,inventario!$B$2:$G$164,6,0),0) -> 246
B226: 1201050180100 | C226: JB-LUXROSA-125 | D226: 7702006205009 | E226: JABON BARRA LUX ROSAS FRANCESAS 48X125G | F226: 01 | G226: 48 | H226: 0.5 | I226: 24 | L226: 0 | M226: 0 | N226: =IFERROR(VLOOKUP(B226,inventario!$B$2:$G$164,6,0),0) -> 459
B227: 1201050180102 | C227: JB-LUXVAN-125 | D227: 7702006205023 | E227: JABON BARRA LUX VAINILLA 48X125G | F227: 01 | G227: 48 | H227: 0.5 | I227: =+H227*G227 -> 24 | L227: 0 | M227: 0 | N227: =IFERROR(VLOOKUP(B227,inventario!$B$2:$G$164,6,0),0) -> 0
B228: 1201050180098 | C228: JB-LUXORQ-125 | D228: 7702006205047 | E228: JABON BARRA LUX ORQUIDEA NEGRA 48X125GR | F228: 01 | G228: 48 | H228: 0.5 | I228: 24 | L228: 0 | M228: 0 | N228: =IFERROR(VLOOKUP(B228,inventario!$B$2:$G$164,6,0),0) -> 0
B229: 1201050180097 | C229: JB-LUXJAZ-3PK | D229: 7702006205061 | E229: LUX JABON BARRA JAZMIN 16X3X125G | F229: 03 | G229: 16 | H229: 1.34 | I229: =H229*G229 -> 21.44 | L229: =+K229*G229 -> 0 | M229: =L229*H229*(1-J229) -> 0 | N229: =IFERROR(VLOOKUP(B229,inventario!$B$2:$G$164,6,0),0) -> 483
B230: 1201050180099 | C230: JB-LUXROSA-3PK | D230: 770200205054 | E230: JABON BARRA LUX ROSAS FRANCESAS 16X3X125G | F230: 03 | G230: 16 | H230: 1.34 | I230: =H230*G230 -> 21.44 | L230: =+K230*G230 -> 0 | M230: =L230*H230*(1-J230) -> 0 | N230: =IFERROR(VLOOKUP(B230,inventario!$B$2:$G$164,6,0),0) -> 407
B231: 1201050180103 | C231: JB-LUXVAN-3PK | D231: 7702006205075 | E231: JABON BARRA LUX VAINILLA 16X3X125G | F231: 03 | G231: 16 | H231: 1.34 | I231: =H231*G231 -> 21.44 | L231: =+K231*G231 -> 0 | M231: =L231*H231*(1-J231) -> 0 | N231: =IFERROR(VLOOKUP(B231,inventario!$B$2:$G$164,6,0),0) -> 506
B232: 1201050180101 | C232: JB-LUXORQ-3PK | D232: 7702006205092 | E232: JABON BARRA LUX ORQUIDEA NEGRA 16X3X125G | F232: 03 | G232: 16 | H232: 1.34 | I232: =H232*G232 -> 21.44 | L232: =+K232*G232 -> 0 | M232: =L232*H232*(1-J232) -> 0 | N232: =IFERROR(VLOOKUP(B232,inventario!$B$2:$G$164,6,0),0) -> 297
... 46 more rows

Sheet EXHIBIDORES
A3: LINEA BATERIAS
A4: CODIGOPRODUCTO | B4: DESCRIPCION | C4: MARCA | D4: ALMACEN | E4: UNIDADES
A5: END-LG-4SV | B5: Exhibidor Energizer PUNTA DE GONDOLA | C5: ENERGIZER | D5: PPAL | E5: =IFERROR(VLOOKUP(A5,inventario!$D$2:$G$164,4,0),0) -> 25
A6: CS-PLSTC | B6: Exhibidor Energizer CS-PLSTC | C6: ENERGIZER | D6: PPAL | E6: =IFERROR(VLOOKUP(A6,inventario!$D$2:$G$164,4,0),0) -> 205
A7: POP-EN-MBHZ | B7: Exhibidor Energizer MB-EX-HZ | C7: ENERGIZER | D7: PPAL | E7: =IFERROR(VLOOKUP(A7,inventario!$D$2:$G$164,4,0),0) -> 0
A8: POP-EN-SDKSM | B8: Exhibidor Energizer SDK-SM | C8: ENERGIZER | D8: PPAL | E8: =IFERROR(VLOOKUP(A8,inventario!$D$2:$G$164,4,0),0) -> 0
A9: LIN-EGZR-AAAX6 | B9: LINTERNA ENERGIZER 50 LED + AAAX6 | C9: ENERGIZER | D9: PPAL | E9: =IFERROR(VLOOKUP(A9,inventario!$D$2:$G$164,4,0),0) -> 1585

Sheet marylin (hidden)
A1: REFERENCIA | B1: STOCK | C1: PRECIO | D1: DESCUENTO | E1: DESCRIPCION
A2: ESM-MARYLIN | B2: =IFERROR(VLOOKUP($A2,#REF!,9,0),0) -> 0 | C2: 0 | D2: =IFERROR(VLOOKUP($A2,#REF!,8,0),0)*100 -> 0 | E2: MARYLIN ESMALTE TONOS VARIOS
A3: EU-MARY-1 | B3: =IFERROR(VLOOKUP(A3,#REF!,9,0),0) -> 0 | C3: 0 | D3: =IFERROR(VLOOKUP($A3,#REF!,8,0),0)*100 -> 0 | E3: MARYLIN ESMALTE PROF TONO 1
A4: EU-MARY-100 | B4: =IFERROR(VLOOKUP(A4,#REF!,9,0),0) -> 0 | C4: 0 | D4: =IFERROR(VLOOKUP($A4,#REF!,8,0),0)*100 -> 0 | E4: MARYLIN ESMALTE PROF TONO 100
A5: EU-MARY-101 | B5: =IFERROR(VLOOKUP(A5,#REF!,9,0),0) -> 0 | C5: 0 | D5: =IFERROR(VLOOKUP($A5,#REF!,8,0),0)*100 -> 0 | E5: MARYLIN ESMALTE PROF TONO 101
A6: EU-MARY-102 | B6: =IFERROR(VLOOKUP(A6,#REF!,9,0),0) -> 0 | C6: 0 | D6: =IFERROR(VLOOKUP($A6,#REF!,8,0),0)*100 -> 0 | E6: MARYLIN ESMALTE PROF TONO 102
A7: EU-MARY-103 | B7: =IFERROR(VLOOKUP(A7,#REF!,9,0),0) -> 0 | C7: 0 | D7: =IFERROR(VLOOKUP($A7,#REF!,8,0),0)*100 -> 0 | E7: MARYLIN ESMALTE PROF TONO 103
A8: EU-MARY-104 | B8: =IFERROR(VLOOKUP(A8,#REF!,9,0),0) -> 0 | C8: 0 | D8: =IFERROR(VLOOKUP($A8,#REF!,8,0),0)*100 -> 0 | E8: MARYLIN ESMALTE PROF TONO 104
A9: EU-MARY-108 | B9: =IFERROR(VLOOKUP(A9,#REF!,9,0),0) -> 0 | C9: 0 | D9: =IFERROR(VLOOKUP($A9,#REF!,8,0),0)*100 -> 0 | E9: MARYLIN ESMALTE PROF TONO 108
A10: EU-MARY-109 | B10: =IFERROR(VLOOKUP(A10,#REF!,9,0),0) -> 0 | C10: 0 | D10: =IFERROR(VLOOKUP($A10,#REF!,8,0),0)*100 -> 0 | E10: MARYLIN ESMALTE PROF TONO 109
A11: EU-MARY-110 | B11: =IFERROR(VLOOKUP(A11,#REF!,9,0),0) -> 0 | C11: 0 | D11: =IFERROR(VLOOKUP($A11,#REF!,8,0),0)*100 -> 0 | E11: MARYLIN ESMALTE PROF TONO 110
A12: EU-MARY-115 | B12: =IFERROR(VLOOKUP(A12,#REF!,9,0),0) -> 0 | C12: 0 | D12: =IFERROR(VLOOKUP($A12,#REF!,8,0),0)*100 -> 0 | E12: MARYLIN ESMALTE PROF TONO 115
A13: EU-MARY-116 | B13: =IFERROR(VLOOKUP(A13,#REF!,9,0),0) -> 0 | C13: 0 | D13: =IFERROR(VLOOKUP($A13,#REF!,8,0),0)*100 -> 0 | E13: MARYLIN ESMALTE PROF TONO 116
A14: EU-MARY-117 | B14: =IFERROR(VLOOKUP(A14,#REF!,9,0),0) -> 0 | C14: 0 | D14: =IFERROR(VLOOKUP($A14,#REF!,8,0),0)*100 -> 0 | E14: MARYLIN ESMALTE PROF TONO 117
A15: EU-MARY-118 | B15: =IFERROR(VLOOKUP(A15,#REF!,9,0),0) -> 0 | C15: 0 | D15: =IFERROR(VLOOKUP($A15,#REF!,8,0),0)*100 -> 0 | E15: MARYLIN ESMALTE PROF TONO 118
A16: EU-MARY-119 | B16: =IFERROR(VLOOKUP(A16,#REF!,9,0),0) -> 0 | C16: 0 | D16: =IFERROR(VLOOKUP($A16,#REF!,8,0),0)*100 -> 0 | E16: MARYLIN ESMALTE PROF TONO 119
A17: EU-MARY-12 | B17: =IFERROR(VLOOKUP(A17,#REF!,9,0),0) -> 0 | C17: 0 | D17: =IFERROR(VLOOKUP($A17,#REF!,8,0),0)*100 -> 0 | E17: MARYLIN ESMALTE PROF TONO 12
A18: EU-MARY-120 | B18: =IFERROR(VLOOKUP(A18,#REF!,9,0),0) -> 0 | C18: 0 | D18: =IFERROR(VLOOKUP($A18,#REF!,8,0),0)*100 -> 0 | E18: MARYLIN ESMALTE PROF TONO 120
A19: EU-MARY-123 | B19: =IFERROR(VLOOKUP(A19,#REF!,9,0),0) -> 0 | C19: 0 | D19: =IFERROR(VLOOKUP($A19,#REF!,8,0),0)*100 -> 0 | E19: MARYLIN ESMALTE PROF TONO 123
A20: EU-MARY-126 | B20: =IFERROR(VLOOKUP(A20,#REF!,9,0),0) -> 0 | C20: 0 | D20: =IFERROR(VLOOKUP($A20,#REF!,8,0),0)*100 -> 0 | E20: MARYLIN ESMALTE PROF TONO 126
A21: EU-MARY-13 | B21: =IFERROR(VLOOKUP(A21,#REF!,9,0),0) -> 0 | C21: 0 | D21: =IFERROR(VLOOKUP($A21,#REF!,8,0),0)*100 -> 0 | E21: MARYLIN ESMALTE PROF TONO 13
A22: EU-MARY-132 | B22: =IFERROR(VLOOKUP(A22,#REF!,9,0),0) -> 0 | C22: 0 | D22: =IFERROR(VLOOKUP($A22,#REF!,8,0),0)*100 -> 0 | E22: MARYLIN ESMALTE PROF TONO 132
A23: EU-MARY-135 | B23: =IFERROR(VLOOKUP(A23,#REF!,9,0),0) -> 0 | C23: 0 | D23: =IFERROR(VLOOKUP($A23,#REF!,8,0),0)*100 -> 0 | E23: MARYLIN ESMALTE PROF TONO 135
A24: EU-MARY-136 | B24: =IFERROR(VLOOKUP(A24,#REF!,9,0),0) -> 0 | C24: 0 | D24: =IFERROR(VLOOKUP($A24,#REF!,8,0),0)*100 -> 0 | E24: MARYLIN ESMALTE PROF TONO 136
A25: EU-MARY-14 | B25: =IFERROR(VLOOKUP(A25,#REF!,9,0),0) -> 0 | C25: 0 | D25: =IFERROR(VLOOKUP($A25,#REF!,8,0),0)*100 -> 0 | E25: MARYLIN ESMALTE PROF TONO 14
A26: EU-MARY-150 | B26: =IFERROR(VLOOKUP(A26,#REF!,9,0),0) -> 0 | C26: 0 | D26: =IFERROR(VLOOKUP($A26,#REF!,8,0),0)*100 -> 0 | E26: MARYLIN ESMALTE PROF TONO 150
A27: EU-MARY-153 | B27: =IFERROR(VLOOKUP(A27,#REF!,9,0),0) -> 0 | C27: 0 | D27: =IFERROR(VLOOKUP($A27,#REF!,8,0),0)*100 -> 0 | E27: MARYLIN ESMALTE PROF TONO 153
A28: EU-MARY-156 | B28: =IFERROR(VLOOKUP(A28,#REF!,9,0),0) -> 0 | C28: 0 | D28: =IFERROR(VLOOKUP($A28,#REF!,8,0),0)*100 -> 0 | E28: MARYLIN ESMALTE PROF TONO 156
A29: EU-MARY-157 | B29: =IFERROR(VLOOKUP(A29,#REF!,9,0),0) -> 0 | C29: 0 | D29: =IFERROR(VLOOKUP($A29,#REF!,8,0),0)*100 -> 0 | E29: MARYLIN ESMALTE PROF TONO 157
A30: EU-MARY-158 | B30: =IFERROR(VLOOKUP(A30,#REF!,9,0),0) -> 0 | C30: 0 | D30: =IFERROR(VLOOKUP($A30,#REF!,8,0),0)*100 -> 0 | E30: MARYLIN ESMALTE PROF TONO 158
A31: EU-MARY-159 | B31: =IFERROR(VLOOKUP(A31,#REF!,9,0),0) -> 0 | C31: 0 | D31: =IFERROR(VLOOKUP($A31,#REF!,8,0),0)*100 -> 0 | E31: MARYLIN ESMALTE PROF TONO 159
A32: EU-MARY-16 | B32: =IFERROR(VLOOKUP(A32,#REF!,9,0),0) -> 0 | C32: 0 | D32: =IFERROR(VLOOKUP($A32,#REF!,8,0),0)*100 -> 0 | E32: MARYLIN ESMALTE PROF TONO 16
A33: EU-MARY-160 | B33: =IFERROR(VLOOKUP(A33,#REF!,9,0),0) -> 0 | C33: 0 | D33: =IFERROR(VLOOKUP($A33,#REF!,8,0),0)*100 -> 0 | E33: MARYLIN ESMALTE PROF TONO 160
A34: EU-MARY-161 | B34: =IFERROR(VLOOKUP(A34,#REF!,9,0),0) -> 0 | C34: 0 | D34: =IFERROR(VLOOKUP($A34,#REF!,8,0),0)*100 -> 0 | E34: MARYLIN ESMALTE PROF TONO 161
A35: EU-MARY-162 | B35: =IFERROR(VLOOKUP(A35,#REF!,9,0),0) -> 0 | C35: 0 | D35: =IFERROR(VLOOKUP($A35,#REF!,8,0),0)*100 -> 0 | E35: MARYLIN ESMALTE PROF TONO 162
A36: EU-MARY-163 | B36: =IFERROR(VLOOKUP(A36,#REF!,9,0),0) -> 0 | C36: 0 | D36: =IFERROR(VLOOKUP($A36,#REF!,8,0),0)*100 -> 0 | E36: MARYLIN ESMALTE PROF TONO 163
A37: EU-MARY-164 | B37: =IFERROR(VLOOKUP(A37,#REF!,9,0),0) -> 0 | C37: 0 | D37: =IFERROR(VLOOKUP($A37,#REF!,8,0),0)*100 -> 0 | E37: MARYLIN ESMALTE PROF TONO 164
A38: EU-MARY-165 | B38: =IFERROR(VLOOKUP(A38,#REF!,9,0),0) -> 0 | C38: 0 | D38: =IFERROR(VLOOKUP($A38,#REF!,8,0),0)*100 -> 0 | E38: MARYLIN ESMALTE PROF TONO 165
A39: EU-MARY-166 | B39: =IFERROR(VLOOKUP(A39,#REF!,9,0),0) -> 0 | C39: 0 | D39: =IFERROR(VLOOKUP($A39,#REF!,8,0),0)*100 -> 0 | E39: MARYLIN ESMALTE PROF TONO 166
A40: EU-MARY-168 | B40: =IFERROR(VLOOKUP(A40,#REF!,9,0),0) -> 0 | C40: 0 | D40: =IFERROR(VLOOKUP($A40,#REF!,8,0),0)*100 -> 0 | E40: MARYLIN ESMALTE PROF TONO 168
A41: EU-MARY-169 | B41: =IFERROR(VLOOKUP(A41,#REF!,9,0),0) -> 0 | C41: 0 | D41: =IFERROR(VLOOKUP($A41,#REF!,8,0),0)*100 -> 0 | E41: MARYLIN ESMALTE PROF TONO 169
A42: EU-MARY-170 | B42: =IFERROR(VLOOKUP(A42,#REF!,9,0),0) -> 0 | C42: 0 | D42: =IFERROR(VLOOKUP($A42,#REF!,8,0),0)*100 -> 0 | E42: MARYLIN ESMALTE PROF TONO 170
A43: EU-MARY-171 | B43: =IFERROR(VLOOKUP(A43,#REF!,9,0),0) -> 0 | C43: 0 | D43: =IFERROR(VLOOKUP($A43,#REF!,8,0),0)*100 -> 0 | E43: MARYLIN ESMALTE PROF TONO 171
A44: EU-MARY-172 | B44: =IFERROR(VLOOKUP(A44,#REF!,9,0),0) -> 0 | C44: 0 | D44: =IFERROR(VLOOKUP($A44,#REF!,8,0),0)*100 -> 0 | E44: MARYLIN ESMALTE PROF TONO 172
A45: EU-MARY-173 | B45: =IFERROR(VLOOKUP(A45,#REF!,9,0),0) -> 0 | C45: 0 | D45: =IFERROR(VLOOKUP($A45,#REF!,8,0),0)*100 -> 0 | E45: MARYLIN ESMALTE PROF TONO 173
A46: EU-MARY-174 | B46: =IFERROR(VLOOKUP(A46,#REF!,9,0),0) -> 0 | C46: 0 | D46: =IFERROR(VLOOKUP($A46,#REF!,8,0),0)*100 -> 0 | E46: MARYLIN ESMALTE PROF TONO 174
A47: EU-MARY-175 | B47: =IFERROR(VLOOKUP(A47,#REF!,9,0),0) -> 0 | C47: 0 | D47: =IFERROR(VLOOKUP($A47,#REF!,8,0),0)*100 -> 0 | E47: MARYLIN ESMALTE PROF TONO 175
A48: EU-MARY-177 | B48: =IFERROR(VLOOKUP(A48,#REF!,9,0),0) -> 0 | C48: 0 | D48: =IFERROR(VLOOKUP($A48,#REF!,8,0),0)*100 -> 0 | E48: MARYLIN ESMALTE PROF TONO 177
A49: EU-MARY-18 | B49: =IFERROR(VLOOKUP(A49,#REF!,9,0),0) -> 0 | C49: 0 | D49: =IFERROR(VLOOKUP($A49,#REF!,8,0),0)*100 -> 0 | E49: MARYLIN ESMALTE PROF TONO 18
A50: EU-MARY-180 | B50: =IFERROR(VLOOKUP(A50,#REF!,9,0),0) -> 0 | C50: 0 | D50: =IFERROR(VLOOKUP($A50,#REF!,8,0),0)*100 -> 0 | E50: MARYLIN ESMALTE PROF TONO 180
A51: EU-MARY-183 | B51: =IFERROR(VLOOKUP(A51,#REF!,9,0),0) -> 0 | C51: 0 | D51: =IFERROR(VLOOKUP($A51,#REF!,8,0),0)*100 -> 0 | E51: MARYLIN ESMALTE PROF TONO 183
A52: EU-MARY-19 | B52: =IFERROR(VLOOKUP(A52,#REF!,9,0),0) -> 0 | C52: 0 | D52: =IFERROR(VLOOKUP($A52,#REF!,8,0),0)*100 -> 0 | E52: MARYLIN ESMALTE PROF TONO 19
A53: EU-MARY-2 | B53: =IFERROR(VLOOKUP(A53,#REF!,9,0),0) -> 0 | C53: 0 | D53: =IFERROR(VLOOKUP($A53,#REF!,8,0),0)*100 -> 0 | E53: MARYLIN ESMALTE PROF TONO 2
A54: EU-MARY-21 | B54: =IFERROR(VLOOKUP(A54,#REF!,9,0),0) -> 0 | C54: 0 | D54: =IFERROR(VLOOKUP($A54,#REF!,8,0),0)*100 -> 0 | E54: MARYLIN ESMALTE PROF TONO 21
A55: EU-MARY-22 | B55: =IFERROR(VLOOKUP(A55,#REF!,9,0),0) -> 0 | C55: 0 | D55: =IFERROR(VLOOKUP($A55,#REF!,8,0),0)*100 -> 0 | E55: MARYLIN ESMALTE PROF TONO 22
A56: EU-MARY-28 | B56: =IFERROR(VLOOKUP(A56,#REF!,9,0),0) -> 0 | C56: 0 | D56: =IFERROR(VLOOKUP($A56,#REF!,8,0),0)*100 -> 0 | E56: MARYLIN ESMALTE PROF TONO 28
A57: EU-MARY-3 | B57: =IFERROR(VLOOKUP(A57,#REF!,9,0),0) -> 0 | C57: 0 | D57: =IFERROR(VLOOKUP($A57,#REF!,8,0),0)*100 -> 0 | E57: MARYLIN ESMALTE PROF TONO 3
A58: EU-MARY-30 | B58: =IFERROR(VLOOKUP(A58,#REF!,9,0),0) -> 0 | C58: 0 | D58: =IFERROR(VLOOKUP($A58,#REF!,8,0),0)*100 -> 0 | E58: MARYLIN ESMALTE PROF TONO 30
A59: EU-MARY-32 | B59: =IFERROR(VLOOKUP(A59,#REF!,9,0),0) -> 0 | C59: 0 | D59: =IFERROR(VLOOKUP($A59,#REF!,8,0),0)*100 -> 0 | E59: MARYLIN ESMALTE PROF TONO 32
A60: EU-MARY-37 | B60: =IFERROR(VLOOKUP(A60,#REF!,9,0),0) -> 0 | C60: 0 | D60: =IFERROR(VLOOKUP($A60,#REF!,8,0),0)*100 -> 0 | E60: MARYLIN ESMALTE PROF TONO 37
A61: EU-MARY-4 | B61: =IFERROR(VLOOKUP(A61,#REF!,9,0),0) -> 0 | C61: 0 | D61: =IFERROR(VLOOKUP($A61,#REF!,8,0),0)*100 -> 0 | E61: MARYLIN ESMALTE PROF TONO 4
A62: EU-MARY-40 | B62: =IFERROR(VLOOKUP(A62,#REF!,9,0),0) -> 0 | C62: 0 | D62: =IFERROR(VLOOKUP($A62,#REF!,8,0),0)*100 -> 0 | E62: MARYLIN ESMALTE PROF TONO 40
A63: EU-MARY-41 | B63: =IFERROR(VLOOKUP(A63,#REF!,9,0),0) -> 0 | C63: 0 | D63: =IFERROR(VLOOKUP($A63,#REF!,8,0),0)*100 -> 0 | E63: MARYLIN ESMALTE PROF TONO 41
A64: EU-MARY-44 | B64: =IFERROR(VLOOKUP(A64,#REF!,9,0),0) -> 0 | C64: 0 | D64: =IFERROR(VLOOKUP($A64,#REF!,8,0),0)*100 -> 0 | E64: MARYLIN ESMALTE PROF TONO 44
A65: EU-MARY-45 | B65: =IFERROR(VLOOKUP(A65,#REF!,9,0),0) -> 0 | C65: 0 | D65: =IFERROR(VLOOKUP($A65,#REF!,8,0),0)*100 -> 0 | E65: MARYLIN ESMALTE PROF TONO 45
A66: EU-MARY-47 | B66: =IFERROR(VLOOKUP(A66,#REF!,9,0),0) -> 0 | C66: 0 | D66: =IFERROR(VLOOKUP($A66,#REF!,8,0),0)*100 -> 0 | E66: MARYLIN ESMALTE PROF TONO 47
A67: EU-MARY-5 | B67: =IFERROR(VLOOKUP(A67,#REF!,9,0),0) -> 0 | C67: 0 | D67: =IFERROR(VLOOKUP($A67,#REF!,8,0),0)*100 -> 0 | E67: MARYLIN ESMALTE PROF TONO 5
A68: EU-MARY-51 | B68: =IFERROR(VLOOKUP(A68,#REF!,9,0),0) -> 0 | C68: 0 | D68: =IFERROR(VLOOKUP($A68,#REF!,8,0),0)*100 -> 0 | E68: MARYLIN ESMALTE PROF TONO 51
A69: EU-MARY-52 | B69: =IFERROR(VLOOKUP(A69,#REF!,9,0),0) -> 0 | C69: 0 | D69: =IFERROR(VLOOKUP($A69,#REF!,8,0),0)*100 -> 0 | E69: MARYLIN ESMALTE PROF TONO 52
A70: EU-MARY-53 | B70: =IFERROR(VLOOKUP(A70,#REF!,9,0),0) -> 0 | C70: 0 | D70: =IFERROR(VLOOKUP($A70,#REF!,8,0),0)*100 -> 0 | E70: MARYLIN ESMALTE PROF TONO 53
A71: EU-MARY-54 | B71: =IFERROR(VLOOKUP(A71,#REF!,9,0),0) -> 0 | C71: 0 | D71: =IFERROR(VLOOKUP($A71,#REF!,8,0),0)*100 -> 0 | E71: MARYLIN ESMALTE PROF TONO 54
A72: EU-MARY-57 | B72: =IFERROR(VLOOKUP(A72,#REF!,9,0),0) -> 0 | C72: 0 | D72: =IFERROR(VLOOKUP($A72,#REF!,8,0),0)*100 -> 0 | E72: MARYLIN ESMALTE PROF TONO 57
A73: EU-MARY-58 | B73: =IFERROR(VLOOKUP(A73,#REF!,9,0),0) -> 0 | C73: 0 | D73: =IFERROR(VLOOKUP($A73,#REF!,8,0),0)*100 -> 0 | E73: MARYLIN ESMALTE PROF TONO 58
A74: EU-MARY-61 | B74: =IFERROR(VLOOKUP(A74,#REF!,9,0),0) -> 0 | C74: 0 | D74: =IFERROR(VLOOKUP($A74,#REF!,8,0),0)*100 -> 0 | E74: MARYLIN ESMALTE PROF TONO 61
A75: EU-MARY-68 | B75: =IFERROR(VLOOKUP(A75,#REF!,9,0),0) -> 0 | C75: 0 | D75: =IFERROR(VLOOKUP($A75,#REF!,8,0),0)*100 -> 0 | E75: MARYLIN ESMALTE PROF TONO 68
A76: EU-MARY-69 | B76: =IFERROR(VLOOKUP(A76,#REF!,9,0),0) -> 0 | C76: 0 | D76: =IFERROR(VLOOKUP($A76,#REF!,8,0),0)*100 -> 0 | E76: MARYLIN ESMALTE PROF TONO 69
A77: EU-MARY-7 | B77: =IFERROR(VLOOKUP(A77,#REF!,9,0),0) -> 0 | C77: 0 | D77: =IFERROR(VLOOKUP($A77,#REF!,8,0),0)*100 -> 0 | E77: MARYLIN ESMALTE PROF TONO 7
A78: EU-MARY-70 | B78: =IFERROR(VLOOKUP(A78,#REF!,9,0),0) -> 0 | C78: 0 | D78: =IFERROR(VLOOKUP($A78,#REF!,8,0),0)*100 -> 0 | E78: MARYLIN ESMALTE PROF TONO 70
A79: EU-MARY-77 | B79: =IFERROR(VLOOKUP(A79,#REF!,9,0),0) -> 0 | C79: 0 | D79: =IFERROR(VLOOKUP($A79,#REF!,8,0),0)*100 -> 0 | E79: MARYLIN ESMALTE PROF TONO 77
A80: EU-MARY-79 | B80: =IFERROR(VLOOKUP(A80,#REF!,9,0),0) -> 0 | C80: 0 | D80: =IFERROR(VLOOKUP($A80,#REF!,8,0),0)*100 -> 0 | E80: MARYLIN ESMALTE PROF TONO 79
A81: EU-MARY-82 | B81: =IFERROR(VLOOKUP(A81,#REF!,9,0),0) -> 0 | C81: 0 | D81: =IFERROR(VLOOKUP($A81,#REF!,8,0),0)*100 -> 0 | E81: MARYLIN ESMALTE PROF TONO 82
A82: EU-MARY-83 | B82: =IFERROR(VLOOKUP(A82,#REF!,9,0),0) -> 0 | C82: 0 | D82: =IFERROR(VLOOKUP($A82,#REF!,8,0),0)*100 -> 0 | E82: MARYLIN ESMALTE PROF TONO 83
A83: EU-MARY-85 | B83: =IFERROR(VLOOKUP(A83,#REF!,9,0),0) -> 0 | C83: 0 | D83: =IFERROR(VLOOKUP($A83,#REF!,8,0),0)*100 -> 0 | E83: MARYLIN ESMALTE PROF TONO 85
A84: EU-MARY-89 | B84: =IFERROR(VLOOKUP(A84,#REF!,9,0),0) -> 0 | C84: 0 | D84: =IFERROR(VLOOKUP($A84,#REF!,8,0),0)*100 -> 0 | E84: MARYLIN ESMALTE PROF TONO 89
A85: EU-MARY-90 | B85: =IFERROR(VLOOKUP(A85,#REF!,9,0),0) -> 0 | C85: 0 | D85: =IFERROR(VLOOKUP($A85,#REF!,8,0),0)*100 -> 0 | E85: MARYLIN ESMALTE PROF TONO 90
A86: EU-MARY-91 | B86: =IFERROR(VLOOKUP(A86,#REF!,9,0),0) -> 0 | C86: 0 | D86: =IFERROR(VLOOKUP($A86,#REF!,8,0),0)*100 -> 0 | E86: MARYLIN ESMALTE PROF TONO 91
A87: EU-MARY-94 | B87: =IFERROR(VLOOKUP(A87,#REF!,9,0),0) -> 0 | C87: 0 | D87: =IFERROR(VLOOKUP($A87,#REF!,8,0),0)*100 -> 0 | E87: MARYLIN ESMALTE PROF TONO 94
A88: EU-MARY-96 | B88: =IFERROR(VLOOKUP(A88,#REF!,9,0),0) -> 0 | C88: 0 | D88: =IFERROR(VLOOKUP($A88,#REF!,8,0),0)*100 -> 0 | E88: MARYLIN ESMALTE PROF TONO 96
A89: EU-MARY-97 | B89: =IFERROR(VLOOKUP(A89,#REF!,9,0),0) -> 0 | C89: 0 | D89: =IFERROR(VLOOKUP($A89,#REF!,8,0),0)*100 -> 0 | E89: MARYLIN ESMALTE PROF TONO 97
A90: EU-MARY-98 | B90: =IFERROR(VLOOKUP(A90,#REF!,9,0),0) -> 0 | C90: 0 | D90: =IFERROR(VLOOKUP($A90,#REF!,8,0),0)*100 -> 0 | E90: MARYLIN ESMALTE PROF TONO 98
A91: EU-MARY-99 | B91: =IFERROR(VLOOKUP(A91,#REF!,9,0),0) -> 0 | C91: 0 | D91: =IFERROR(VLOOKUP($A91,#REF!,8,0),0)*100 -> 0 | E91: MARYLIN ESMALTE PROF TONO 99
A92: EU-MARY-BRILLO | B92: =IFERROR(VLOOKUP(A92,#REF!,9,0),0) -> 0 | C92: 0 | D92: =IFERROR(VLOOKUP($A92,#REF!,8,0),0)*100 -> 0 | E92: MARYLIN ESM PROF BRILLO
A93: HA-CSOFT-100 | B93: =IFERROR(VLOOKUP(A93,#REF!,9,0),0) -> 0 | C93: 0 | D93: =IFERROR(VLOOKUP($A93,#REF!,8,0),0)*100 -> 0 | E93: HISOPOS DE ALGODON COTTON SOFT-100 UND
A94: HIS-CSOFT-100 | B94: =IFERROR(VLOOKUP(A94,#REF!,9,0),0) -> 0 | C94: 0 | D94: =IFERROR(VLOOKUP($A94,#REF!,8,0),0)*100 -> 0 | E94: HISOPOS DE ALGODON 100 UND
A95: MARY-BSEC | B95: =IFERROR(VLOOKUP(A95,#REF!,9,0),0) -> 0 | C95: 0 | D95: =IFERROR(VLOOKUP($A95,#REF!,8,0),0)*100 -> 0 | E95: MARYLIN BRILLO SECANTE
A96: MARY-TAJO | B96: =IFERROR(VLOOKUP(A96,#REF!,9,0),0) -> 0 | C96: 0 | D96: =IFERROR(VLOOKUP($A96,#REF!,8,0),0)*100 -> 0 | E96: MARYLIN BASE AJO LIMON
A97: MARY-TFCOL | B97: =IFERROR(VLOOKUP(A97,#REF!,9,0),0) -> 0 | C97: 0 | D97: =IFERROR(VLOOKUP($A97,#REF!,8,0),0)*100 -> 0 | E97: MARYLIN BASE FORMULA COLOMB
A98: MARY-TFUS | B98: =IFERROR(VLOOKUP(A98,#REF!,9,0),0) -> 0 | C98: 0 | D98: =IFERROR(VLOOKUP($A98,#REF!,8,0),0)*100 -> 0 | E98: MARYLIN BASE FUS VITAMINAS
A99: MARY-TKROSA | B99: =IFERROR(VLOOKUP(A99,#REF!,9,0),0) -> 0 | C99: 0 | D99: =IFERROR(VLOOKUP($A99,#REF!,8,0),0)*100 -> 0 | E99: MARYLIN BASE KERATINA ROSADA
A100: ZDIF-FACTIMP | B100: =IFERROR(VLOOKUP($A100,'HOJA DE PEDIDO'!$C$14:$M$263,9,0),0) -> 0 | C100: 0 | D100: =IFERROR(VLOOKUP($A100,'HOJA DE PEDIDO'!$C$14:$M$263,8,0),0)*100 -> 0 | E100: DIFERENCIAS EN FACTURAS DE IMP'ORTACION
A101: AC-DOVOLEO-400 | B101: =IFERROR(VLOOKUP(A101,'HOJA DE PEDIDO'!$C$14:$M$263,9,0),0) -> 0 | C101: 0 | D101: =IFERROR(VLOOKUP($A101,'HOJA DE PEDIDO'!$C$14:$M$263,8,0),0)*100 -> 0 | E101: ACONDICIONADOR DOVE OLEO NUTRICION 12X400ML
A102: AC-DOVRECON-400 | B102: =IFERROR(VLOOKUP(A102,'HOJA DE PEDIDO'!$C$14:$M$263,9,0),0) -> 0 | C102: 0 | D102: =IFERROR(VLOOKUP($A102,'HOJA DE PEDIDO'!$C$14:$M$263,8,0),0)*100 -> 0 | E102: ACONDICIONADOR DOVE RECONSTRUCCION COMPLETA 12X400ML
A103: AC-SEDCERA-340 | B103: =IFERROR(VLOOKUP(A103,'HOJA DE PEDIDO'!$C$14:$M$263,9,0),0) -> 0 | C103: 0 | D103: =IFERROR(VLOOKUP($A103,'HOJA DE PEDIDO'!$C$14:$M$263,8,0),0)*100 -> 0 | E103: ACONDICIONADOR SEDAL CERAMIDAS 12X340ML
A104: AC-SEDKERA-340 | B104: =IFERROR(VLOOKUP(A104,'HOJA DE PEDIDO'!$C$14:$M$263,9,0),0) -> 0 | C104: 0 | D104: =IFERROR(VLOOKUP($A104,'HOJA DE PEDIDO'!$C$14:$M$263,8,0),0)*100 -> 0 | E104: ACONDICIONADOR SEDAL KERAT C/ANTIOX 12X340ML
A105: AC-SEDRIZOS-340 | B105: =IFERROR(VLOOKUP(A105,'HOJA DE PEDIDO'!$C$14:$M$263,9,0),0) -> 0 | C105: 0 | D105: =IFERROR(VLOOKUP($A105,'HOJA DE PEDIDO'!$C$14:$M$263,8,0),0)*100 -> 0 | E105: ACONDICIONADOR SEDAL RIZOS DEFINIDOS 12X340ML
A106: AC-SUAMIEL-360 | B106: =IFERROR(VLOOKUP(A106,'HOJA DE PEDIDO'!$C$14:$M$263,9,0),0) -> 0 | C106: 0 | D106: =IFERROR(VLOOKUP($A106,'HOJA DE PEDIDO'!$C$14:$M$263,8,0),0)*100 -> 0 | E106: SUAVE AC MIEL Y ALMENDRA 12X360ML
A107: AH-FRESH | B107: =IFERROR(VLOOKUP(A107,'HOJA DE PEDIDO'!$C$14:$M$263,9,0),0) -> 0 | C107: 0 | D107: =IFERROR(VLOOKUP($A107,'HOJA DE PEDIDO'!$C$14:$M$263,8,0),0)*100 -> 40 | E107: DEO ARM&HAMMER SOLID FRESH
A108: AH-GELCOOL | B108: =IFERROR(VLOOKUP(A108,'HOJA DE PEDIDO'!$C$14:$M$263,9,0),0) -> 0 | C108: 0 | D108: =IFERROR(VLOOKUP($A108,'HOJA DE PEDIDO'!$C$14:$M$263,8,0),0)*100 -> 40 | E108: DEO ARM&HAMMER GEL COOL BLAST
A109: AH-MAXPWER | B109: =IFERROR(VLOOKUP(A109,'HOJA DE PEDIDO'!$C$14:$M$263,9,0),0) -> 0 | C109: 0 | D109: =IFERROR(VLOOKUP($A109,'HOJA DE PEDIDO'!$C$14:$M$263,8,0),0)*100 -> 40 | E109: DEO ARM&HAMMER POWDER FRESH
A110: AH-MAXSPORT | B110: =IFERROR(VLOOKUP(A110,'HOJA DE PEDIDO'!$C$14:$M$263,9,0),0) -> 0 | C110: 0 | D110: =IFERROR(VLOOKUP($A110,'HOJA DE PEDIDO'!$C$14:$M$263,8,0),0)*100 -> 40 | E110: DEO ARM&HAMMER ACTIVE SPORT
A111: AH-UNSCENTED | B111: =IFERROR(VLOOKUP(A111,'HOJA DE PEDIDO'!$C$14:$M$263,9,0),0) -> 0 | C111: 0 | D111: =IFERROR(VLOOKUP($A111,'HOJA DE PEDIDO'!$C$14:$M$263,8,0),0)*100 -> 40 | E111: DEO ARM&HAMMER SOLID UNSCENTED
A112: AMMENS-BABY125 | B112: =IFERROR(VLOOKUP(A112,'HOJA DE PEDIDO'!$C$14:$M$263,9,0),0) -> 0 | C112: 0 | D112: =IFERROR(VLOOKUP($A112,'HOJA DE PEDIDO'!$C$14:$M$263,8,0),0)*100 -> 0 | E112: TALCO AMMENS BABY 125GR
A113: AMMENS-FRESH | B113: =IFERROR(VLOOKUP(A113,'HOJA DE PEDIDO'!$C$14:$M$263,9,0),0) -> 0 | C113: 0 | D113: =IFERROR(VLOOKUP($A113,'HOJA DE PEDIDO'!$C$14:$M$263,8,0),0)*100 -> 0 | E113: TALCO AMMENS FRESH 110 OZ
A114: AMMENS-FRESH125 | B114: =IFERROR(VLOOKUP(A114,'HOJA DE PEDIDO'!$C$14:$M$263,9,0),0) -> 0 | C114: 0 | D114: =IFERROR(VLOOKUP($A114,'HOJA DE PEDIDO'!$C$14:$M$263,8,0),0)*100 -> 0 | E114: TALCO AMMENS FRESH 125GR
A115: AMMENS-ORI | B115: =IFERROR(VLOOKUP(A115,'HOJA DE PEDIDO'!$C$14:$M$263,9,0),0) -> 0 | C115: 0 | D115: =IFERROR(VLOOKUP($A115,'HOJA DE PEDIDO'!$C$14:$M$263,8,0),0)*100 -> 0 | E115: TALCO AMMENS ORIGINAL 110 OZ
A116: AMMENS-ORI125 | B116: =IFERROR(VLOOKUP(A116,'HOJA DE PEDIDO'!$C$14:$M$263,9,0),0) -> 0 | C116: 0 | D116: =IFERROR(VLOOKUP($A116,'HOJA DE PEDIDO'!$C$14:$M$263,8,0),0)*100 -> 0 | E116: TALCO AMMENS ORIGINAL 125GR
A117: AMMENS-PIE60 | B117: =IFERROR(VLOOKUP(A117,'HOJA DE PEDIDO'!$C$14:$M$263,9,0),0) -> 0 | C117: 0 | D117: =IFERROR(VLOOKUP($A117,'HOJA DE PEDIDO'!$C$14:$M$263,8,0),0)*100 -> 0 | E117: TALCO AMMENS PIE 60GR
A118: BA-CSOFT-50 | B118: =IFERROR(VLOOKUP(A118,'HOJA DE PEDIDO'!$C$14:$M$263,9,0),0) -> 0 | C118: 0 | D118: =IFERROR(VLOOKUP($A118,'HOJA DE PEDIDO'!$C$14:$M$263,8,0),0)*100 -> 0 | E118: BOLAS DE ALG 50 UNIDADES COTTON SOFT
A119: CF-PONDBIO-100 | B119: =IFERROR(VLOOKUP(A119,'HOJA DE PEDIDO'!$C$14:$M$263,9,0),0) -> 0 | C119: 0 | D119: =IFERROR(VLOOKUP($A119,'HOJA DE PEDIDO'!$C$14:$M$263,8,0),0)*100 -> 0 | E119: PONDS CR BIOHIDRATANTE 24X100G
A120: CF-PONDBIO-50 | B120: =IFERROR(VLOOKUP(A120,'HOJA DE PEDIDO'!$C$14:$M$263,9,0),0) -> 0 | C120: 0 | D120: =IFERROR(VLOOKUP($A120,'HOJA DE PEDIDO'!$C$14:$M$263,8,0),0)*100 -> 0 | E120: PONDS CR BIOHIDRATANTE 24X50G
A121: CF-PONDC-45 | B121: =IFERROR(VLOOKUP(A121,'HOJA DE PEDIDO'!$C$14:$M$263,9,0),0) -> 0 | C121: 0 | D121: =IFERROR(VLOOKUP($A121,'HOJA DE PEDIDO'!$C$14:$M$263,8,0),0)*100 -> 0 | E121: PONDS CR C ORIGINAL 24X45G
A122: CF-PONDC-95 | B122: =IFERROR(VLOOKUP(A122,'HOJA DE PEDIDO'!$C$14:$M$263,9,0),0) -> 0 | C122: 0 | D122: =IFERROR(VLOOKUP($A122,'HOJA DE PEDIDO'!$C$14:$M$263,8,0),0)*100 -> 0 | E122: PONDS CR C ORIGINAL 24X95G
A123: CF-PONDC-SCH10 | B123: =IFERROR(VLOOKUP(A123,'HOJA DE PEDIDO'!$C$14:$M$263,9,0),0) -> 0 | C123: 0 | D123: =IFERROR(VLOOKUP($A123,'HOJA DE PEDIDO'!$C$14:$M$263,8,0),0)*100 -> 0 | E123: PONDS CR C ORIGINAL DPL 12X10X10G
A124: CF-PONDCLAR-100 | B124: =IFERROR(VLOOKUP(A124,'HOJA DE PEDIDO'!$C$14:$M$263,9,0),0) -> 0 | C124: 0 | D124: =IFERROR(VLOOKUP($A124,'HOJA DE PEDIDO'!$C$14:$M$263,8,0),0)*100 -> 0 | E124: PONDS CR CLARANT B3 GRASA 24X100G
A125: CF-PONDCLAR-50 | B125: =IFERROR(VLOOKUP(A125,'HOJA DE PEDIDO'!$C$14:$M$263,9,0),0) -> 0 | C125: 0 | D125: =IFERROR(VLOOKUP($A125,'HOJA DE PEDIDO'!$C$14:$M$263,8,0),0)*100 -> 0 | E125: PONDS CR CLARANT B3 GRASA 24X50G
A126: CF-PONDCPEP-100 | B126: =IFERROR(VLOOKUP(A126,'HOJA DE PEDIDO'!$C$14:$M$263,9,0),0) -> 0 | C126: 0 | D126: =IFERROR(VLOOKUP($A126,'HOJA DE PEDIDO'!$C$14:$M$263,8,0),0)*100 -> 0 | E126: PONDS CR C PEPINO 24X100G
A127: CF-PONDH-100 | B127: =IFERROR(VLOOKUP(A127,'HOJA DE PEDIDO'!$C$14:$M$263,9,0),0) -> 0 | C127: 0 | D127: =IFERROR(VLOOKUP($A127,'HOJA DE PEDIDO'!$C$14:$M$263,8,0),0)*100 -> 0 | E127: PONDS CR H 24X100G
A128: CF-PONDH-50 | B128: =IFERROR(VLOOKUP(A128,'HOJA DE PEDIDO'!$C$14:$M$263,9,0),0) -> 0 | C128: 0 | D128: =IFERROR(VLOOKUP($A128,'HOJA DE PEDIDO'!$C$14:$M$263,8,0),0)*100 -> 0 | E128: PONDS CR H 24X50G
A129: CF-PONDHC-2PK | B129: =IFERROR(VLOOKUP(A129,'HOJA DE PEDIDO'!$C$14:$M$263,9,0),0) -> 0 | C129: 0 | D129: =IFERROR(VLOOKUP($A129,'HOJA DE PEDIDO'!$C$14:$M$263,8,0),0)*100 -> 0 | E129: PONDS DUO PACK H100 C45
A130: CF-PONDREJ-100 | B130: =IFERROR(VLOOKUP(A130,'HOJA DE PEDIDO'!$C$14:$M$263,9,0),0) -> 0 | C130: 0 | D130: =IFERROR(VLOOKUP($A130,'HOJA DE PEDIDO'!$C$14:$M$263,8,0),0)*100 -> 0 | E130: PONDS CR REJUVENESS DIA 24X100G
A131: CF-PONDREJ-50 | B131: =IFERROR(VLOOKUP(A131,'HOJA DE PEDIDO'!$C$14:$M$263,9,0),0) -> 0 | C131: 0 | D131: =IFERROR(VLOOKUP($A131,'HOJA DE PEDIDO'!$C$14:$M$263,8,0),0)*100 -> 0 | E131: PONDS CR REJUVENESS 24X50G
A132: CF-PONDREJ-SCH10 | B132: =IFERROR(VLOOKUP(A132,'HOJA DE PEDIDO'!$C$14:$M$263,9,0),0) -> 0 | C132: 0 | D132: =IFERROR(VLOOKUP($A132,'HOJA DE PEDIDO'!$C$14:$M$263,8,0),0)*100 -> 0 | E132: PONDS CR REJUVENESS SCH 12X10X10G
A133: CF-PONDS-100 | B133: =IFERROR(VLOOKUP(A133,'HOJA DE PEDIDO'!$C$14:$M$263,9,0),0) -> 0 | C133: 0 | D133: =IFERROR(VLOOKUP($A133,'HOJA DE PEDIDO'!$C$14:$M$263,8,0),0)*100 -> 0 | E133: PONDS CR S HUMECTANTE NUTRITIVA 24X100G
A134: CF-PONDS-50 | B134: =IFERROR(VLOOKUP(A134,'HOJA DE PEDIDO'!$C$14:$M$263,9,0),0) -> 0 | C134: 0 | D134: =IFERROR(VLOOKUP($A134,'HOJA DE PEDIDO'!$C$14:$M$263,8,0),0)*100 -> 0 | E134: PONDS CR S HUMECTANTE NUTRITIVA 24X50G
A135: CF-PONDS-SCH10 | B135: =IFERROR(VLOOKUP(A135,'HOJA DE PEDIDO'!$C$14:$M$263,9,0),0) -> 0 | C135: 0 | D135: =IFERROR(VLOOKUP($A135,'HOJA DE PEDIDO'!$C$14:$M$263,8,0),0)*100 -> 0 | E135: PONDS CR S SCH 12X10X10G
A136: CP-SEDCERA-300 | B136: =IFERROR(VLOOKUP(A136,'HOJA DE PEDIDO'!$C$14:$M$263,9,0),0) -> 0 | C136: 0 | D136: =IFERROR(VLOOKUP($A136,'HOJA DE PEDIDO'!$C$14:$M$263,8,0),0)*100 -> 0 | E136: CREMA DE PEINAR SEDAL CERAMIDAS VIVI 12X300ML
A137: CP-SEDKERA-300 | B137: =IFERROR(VLOOKUP(A137,'HOJA DE PEDIDO'!$C$14:$M$263,9,0),0) -> 0 | C137: 0 | D137: =IFERROR(VLOOKUP($A137,'HOJA DE PEDIDO'!$C$14:$M$263,8,0),0)*100 -> 0 | E137: CREMA DE PEINAR SEDAL PEIN KERATINA C/ ANTIOX 12X300ML
A138: CP-SEDRIZOS-300 | B138: =IFERROR(VLOOKUP(A138,'HOJA DE PEDIDO'!$C$14:$M$263,9,0),0) -> 0 | C138: 0 | D138: =IFERROR(VLOOKUP($A138,'HOJA DE PEDIDO'!$C$14:$M$263,8,0),0)*100 -> 0 | E138: CREMA DE PEINAR SEDAL RIZOS DEFINIDOS 12X300ML
A139: DA-CSOFT-70 | B139: =IFERROR(VLOOKUP(A139,'HOJA DE PEDIDO'!$C$14:$M$263,9,0),0) -> 0 | C139: 0 | D139: =IFERROR(VLOOKUP($A139,'HOJA DE PEDIDO'!$C$14:$M$263,8,0),0)*100 -> 0 | E139: DISCOS DESMAQ DE ALG COTTON SOFT -70 UND
A140: DEO-AXBS-ANARC | B140: =IFERROR(VLOOKUP(A140,'HOJA DE PEDIDO'!$C$14:$M$263,9,0),0) -> 0 | C140: 0 | D140: =IFERROR(VLOOKUP($A140,'HOJA DE PEDIDO'!$C$14:$M$263,8,0),0)*100 -> 0 | E140: AXE BODY SPRAY ANARCHY MALE 113G
A141: DEO-AXBS-BLCK | B141: =IFERROR(VLOOKUP(A141,'HOJA DE PEDIDO'!$C$14:$M$263,9,0),0) -> 0 | C141: 0 | D141: =IFERROR(VLOOKUP($A141,'HOJA DE PEDIDO'!$C$14:$M$263,8,0),0)*100 -> 0 | E141: AXE BODY SPRAY BLACK 113G
A142: DEO-AXBS-DARK | B142: =IFERROR(VLOOKUP(A142,'HOJA DE PEDIDO'!$C$14:$M$263,9,0),0) -> 0 | C142: 0 | D142: =IFERROR(VLOOKUP($A142,'HOJA DE PEDIDO'!$C$14:$M$263,8,0),0)*100 -> 0 | E142: AXE BODY SPRAY DARK TEMPTATION 113G
A143: DEO-DOVDERM-A150 | B143: =IFERROR(VLOOKUP(A143,'HOJA DE PEDIDO'!$C$14:$M$263,9,0),0) -> 0 | C143: 0 | D143: =IFERROR(VLOOKUP($A143,'HOJA DE PEDIDO'!$C$14:$M$263,8,0),0)*100 -> 0 | E143: DOVE DEO AER AP DERMO ACLARANT 12X89G/150ML
A144: DEO-DOVDERM-R50 | B144: =IFERROR(VLOOKUP(A144,'HOJA DE PEDIDO'!$C$14:$M$263,9,0),0) -> 0 | C144: 0 | D144: =IFERROR(VLOOKUP($A144,'HOJA DE PEDIDO'!$C$14:$M$263,8,0),0)*100 -> 0 | E144: DOVE DEO ROL DERMO ACLARANT 12X50ML
A145: DEO-DOVDERM-S50 | B145: =IFERROR(VLOOKUP(A145,'HOJA DE PEDIDO'!$C$14:$M$263,9,0),0) -> 0 | C145: 0 | D145: =IFERROR(VLOOKUP($A145,'HOJA DE PEDIDO'!$C$14:$M$263,8,0),0)*100 -> 0 | E145: DOVE DEO STICK DERMO ACLARANT 12X50G
A146: DEO-DOVMINV-A150 | B146: =IFERROR(VLOOKUP(A146,'HOJA DE PEDIDO'!$C$14:$M$263,9,0),0) -> 0 | C146: 0 | D146: =IFERROR(VLOOKUP($A146,'HOJA DE PEDIDO'!$C$14:$M$263,8,0),0)*100 -> 0 | E146: DOVE DEO AER MEN INVI DRY12X89G/150ML
A147: DEO-DOVMINV-S50 | B147: =IFERROR(VLOOKUP(A147,'HOJA DE PEDIDO'!$C$14:$M$263,9,0),0) -> 0 | C147: 0 | D147: =IFERROR(VLOOKUP($A147,'HOJA DE PEDIDO'!$C$14:$M$263,8,0),0)*100 -> 0 | E147: DOVE DEO STICK INVISIBLE DRY FM 12X50G
A148: DEO-DOVORG-A150 | B148: =IFERROR(VLOOKUP(A148,'HOJA DE PEDIDO'!$C$14:$M$263,9,0),0) -> 0 | C148: 0 | D148: =IFERROR(VLOOKUP($A148,'HOJA DE PEDIDO'!$C$14:$M$263,8,0),0)*100 -> 0 | E148: DOVE DEO AER AP ORIGINAL 12X89G/150ML
A149: DEO-DOVORG-R50 | B149: =IFERROR(VLOOKUP(A149,'HOJA DE PEDIDO'!$C$14:$M$263,9,0),0) -> 0 | C149: 0 | D149: =IFERROR(VLOOKUP($A149,'HOJA DE PEDIDO'!$C$14:$M$263,8,0),0)*100 -> 0 | E149: DOVE DEO ROLLON ORIGINAL 12X50ML
A150: DEO-DOVORG-S50 | B150: =IFERROR(VLOOKUP(A150,'HOJA DE PEDIDO'!$C$14:$M$263,9,0),0) -> 0 | C150: 0 | D150: =IFERROR(VLOOKUP($A150,'HOJA DE PEDIDO'!$C$14:$M$263,8,0),0)*100 -> 0 | E150: DOVE DEO STICK ORIGINAL 12X50G
A151: DEO-REXAB-A150 | B151: =IFERROR(VLOOKUP(A151,'HOJA DE PEDIDO'!$C$14:$M$263,9,0),0) -> 0 | C151: 0 | D151: =IFERROR(VLOOKUP($A151,'HOJA DE PEDIDO'!$C$14:$M$263,8,0),0)*100 -> 0 | E151: REXONA DEO W AER ANTIB 12X90GR/150ML
A152: DEO-REXBAMB-A150 | B152: =IFERROR(VLOOKUP(A152,'HOJA DE PEDIDO'!$C$14:$M$263,9,0),0) -> 0 | C152: 0 | D152: =IFERROR(VLOOKUP($A152,'HOJA DE PEDIDO'!$C$14:$M$263,8,0),0)*100 -> 0 | E152: REXONA DEO AER BAMB AL VERA 12X90GR/150ML
A153: DEO-REXCOTT-A150 | B153: =IFERROR(VLOOKUP(A153,'HOJA DE PEDIDO'!$C$14:$M$263,9,0),0) -> 0 | C153: 0 | D153: =IFERROR(VLOOKUP($A153,'HOJA DE PEDIDO'!$C$14:$M$263,8,0),0)*100 -> 0 | E153: REXONA DEO AER AP COTTON 12X90GR/150ML
A154: DEO-REXCOTT-S50 | B154: =IFERROR(VLOOKUP(A154,'HOJA DE PEDIDO'!$C$14:$M$263,9,0),0) -> 0 | C154: 0 | D154: =IFERROR(VLOOKUP($A154,'HOJA DE PEDIDO'!$C$14:$M$263,8,0),0)*100 -> 0 | E154: REXONA DEO STICK AP COTTON 12X50GR
A155: DEO-REXEFFI-A153 | B155: =IFERROR(VLOOKUP(A155,'HOJA DE PEDIDO'!$C$14:$M$263,9,0),0) -> 0 | C155: 0 | D155: =IFERROR(VLOOKUP($A155,'HOJA DE PEDIDO'!$C$14:$M$263,8,0),0)*100 -> 0 | E155: REXONA DEO AER EFFICIENT 12X88GR/153ML
A156: DEO-REXMAB-A150 | B156: =IFERROR(VLOOKUP(A156,'HOJA DE PEDIDO'!$C$14:$M$263,9,0),0) -> 0 | C156: 0 | D156: =IFERROR(VLOOKUP($A156,'HOJA DE PEDIDO'!$C$14:$M$263,8,0),0)*100 -> 0 | E156: REXONA DEO MEN AER AB INV 12X90GR/150ML
A157: DEO-REXMAB-R50 | B157: =IFERROR(VLOOKUP(A157,'HOJA DE PEDIDO'!$C$14:$M$263,9,0),0) -> 0 | C157: 0 | D157: =IFERROR(VLOOKUP($A157,'HOJA DE PEDIDO'!$C$14:$M$263,8,0),0)*100 -> 0 | E157: REXONA DEO MEN ROLLON AB INV 12X50ML
A158: DEO-REXMAB-S50 | B158: =IFERROR(VLOOKUP(A158,'HOJA DE PEDIDO'!$C$14:$M$263,9,0),0) -> 0 | C158: 0 | D158: =IFERROR(VLOOKUP($A158,'HOJA DE PEDIDO'!$C$14:$M$263,8,0),0)*100 -> 0 | E158: REXONA DEO MEN STICK ANTIB INV 12X50GR
A159: DEO-REXSPFAN-A150 | B159: =IFERROR(VLOOKUP(A159,'HOJA DE PEDIDO'!$C$14:$M$263,9,0),0) -> 0 | C159: 0 | D159: =IFERROR(VLOOKUP($A159,'HOJA DE PEDIDO'!$C$14:$M$263,8,0),0)*100 -> 0 | E159: REXONA DEO AER AP SPORTFAN 12X90GR/150ML
A160: DEO-REXSPFAN-R50 | B160: =IFERROR(VLOOKUP(A160,'HOJA DE PEDIDO'!$C$14:$M$263,9,0),0) -> 0 | C160: 0 | D160: =IFERROR(VLOOKUP($A160,'HOJA DE PEDIDO'!$C$14:$M$263,8,0),0)*100 -> 0 | E160: REXONA DEO ROLLON AP SPORTFAN 12X50ML
A161: DEO-REXSPFAN-S50 | B161: =IFERROR(VLOOKUP(A161,'HOJA DE PEDIDO'!$C$14:$M$263,9,0),0) -> 0 | C161: 0 | D161: =IFERROR(VLOOKUP($A161,'HOJA DE PEDIDO'!$C$14:$M$263,8,0),0)*100 -> 0 | E161: REXONA DEO STICK AP SPORTFAN 12X50GR
A162: DEO-REXV8-A150 | B162: =IFERROR(VLOOKUP(A162,'HOJA DE PEDIDO'!$C$14:$M$263,9,0),0) -> 0 | C162: 0 | D162: =IFERROR(VLOOKUP($A162,'HOJA DE PEDIDO'!$C$14:$M$263,8,0),0)*100 -> 0 | E162: REXONA DEO AER AP V8 12X90GR/150ML
A163: DEO-REXV8-R50 | B163: =IFERROR(VLOOKUP(A163,'HOJA DE PEDIDO'!$C$14:$M$263,9,0),0) -> 0 | C163: 0 | D163: =IFERROR(VLOOKUP($A163,'HOJA DE PEDIDO'!$C$14:$M$263,8,0),0)*100 -> 0 | E163: REXONA DEO ROLLON AP V8 12X50ML
A164: DEO-REXV8-S50 | B164: =IFERROR(VLOOKUP(A164,'HOJA DE PEDIDO'!$C$14:$M$263,9,0),0) -> 0 | C164: 0 | D164: =IFERROR(VLOOKUP($A164,'HOJA DE PEDIDO'!$C$14:$M$263,8,0),0)*100 -> 0 | E164: REXONA DEO STICK AP V8 12X50GR
A165: GA-PUR100 | B165: =IFERROR(VLOOKUP(A165,'HOJA DE PEDIDO'!$C$14:$M$263,9,0),0) -> 0 | C165: 0 | D165: =IFERROR(VLOOKUP($A165,'HOJA DE PEDIDO'!$C$14:$M$263,8,0),0)*100 -> 0 | E165: GEL ANTIBACTERIAL PURISSIMA 100GR
A166: GA-PUR1GAL | B166: =IFERROR(VLOOKUP(A166,'HOJA DE PEDIDO'!$C$14:$M$263,9,0),0) -> 0 | C166: 0 | D166: =IFERROR(VLOOKUP($A166,'HOJA DE PEDIDO'!$C$14:$M$263,8,0),0)*100 -> 0 | E166: GEL ANTIBACTERIAL PURISSIMA 3,750 GR (1GAL)
A167: GA-PUR200 | B167: =IFERROR(VLOOKUP(A167,'HOJA DE PEDIDO'!$C$14:$M$263,9,0),0) -> 0 | C167: 0 | D167: =IFERROR(VLOOKUP($A167,'HOJA DE PEDIDO'!$C$14:$M$263,8,0),0)*100 -> 0 | E167: GEL ANTIBACTERIAL PURISSIMA 200GR
A168: HUG-TOAV48 | B168: =IFERROR(VLOOKUP(A168,'HOJA DE PEDIDO'!$C$14:$M$263,9,0),0) -> 0 | C168: 0 | D168: =IFERROR(VLOOKUP($A168,'HOJA DE PEDIDO'!$C$14:$M$263,8,0),0)*100 -> 0 | E168: HUGGIES TOALL. HUM LIMPIEZA EFEC. X 48
A169: HUG-TOAX80 | B169: =IFERROR(VLOOKUP(A169,'HOJA DE PEDIDO'!$C$14:$M$263,9,0),0) -> 0 | C169: 0 | D169: =IFERROR(VLOOKUP($A169,'HOJA DE PEDIDO'!$C$14:$M$263,8,0),0)*100 -> 0 | E169: HUGGIES TOALL. HUM LIMPIEZA COT. X 80
A170: JB-DOVCOCO-90 | B170: =IFERROR(VLOOKUP(A170,'HOJA DE PEDIDO'!$C$14:$M$263,9,0),0) -> 0 | C170: 0 | D170: =IFERROR(VLOOKUP($A170,'HOJA DE PEDIDO'!$C$14:$M$263,8,0),0)*100 -> 0 | E170: DOVE JAB LECHE DE COCO 48X90G
A171: JB-DOVORG-90 | B171: =IFERROR(VLOOKUP(A171,'HOJA DE PEDIDO'!$C$14:$M$263,9,0),0) -> 0 | C171: 0 | D171: =IFERROR(VLOOKUP($A171,'HOJA DE PEDIDO'!$C$14:$M$263,8,0),0)*100 -> 0 | E171: DOVE JAB ORIGINAL 48X90G
A172: JB-DOVVAN-90 | B172: =IFERROR(VLOOKUP(A172,'HOJA DE PEDIDO'!$C$14:$M$263,9,0),0) -> 0 | C172: 0 | D172: =IFERROR(VLOOKUP($A172,'HOJA DE PEDIDO'!$C$14:$M$263,8,0),0)*100 -> 0 | E172: DOVE JAB KAR Y VAINILLA 48X90G
A173: JB-LUXJAZ-125 | B173: =IFERROR(VLOOKUP(A173,'HOJA DE PEDIDO'!$C$14:$M$263,9,0),0) -> 0 | C173: 0 | D173: =IFERROR(VLOOKUP($A173,'HOJA DE PEDIDO'!$C$14:$M$263,8,0),0)*100 -> 0 | E173: LUX JABON BARRA JAZMIN 48X125G
A174: JB-LUXORQ-125 | B174: =IFERROR(VLOOKUP(A174,'HOJA DE PEDIDO'!$C$14:$M$263,9,0),0) -> 0 | C174: 0 | D174: =IFERROR(VLOOKUP($A174,'HOJA DE PEDIDO'!$C$14:$M$263,8,0),0)*100 -> 0 | E174: LUX JABON BARRA ORQUID NEGRA FR 48X125G
A175: JB-LUXROSA-125 | B175: =IFERROR(VLOOKUP(A175,'HOJA DE PEDIDO'!$C$14:$M$263,9,0),0) -> 0 | C175: 0 | D175: =IFERROR(VLOOKUP($A175,'HOJA DE PEDIDO'!$C$14:$M$263,8,0),0)*100 -> 0 | E175: LUX JABON BARRA ROSAS FR 48X125G
A176: JB-LUXVAN-125 | B176: =IFERROR(VLOOKUP(A176,'HOJA DE PEDIDO'!$C$14:$M$263,9,0),0) -> 0 | C176: 0 | D176: =IFERROR(VLOOKUP($A176,'HOJA DE PEDIDO'!$C$14:$M$263,8,0),0)*100 -> 0 | E176: LUX JABON BARRA VAINILLA FR 48X125G
A177: JB-REX7PACK-120 | B177: =IFERROR(VLOOKUP(A177,'HOJA DE PEDIDO'!$C$14:$M$263,9,0),0) -> 0 | C177: 0 | D177: =IFERROR(VLOOKUP($A177,'HOJA DE PEDIDO'!$C$14:$M$263,8,0),0)*100 -> 0 | E177: REXONA JABON BARRA 7 PACK 120G
A178: JB-REXAVE-120 | B178: =IFERROR(VLOOKUP(A178,'HOJA DE PEDIDO'!$C$14:$M$263,9,0),0) -> 0 | C178: 0 | D178: =IFERROR(VLOOKUP($A178,'HOJA DE PEDIDO'!$C$14:$M$263,8,0),0)*100 -> 0 | E178: REXONA JABON BARRA ANTIB AVENA 48X120G
A179: JB-REXBAMB-120 | B179: =IFERROR(VLOOKUP(A179,'HOJA DE PEDIDO'!$C$14:$M$263,9,0),0) -> 0 | C179: 0 | D179: =IFERROR(VLOOKUP($A179,'HOJA DE PEDIDO'!$C$14:$M$263,8,0),0)*100 -> 0 | E179: REXONA JABON BARRA ANTIB BAMBOO 48X120G
A180: JB-REXFRESH-120 | B180: =IFERROR(VLOOKUP(A180,'HOJA DE PEDIDO'!$C$14:$M$263,9,0),0) -> 0 | C180: 0 | D180: =IFERROR(VLOOKUP($A180,'HOJA DE PEDIDO'!$C$14:$M$263,8,0),0)*100 -> 0 | E180: REXONA JABON BARRA ANTIB FRESH 48X120G
A181: JB-REXLIMP-120 | B181: =IFERROR(VLOOKUP(A181,'HOJA DE PEDIDO'!$C$14:$M$263,9,0),0) -> 0 | C181: 0 | D181: =IFERROR(VLOOKUP($A181,'HOJA DE PEDIDO'!$C$14:$M$263,8,0),0)*100 -> 0 | E181: REXONA JABON BARRA ANTIB LIMPIEZA 48X120G
A182: KOTEX-DIA | B182: =IFERROR(VLOOKUP(A182,'HOJA DE PEDIDO'!$C$14:$M$263,9,0),0) -> 0 | C182: 0 | D182: =IFERROR(VLOOKUP($A182,'HOJA DE PEDIDO'!$C$14:$M$263,8,0),0)*100 -> 0 | E182: KOTEX TOALLA SAN DIURNA
A183: KOTEX-LIN15 | B183: =IFERROR(VLOOKUP(A183,'HOJA DE PEDIDO'!$C$14:$M$263,9,0),0) -> 0 | C183: 0 | D183: =IFERROR(VLOOKUP($A183,'HOJA DE PEDIDO'!$C$14:$M$263,8,0),0)*100 -> 0 | E183: KOTEX PROTECTOR DIARIO X15
A184: KOTEX-LIN50 | B184: =IFERROR(VLOOKUP(A184,'HOJA DE PEDIDO'!$C$14:$M$263,9,0),0) -> 0 | C184: 0 | D184: =IFERROR(VLOOKUP($A184,'HOJA DE PEDIDO'!$C$14:$M$263,8,0),0)*100 -> 7 | E184: KOTEX PROTECTOR DIARIO X50
A185: KOTEX-LINAB50 | B185: =IFERROR(VLOOKUP(A185,'HOJA DE PEDIDO'!$C$14:$M$263,9,0),0) -> 0 | C185: 0 | D185: =IFERROR(VLOOKUP($A185,'HOJA DE PEDIDO'!$C$14:$M$263,8,0),0)*100 -> 0 | E185: KOTEX LINER ANTIBACTERIAL 12X50
A186: KOTEX-LINPURE50 | B186: =IFERROR(VLOOKUP(A186,'HOJA DE PEDIDO'!$C$14:$M$263,9,0),0) -> 0 | C186: 0 | D186: =IFERROR(VLOOKUP($A186,'HOJA DE PEDIDO'!$C$14:$M$263,8,0),0)*100 -> 0 | E186: KOTEX LINER PURE 12X50
A187: KOTEX-NOC | B187: =IFERROR(VLOOKUP(A187,'HOJA DE PEDIDO'!$C$14:$M$263,9,0),0) -> 0 | C187: 0 | D187: =IFERROR(VLOOKUP($A187,'HOJA DE PEDIDO'!$C$14:$M$263,8,0),0)*100 -> 0 | E187: KOTEX TOALLA SAN NOC
A188: KOTEX-TAMM | B188: =IFERROR(VLOOKUP(A188,'HOJA DE PEDIDO'!$C$14:$M$263,9,0),0) -> 0 | C188: 0 | D188: =IFERROR(VLOOKUP($A188,'HOJA DE PEDIDO'!$C$14:$M$263,8,0),0)*100 -> 7.5 | E188: TAMPONES KOTEX MEDIUM 12X8 SPORT TTX
A189: KOTEX-TAMS | B189: =IFERROR(VLOOKUP(A189,'HOJA DE PEDIDO'!$C$14:$M$263,9,0),0) -> 0 | C189: 0 | D189: =IFERROR(VLOOKUP($A189,'HOJA DE PEDIDO'!$C$14:$M$263,8,0),0)*100 -> 7.5 | E189: TAMPONES KOTEX SUPER 12X8 TTX
A190: KOTEX-UFAB-R5 | B190: =IFERROR(VLOOKUP(A190,'HOJA DE PEDIDO'!$C$14:$M$263,9,0),0) -> 0 | C190: 0 | D190: =IFERROR(VLOOKUP($A190,'HOJA DE PEDIDO'!$C$14:$M$263,8,0),0)*100 -> 0 | E190: KOTEX TOALLA FEM UF AB 10X5X5 RISTRA
A191: KOTEX-UFNOCT | B191: =IFERROR(VLOOKUP(A191,'HOJA DE PEDIDO'!$C$14:$M$263,9,0),0) -> 0 | C191: 0 | D191: =IFERROR(VLOOKUP($A191,'HOJA DE PEDIDO'!$C$14:$M$263,8,0),0)*100 -> 0 | E191: KOTEX TOALLA FEM UF DIA&NOCHE X8UND
A192: KOTEX-UFPURE | B192: =IFERROR(VLOOKUP(A192,'HOJA DE PEDIDO'!$C$14:$M$263,9,0),0) -> 0 | C192: 0 | D192: =IFERROR(VLOOKUP($A192,'HOJA DE PEDIDO'!$C$14:$M$263,8,0),0)*100 -> 0 | E192: KOTEX TOALLA FEM UF PURE 12X10
A193: KOTEX-ULTRAF | B193: =IFERROR(VLOOKUP(A193,'HOJA DE PEDIDO'!$C$14:$M$263,9,0),0) -> 0 | C193: 0 | D193: =IFERROR(VLOOKUP($A193,'HOJA DE PEDIDO'!$C$14:$M$263,8,0),0)*100 -> 0 | E193: KOTEX TOALLA ULTRAFINAX10
A194: LC-VASEALOE-295 | B194: =IFERROR(VLOOKUP(A194,'HOJA DE PEDIDO'!$C$14:$M$263,9,0),0) -> 0 | C194: 0 | D194: =IFERROR(VLOOKUP($A194,'HOJA DE PEDIDO'!$C$14:$M$263,8,0),0)*100 -> 0 | E194: LOCION CORPORAL VASELINE ALOE SOOTHE 295ML
A195: LC-VASECOCOA-295 | B195: =IFERROR(VLOOKUP(A195,'HOJA DE PEDIDO'!$C$14:$M$263,9,0),0) -> 0 | C195: 0 | D195: =IFERROR(VLOOKUP($A195,'HOJA DE PEDIDO'!$C$14:$M$263,8,0),0)*100 -> 0 | E195: LOCION CORPORAL VASELINE COCOA RADIANT 295ML
A196: LC-VASENOUR-295 | B196: =IFERROR(VLOOKUP(A196,'HOJA DE PEDIDO'!$C$14:$M$263,9,0),0) -> 0 | C196: 0 | D196: =IFERROR(VLOOKUP($A196,'HOJA DE PEDIDO'!$C$14:$M$263,8,0),0)*100 -> 0 | E196: LOCION CORPORAL VASELINE NOURISH + RESTORE 295ML
A197: NAIR-ALOE | B197: =IFERROR(VLOOKUP(A197,'HOJA DE PEDIDO'!$C$14:$M$263,9,0),0) -> 0 | C197: 0 | D197: =IFERROR(VLOOKUP($A197,'HOJA DE PEDIDO'!$C$14:$M$263,8,0),0)*100 -> 0 | E197: LOCION DEP NAIR CON ALOE
A198: NAIR-BABYOIL | B198: =IFERROR(VLOOKUP(A198,'HOJA DE PEDIDO'!$C$14:$M$263,9,0),0) -> 0 | C198: 0 | D198: =IFERROR(VLOOKUP($A198,'HOJA DE PEDIDO'!$C$14:$M$263,8,0),0)*100 -> 0 | E198: LOCION DEP NAIR BABY OIL
A199: NAIR-COCOA | B199: =IFERROR(VLOOKUP(A199,'HOJA DE PEDIDO'!$C$14:$M$263,9,0),0) -> 0 | C199: 0 | D199: =IFERROR(VLOOKUP($A199,'HOJA DE PEDIDO'!$C$14:$M$263,8,0),0)*100 -> 0 | E199: LOCION DEP NAIR COCOA
A200: NAIR-DEPMIXTO | B200: =IFERROR(VLOOKUP(A200,'HOJA DE PEDIDO'!$C$14:$M$263,9,0),0) -> 0 | C200: 0 | D200: =IFERROR(VLOOKUP($A200,'HOJA DE PEDIDO'!$C$14:$M$263,8,0),0)*100 -> 0 | E200: LOCION DEP NAIR MIXTO
... 77 more rows

Sheet inventario (hidden)
B2: CODIGO | C2: DESCRIPCION | D2: MODELO | E2: REFERENCIA | F2: ALMACEN | G2: STOCK ACTUAL | H2: BULTOS
B3: 101010040015 | C3: AMMENS TALCO BABY 12X125G | D3: AMMENS-BABY125 | E3: 7502221182181 | F3: 1 | G3: 579 | H3: BUL
B4: 101010040017 | C4: AMMENS TALCO FRESH 12X125G | D4: AMMENS-FRESH125 | E4: 7502221182167 | F4: 1 | G4: 722 | H4: BUL
B5: 101010040019 | C5: AMMENS TALCO ORIGINAL 12X125G | D5: AMMENS-ORI125 | E5: 7502221182143 | F5: 1 | G5: 682 | H5: BUL
B6: 101010040020 | C6: AMMENS TALCO PIE 12X60G | D6: AMMENS-PIE60 | E6: 7502221184437 | F6: 1 | G6: 720 | H6: BUL
B7: 202020150085 | C7: A&H DETER LIQ JARDIN FLOR 8X1.47L | D7: DL-AHJARDIN | E7: REPETID | F7: 1 | G7: 2 | H7: BUL
B8: 301020030057 | C8: AXE DEO STICK COLLISION 12X50G | D8: DEO-AXSTI-COLL | E8: 75060206 | F8: 1 | G8: 601 | H8: BUL
B9: 301020030197 | C9: AXE DEO STICK BLACK 12X50G | D9: DEO-AXSTI-BLK | E9: 75048082 | F9: 1 | G9: 488 | H9: BUL
B10: 301020120048 | C10: AXE BS APOLLO 12X150ML | D10: DEO-AXBS-APOLLO | E10: 7791293025780 | F10: 1 | G10: 1402 | H10: BUL
B11: 301020120050 | C11: AXE BS BLACK NIGHT 12X150ML | D11: DEO-AXBS-BLKNGHT | E11: 7791293032153 | F11: 1 | G11: 3099 | H11: BUL
B12: 301020120051 | C12: AXE BS COLLISION 12X150ML | D12: DEO-AXBS-COLL | E12: 7506306202832 | F12: 1 | G12: 2324 | H12: BUL
B13: 301020120053 | C13: AXE BS DARK TEMPTATION 12X150ML | D13: DEO-AXBS-DARKT | E13: 7791293025797 | F13: 1 | G13: 2114 | H13: BUL
B14: 301020120054 | C14: AXE BS EXCITE 12X150ML | D14: DEO-AXBS-EXCITE | E14: 7791293025803 | F14: 1 | G14: 2777 | H14: BUL
B15: 301020120055 | C15: AXE BS FUSION 12X150ML | D15: DEO-AXBS-FUSION | E15: 7791293025810 | F15: 1 | G15: 1970 | H15: BUL
B16: 501010050021 | C16: COTTON SOFT BOLAS ALG 40X50UND | D16: BA-CSOFT-50 | F16: 1 | G16: 96 | H16: BUL
B17: 501010050203 | C17: COTTON SOFT HISOPOS 100UND | D17: HA-CSOFT-100 | E17: 5115203 | F17: 1 | G17: 2 | H17: UND
B18: 601020030061 | C18: DOVE DEO STICK DERMO ACLARANT 12X50G | D18: DEO-DOVDERM-S50 | E18: 75034238 | F18: 1 | G18: 654 | H18: BUL
B19: 601020130059 | C19: DOVE DEO AER AP DERMO ACLARANT 12X89G/150ML | D19: DEO-DOVDERM-A150 | E19: 7506306241152 | F19: 1 | G19: 277 | H19: BUL
B20: 601020130062 | C20: DOVE DEO AER MEN INVI DRY12X89G/150ML | D20: DEO-DOVMINV-A150 | E20: 7791293022819 | F20: 1 | G20: 143 | H20: BUL
B21: 601020130064 | C21: DOVE DEO WOMEN AER ORIGINAL BIPACK 6X2X89G/150ML | D21: DEO-DOVORG-2PK | E21: 7702006201032 | F21: 1 | G21: 119 | H21: BUL
B22: 601020130065 | C22: DOVE DEO AER AP ORIGINAL 12X89G/150ML | D22: DEO-DOVORG-A150 | E22: 7506306241183 | F22: 1 | G22: 905 | H22: BUL
B23: 601020140060 | C23: DOVE DEO ROLLON DERMO ACLARANT 12X50ML | D23: DEO-DOVDERM-R50 | E23: 78928503 | F23: 1 | G23: 383 | H23: BUL
B24: 601030010001 | C24: DOVE ACONDICIONADOR OLEO NUTRICION 12X400ML | D24: AC-DOVOLEO-400 | E24: 7891150017337 | F24: 1 | G24: 821 | H24: BUL
B25: 601030010002 | C25: DOVE ACONDICIONADOR RECONS COMPLETA 12X400ML | D25: AC-DOVRECON-400 | F25: 1 | G25: 1045 | H25: BUL
B26: 601030010218 | C26: DOVE BAÑO DE CREMA CONCENTRADO RECONS 6X300G | D26: BC-DOVRECON-300 | E26: 7891150058613 | F26: 1 | G26: 230 | H26: BUL
B27: 601030340174 | C27: DOVE SHAMPOO RECONS COMPLETA 12X400ML | D27: SH-DOVRECON-400 | E27: 7791293005010 | F27: 1 | G27: 1122 | H27: BUL
B28: 601050180094 | C28: DOVE JABON ORIGINAL 48X90G | D28: JB-DOVORG-90 | E28: 7898422746759 | F28: 1 | G28: 1142 | H28: BUL
B29: 601050180095 | C29: DOVE JABON KAR Y VAINILLA 48X90G | D29: JB-DOVVAN-90 | E29: 7891150019560 | F29: 1 | G29: 1248 | H29: BUL
B30: 702010230130 | C30: ENERGIZER LINTERNA 50 LED + AAAX6 | D30: LIN-EGZR-AAAX6 | F30: 1 | G30: 1585 | H30: BUL
B31: 702010290154 | C31: ENERGIZER BAT ALK 24X9V | D31: PIL-EGZR-9V | E31: 39800013613 | F31: 1 | G31: 330 | H31: BUL
B32: 702010290156 | C32: ENERGIZER BAT ALK 24XAAAX2 | D32: PIL-EGZR-AAAX2 | E32: 39800014009 | F32: 1 | G32: 109 | H32: BUL
B33: 702010290158 | C33: ENERGIZER BAT ALK 24XAAX2 | D33: PIL-EGZR-AAX2 | E33: 39800015464 | F33: 1 | G33: 126 | H33: BUL
B34: 702010290161 | C34: ENERGIZER BAT ALK 12XDX2 | D34: PIL-EGZR-DX2 | E34: 39800011398 | F34: 1 | G34: 1 | H34: BUL
B35: 705010370202 | C35: EXHIBIDOR ENERGIZER PUNTA DE GONDOLA | D35: END-LG-4SV | F35: 1 | G35: 25 | H35: UND
B36: 705010370207 | C36: ENERGIZER EXHIBIDOR DE PIE / ISLA (FS-SM) | D36: ISL-XSM | F36: 1 | G36: 5 | H36: UND
B37: 705010370213 | C37: ENERGIZER EXHIBIDOR RISTRA PLASTICA (CS-PLSTC) | D37: CS-PLSTC | F37: 1 | G37: 205 | H37: UND
B38: 802010290163 | C38: EVEREADY BAT 24XAAX4 | D38: PIL-EVR-AAX4 | E38: 39800040008 | F38: 1 | G38: 32 | H38: BUL
B39: 802010290164 | C39: EVEREADY BAT 12XCX2 | D39: PIL-EVR-CX2 | E39: 39800059154 | F39: 1 | G39: 335.916667 | H39: BUL
B40: 802010290165 | C40: EVEREADY BAT 12XDX2 | D40: PIL-EVR-DX2 | E40: 39800059352 | F40: 1 | G40: 281 | H40: BUL
B41: 901060270137 | C41: HUGGIES PAÑAL ACTIVESEC TALLA G 8X30UND | D41: PB-HUG-G | E41: 7702425801530 | F41: 1 | G41: 127 | H41: BUL
B42: 901060270138 | C42: HUGGIES PAÑAL ACTIVESEC TALLA G 8X20UND | D42: PB-HUG-G20 | E42: 7702425810754 | F42: 1 | G42: 501 | H42: BUL
B43: 901060270139 | C43: HUGGIES PAÑAL ACTIVESEC TALLA M 8X30UND | D43: PB-HUG-M | E43: 7702425801462 | F43: 1 | G43: 1907 | H43: BUL
B44: 901060270141 | C44: HUGGIES PAÑAL ACTIVESEC TALLA P 6X36UND | D44: PB-HUG-P36 | E44: 7702425806597 | F44: 1 | G44: 2291 | H44: BUL
B45: 901060270142 | C45: HUGGIES PAÑAL ACTIVESEC RN 6X32UND | D45: PB-HUG-RN | E45: 7702425804654 | F45: 1 | G45: 1684 | H45: BUL
B46: 901060270143 | C46: HUGGIES PAÑAL ACTIVESEC XG 8X30UND | D46: PB-HUG-XG | E46: 7702425801615 | F46: 1 | G46: 1175 | H46: BUL
B47: 901060270144 | C47: HUGGIES PAÑAL ACTIVESEC XG 8X20UND | D47: PB-HUG-XG20 | E47: 7702425810761 | F47: 1 | G47: 6 | H47: BUL
B48: 901060270145 | C48: HUGGIES PAÑAL ACTIVESEC XXG 8X30UND | D48: PB-HUG-XXG | E48: 7702425801677 | F48: 1 | G48: 2518 | H48: BUL
B49: 901060270146 | C49: HUGGIES PAÑAL ACTIVESEC XXG 8X20UND | D49: PB-HUG-XXG20 | E49: 7702425810778 | F49: 1 | G49: 1512 | H49: BUL
B50: 901060270147 | C50: HUGGIES PAÑAL NATCARE G 8X30UND | D50: PB-HUGNAT-G | E50: 7702425808706 | F50: 1 | G50: 155 | H50: BUL
B51: 901060270148 | C51: HUGGIES PAÑAL NATCARE M 8X30UND | D51: PB-HUGNAT-M | E51: 7702425808690 | F51: 1 | G51: 586 | H51: BUL
B52: 901060270149 | C52: HUGGIES PAÑAL NATCARE P 8X30UND | D52: PB-HUGNAT-P | E52: 7702425802155 | F52: 1 | G52: 910 | H52: BUL
B53: 901060270150 | C53: HUGGIES PAÑAL NATCARE RN 8X20UND | D53: PB-HUGNAT-RN20 | E53: 7702425802148 | F53: 1 | G53: 1007 | H53: BUL
B54: 901060270152 | C54: HUGGIES PAÑAL NATCARE XXG 8X30UND | D54: PB-HUGNAT-XXG | E54: 7702425808720 | F54: 1 | G54: 3 | H54: BUL
B55: 1003010110043 | C55: KNORR CUBITO DE POLLO DESH 96X12UND | D55: CUB-KNORRPOL-12 | E55: 8886467068751 | F55: 1 | G55: 9068 | H55: BUL
B56: 1003010110044 | C56: KNORR CUBITO DE POLLO DESH 12X120UND | D56: CUB-KNORRPOL-120 | E56: 8886467068744 | F56: 1 | G56: 3081 | H56: BUL
B57: 1003010110045 | C57: KNORR CUBITO DE POLLO DESH 144X8UND | D57: CUB-KNORRPOL-8 | E57: 8886467068768 | F57: 1 | G57: 8785 | H57: BUL
B58: 1003010110222 | C58: KNORR CUBITO DE CARNE DESH 96X12UND | D58: CUB-KNORRCAR-12 | E58: 8886467052644 | F58: 1 | G58: 735 | H58: BUL
B59: 1003010110223 | C59: KNORR CUBITO DE CARNE DESH 144X8UND | D59: CUB-KNORRCAR-8 | E59: 8886467052651 | F59: 1 | G59: 682 | H59: BUL
B60: 1003010110224 | C60: KNORR CUBITO DE COSTILLA DESH 96X12UND | D60: CUB-KNORRCOS-12 | E60: 8886467052675 | F60: 1 | G60: 726 | H60: BUL
B61: 1003010110225 | C61: KNORR CUBITO DE COSTILLA DESH 144X8UND | D61: CUB-KNORRCOS-8 | E61: 8886467052682 | F61: 1 | G61: 664 | H61: BUL
B62: 1003020250132 | C62: KNORR NOODLES CARNE 30X75G | D62: NOO-KNORCAR-75 | E62: 8886467052040 | F62: 1 | G62: 4161 | H62: BUL
B63: 1003020250133 | C63: KNORR NOODLES POLLO 30X75G | D63: NOO-KNORPOL-75 | E63: 8886467052033 | F63: 1 | G63: 77 | H63: BUL
B64: 1003030380226 | C64: KNORR SOPA DE POLLO Y FIDEOS 72X60G | D64: SOP-KNORRPOL-60 | E64: 8886467052798 | F64: 1 | G64: 3156 | H64: BUL
B65: 1003030380227 | C65: KNORR SOPA DE VEGETALES 72X60G | D65: SOP-KNORRVEG-60 | E65: 8886467052811 | F65: 1 | G65: 1480 | H65: BUL
B66: 1003030390228 | C66: KNORR CREMA DE POLLO 72X60G | D66: CRE-KNORRPOL-60 | E66: 8886467052828 | F66: 1 | G66: 2187 | H66: BUL
B67: 1003030390229 | C67: KNORR CREMA DE CHAMPIÑONES 72X60G | D67: CRE-KNORRCHA-60 | E67: 8886467052835 | F67: 1 | G67: 1421 | H67: BUL
B68: 1003030390230 | C68: KNORR CREMA DE MAIZ 72X60G | D68: CRE-KNORRMAIZ-60 | E68: 8886467052859 | F68: 1 | G68: 1525 | H68: BUL
B69: 1003030390231 | C69: KNORR CREMA DE CAMARONES 72X60G | D69: CRE-KNORRCAM-60 | E69: 8886467052866 | F69: 1 | G69: 1580 | H69: BUL
B70: 1003040400232 | C70: KNORR SAZONADOR TODO USO 48X200G | D70: SAZ-KNORRTODO-200 | E70: 8886467052781 | F70: 1 | G70: 1653 | H70: BUL
B71: 1006010410236 | C71: KNORR PROMO 1 SOPA 60G + 2 CUBITOS 8UND | E71: 725765285508 | F71: 1 | G71: 12 | H71: BUL
B72: 1006010410237 | C72: KNORR PROMO 1 SAZONADOR 200 G | E72: 725765285539 | F72: 1 | G72: 3 | H72: BUL
B73: 1006010410238 | C73: KNORR PROMO 1 CUBITO 12 UND | E73: 725765285522 | F73: 1 | G73: 33 | H73: BUL
B74: 1101070190116 | C74: KOTEX LINER ANTIBAC 12X15UND | D74: KOTEX-LINAB15 | E74: 7702425807549 | F74: 1 | G74: 2266 | H74: BUL
B75: 1101070190117 | C75: KOTEX LINER ANTIBAC 12X50UND | D75: KOTEX-LINAB50 | E75: 7702425809758 | F75: 1 | G75: 1130 | H75: BUL
B76: 1101070190122 | C76: KOTEX TOALLA FEM UF ANTIBAC RISTRA 10X5X5UND | D76: KOTEX-UFAB-R5 | E76: 7702425810006 | F76: 1 | G76: 1296 | H76: BUL
B77: 1101070190123 | C77: KOTEX TOALLA FEM UF DIA&NOCHE 12X8UND | D77: KOTEX-UFNOCT | E77: 7702425807648 | F77: 1 | G77: 1721 | H77: BUL
B78: 1101070190124 | C78: KOTEX TOALLA FEM UF PURE 12X10UND | D78: KOTEX-UFPURE | E78: 7702425810501 | F78: 1 | G78: 2164 | H78: BUL
B79: 1101070190125 | C79: KOTEX TOALLA FEM UF 48X10UND | D79: KOTEX-ULTRAF | E79: 7702425801288 | F79: 1 | G79: 2129 | H79: BUL
B80: 1101070190208 | C80: KOTEX TOALLA FEM ESENCIAL S/ALAS 24X10UND | D80: KOTEX-ESENSA10 | E80: 7441008164326 | F80: 1 | G80: 3496.875 | H80: BUL
B81: 1101070200114 | C81: KOTEX LINER 12X15UND | D81: KOTEX-LIN15 | E81: 7702425544932 | F81: 1 | G81: 2444 | H81: BUL
B82: 1101070200115 | C82: KOTEX LINER 12X50UND | D82: KOTEX-LIN50 | E82: 7702425809765 | F82: 1 | G82: 4140.833333 | H82: BUL
B83: 1201050180096 | C83: LUX JABON JAZMIN 48X125G | D83: JB-LUXJAZ-125 | E83: 7702006205016 | F83: 1 | G83: 246 | H83: BUL
B84: 1201050180097 | C84: LUX JABON JAZMIN 3PACK 16X3X125G | D84: JB-LUXJAZ-3PK | E84: 7702006205061 | F84: 1 | G84: 483 | H84: BUL
B85: 1201050180099 | C85: LUX JABON ORQUIDEA NEGRA 3PACK 16X3X125G | D85: JB-LUXORQ-3PK | E85: 7702006205092 | F85: 1 | G85: 407 | H85: BUL
B86: 1201050180100 | C86: LUX JABON ROSAS FR 48X125G | D86: JB-LUXROSA-125 | E86: 7702006205009 | F86: 1 | G86: 459 | H86: BUL
B87: 1201050180101 | C87: LUX JABON ROSAS FR 3PACK 16X3X125G | D87: JB-LUXROSA-3PK | E87: 7702006205054 | F87: 1 | G87: 297 | H87: BUL
B88: 1201050180103 | C88: LUX JABON VAINILLA 3PACK 16X3X125G | D88: JB-LUXVAN-3PK | E88: 7702006205078 | F88: 1 | G88: 506 | H88: BUL
B89: 1601080260136 | C89: PADDLERS PAÑAL ADULTO TALLA M 12X8UND | D89: PA-PADDLERS-M | F89: 1 | G89: 7 | H89: BUL
B90: 1801040060022 | C90: PONDS CR BIOHIDRATANTE 24X100G | D90: CF-PONDBIO-100 | E90: 7501056330330 | F90: 1 | G90: 418 | H90: BUL
B91: 1801040060023 | C91: PONDS CR BIOHIDRATANTE 24X50G | D91: CF-PONDBIO-50 | E91: 7501056330323 | F91: 1 | G91: 528 | H91: BUL
B92: 1801040060030 | C92: PONDS CR H 24X100G | D92: CF-PONDH-100 | E92: 7501056325398 | F92: 1 | G92: 206 | H92: BUL
B93: 1801040060036 | C93: PONDS CR S HUMECTANTE NUTRITIVA 24X100G | D93: CF-PONDS-100 | E93: 7501056326142 | F93: 1 | G93: 94 | H93: BUL
B94: 1801040060037 | C94: PONDS CR S HUMECTANTE NUTRITIVA 24X50G | D94: CF-PONDS-50 | E94: 7501056325442 | F94: 1 | G94: 318 | H94: BUL
B95: 1801040070024 | C95: PONDS CR C ORIGINAL 24X45G | D95: CF-PONDC-45 | E95: 7501056325169 | F95: 1 | G95: 412 | H95: BUL
B96: 1801040070025 | C96: PONDS CR C ORIGINAL 24X95G | D96: CF-PONDC-95 | E96: 7501056325176 | F96: 1 | G96: 516 | H96: BUL
B97: 1801040070029 | C97: PONDS CR C PEPINO 24X100G | D97: CF-PONDCPEP-100 | E97: 7501056324889 | F97: 1 | G97: 37 | H97: BUL
B98: 1801040080027 | C98: PONDS CR CLARANT B3 GRASA 24X100G | D98: CF-PONDCLAR-100 | E98: 7501056330309 | F98: 1 | G98: 177 | H98: BUL
B99: 1801040080028 | C99: PONDS CR CLARANT B3 GRASA 24X50G | D99: CF-PONDCLAR-50 | E99: 7501056330293 | F99: 1 | G99: 45 | H99: BUL
B100: 1801040080196 | C100: PONDS CR CLARANT B3 SECA 24X100G | D100: CF-PONDCLARS-100 | E100: 7501056330262 | F100: 1 | G100: 208 | H100: BUL
B101: 1801040080216 | C101: PONDS CR CLARANT B3 SECA 24X50G | D101: CF-PONDCLARS-50 | E101: 7501056330255 | F101: 1 | G101: 141 | H101: BUL
B102: 1801040090033 | C102: PONDS CR REJUVENESS 24X100G | D102: CF-PONDREJ-100 | E102: 7501056330491 | F102: 1 | G102: 324 | H102: BUL
B103: 1801040090034 | C103: PONDS CR REJUVENESS 24X50G | D103: CF-PONDREJ-50 | E103: 7501056330484 | F103: 1 | G103: 99 | H103: BUL
B104: 1801040090220 | C104: PONDS CR REJUVENESS SACHET 12X10X8.5G | D104: CF-PONDREJ-SCH8 | F104: 1 | G104: 16 | H104: BUL
B105: 1901020030072 | C105: REXONA DEO STICK COTTON 12X50G | D105: DEO-REXCOTT-S50 | E105: 78084117 | F105: 1 | G105: 723 | H105: BUL
B106: 1901020030083 | C106: REXONA DEO STICK V8 12X50G | D106: DEO-REXV8-S50 | E106: 75024956 | F106: 1 | G106: 522 | H106: BUL
B107: 1901020030194 | C107: REXONA DEO STICK BAMBOO 12X50G | D107: DEO-REXBAMB-S50 | E107: 78004498 | F107: 1 | G107: 239 | H107: BUL
B108: 1901020030201 | C108: REXONA DEO STICK PERFECT TONE 12X45GR | D108: DEO-REXPERFECT-S45 | F108: 1 | G108: 335 | H108: BUL
B109: 1901020130069 | C109: REXONA DEO AER BAMBOO 2PACK 6X2X90G/150ML | D109: DEO-REXBAMB-2PK | E109: 7702006200998 | F109: 1 | G109: 115 | H109: BUL
B110: 1901020130070 | C110: REXONA DEO AER BAMBOO 12X90G/150ML | D110: DEO-REXBAMB-A150 | E110: 7791293036069 | F110: 1 | G110: 321 | H110: BUL
B111: 1901020130071 | C111: REXONA DEO AER COTTON 12X90G/150ML | D111: DEO-REXCOTT-A150 | E111: 7791293032467 | F111: 1 | G111: 741 | H111: BUL
B112: 1901020130074 | C112: REXONA DEO AER AB INV FM 12X90G/150ML | D112: DEO-REXMAB-A150 | E112: 7506306244184 | F112: 1 | G112: 123 | H112: BUL
B113: 1901020130077 | C113: REXONA DEO AER SPORTFAN 12X90G/150ML | D113: DEO-REXSPFAN-A150 | E113: 7791293022543 | F113: 1 | G113: 133 | H113: BUL
B114: 1901020130080 | C114: REXONA DEO AER V8 2PACK 6X2X90G/150ML | D114: DEO-REXV8-2PK | E114: 7702006200981 | F114: 1 | G114: 124 | H114: BUL
B115: 1901020130081 | C115: REXONA DEO AER V8 12X90G/150ML | D115: DEO-REXV8-A150 | E115: 7791293022567 | F115: 1 | G115: 102 | H115: BUL
B116: 1901020130198 | C116: REXONA DEO AER EFFICIENT DELICATE 12X210ML | D116: DEO-REXEFFIDEL-A210 | E116: 7791293042091 | F116: 1 | G116: 78 | H116: BUL
B117: 1901020130199 | C117: REXONA DEO AER PERFECT TONE 12X90G/150ML | D117: DEO-REXPERFECT-A150 | E117: 7506306206625 | F117: 1 | G117: 961 | H117: BUL
B118: 1901020130221 | C118: REXONA DEO AER EFFICIENT ORIGINAL 12X210ML | D118: DEO-REXEFFIOR-A210 | E118: 7791293042114 | F118: 1 | G118: 218 | H118: BUL
B119: 1901020140082 | C119: REXONA DEO ROLLON V8 12X50ML | D119: DEO-REXV8-R50 | E119: 78923454 | F119: 1 | G119: 185 | H119: BUL
B120: 1901020140200 | C120: REXONA DEO ROLLON PERFECT TONE 12X50ML | D120: DEO-REXPERFECT-R50 | F120: 1 | G120: 351 | H120: BUL
B121: 1901020140233 | C121: REXONA DEO ROLLON BAMBOO 12X50ML | E121: 78924345 | F121: 1 | G121: 215 | H121: BUL
B122: 1901050180104 | C122: REXONA JABON BARRA 7PACK 10X7X120G | D122: JB-REX7PACK-120 | F122: 1 | G122: 1000 | H122: BUL
B123: 1901050180105 | C123: REXONA JABON ANTIBAC AVENA 48X120G | D123: JB-REXAVE-120 | E123: 7702006402231 | F123: 1 | G123: 527 | H123: BUL
B124: 1901050180107 | C124: REXONA JABON ANTIBAC BAMBOO 48X120G | D124: JB-REXBAMB-120 | E124: 7702006402200 | F124: 1 | G124: 121 | H124: BUL
B125: 1901050180108 | C125: REXONA JABON ANTIBAC BAMBOO 3PACK 16X3X120G | D125: JB-REXBAMB-3PK | E125: 7702006205399 | F125: 1 | G125: 325 | H125: BUL
B126: 1901050180109 | C126: REXONA JABON ANTIBAC FRESH 48X120G | D126: JB-REXFRESH-120 | E126: 7702006402187 | F126: 1 | G126: 623 | H126: BUL
B127: 1901050180110 | C127: REXONA JABON ANTIBAC FRESH 3PACK 16X3X120G | D127: JB-REXFRESH-3PK | E127: 7702006205375 | F127: 1 | G127: 164 | H127: BUL
B128: 1901050180111 | C128: REXONA JABON ANTIBAC LIMPIEZA 48X120G | D128: JB-REXLIMP-120 | E128: 7702006402194 | F128: 1 | G128: 275 | H128: BUL
B129: 1901050180112 | C129: REXONA JABON ANTIBAC LIMPIEZA 3PACK 16X3X120G | D129: JB-REXLIMP-3PK | E129: 7702006205382 | F129: 1 | G129: 204 | H129: BUL
B130: 2101030010003 | C130: SEDAL ACONDICIONADOR CERAMIDAS 12X340ML | D130: AC-SEDCERA-340 | E130: 7506306237902 | F130: 1 | G130: 1087 | H130: BUL
B131: 2101030010004 | C131: SEDAL ACONDICIONADOR KERAT C/ANTIOX 12X340ML | D131: AC-SEDKERA-340 | E131: 7506306237940 | F131: 1 | G131: 862 | H131: BUL
B132: 2101030010005 | C132: SEDAL ACONDICIONADOR RIZOS DEFINIDOS 12X340ML | D132: AC-SEDRIZOS-340 | E132: 7506306237155 | F132: 1 | G132: 702 | H132: BUL
B133: 2101030010195 | C133: SEDAL ACONDICIONADOR CERAMIDAS 12X190ML | D133: AC-SEDCERA-190 | E133: 7506306237094 | F133: 1 | G133: 606 | H133: BUL
B134: 2101030100039 | C134: SEDAL CREMA DE PEINAR CERAMIDAS 12X300ML | D134: CP-SEDCERA-300 | E134: 7501056340124 | F134: 1 | G134: 437 | H134: BUL
B135: 2101030100040 | C135: SEDAL CREMA DE PEINAR KERATINA C/ANTIOX 12X300ML | D135: CP-SEDKERA-300 | E135: 7506306233249 | F135: 1 | G135: 109 | H135: BUL
B136: 2101030100041 | C136: SEDAL CREMA DE PEINAR RIZOS DEFINIDOS 12X300ML | D136: CP-SEDRIZOS-300 | E136: 7501056340131 | F136: 1 | G136: 418 | H136: BUL
B137: 2101030100042 | C137: SEDAL CREMA DE PEINAR RIZOS RISTRA 288X10ML | D137: CP-SEDRIZOS-R10 | E137: 7501056340261 | F137: 1 | G137: 39 | H137: BUL
B138: 2101030340175 | C138: SEDAL SHAMPOO CASPA CONTROL 12X340ML | D138: SH-SEDCASP-340 | E138: 7506306237971 | F138: 1 | G138: 696 | H138: BUL
B139: 2101030340177 | C139: SEDAL SHAMPOO CERAMIDAS 12X340ML | D139: SH-SEDCERA-340 | E139: 7506306237315 | F139: 1 | G139: 82 | H139: BUL
B140: 2101030340178 | C140: SEDAL SHAMPOO 2EN1 12X340ML | D140: SH-SEDDUO21-340 | F140: 1 | G140: 78 | H140: BUL
B141: 2101030340179 | C141: SEDAL SHAMPOO KERATINA C/ANTIOX 12X190ML | D141: SH-SEDKERA-190 | E141: 7506306237841 | F141: 1 | G141: 252 | H141: BUL
B142: 2101030340180 | C142: SEDAL SHAMPOO KERATINA C/ANTIOX 12X340ML | D142: SH-SEDKERA-340 | E142: 7506306237339 | F142: 1 | G142: 826 | H142: BUL
B143: 2101030340181 | C143: SEDAL SHAMPOO RIZOS DEFINIDOS 12X340ML | D143: SH-SEDRIZOS-340 | E143: 7506306237421 | F143: 1 | G143: 900 | H143: BUL
B144: 2101030340234 | C144: SEDAL SHAMPOO RIZOS DEFINIDOS 12X190ML | E144: 7506306237391 | F144: 1 | G144: 252 | H144: BUL
B145: 2301020030183 | C145: SURE DEO FRESH&COOL 12X76G | D145: SURE-FRESH | F145: 1 | G145: 5 | H145: BUL
B146: 2301020030184 | C146: SURE DEO REGULAR 12X76G | D146: SURE-ORREG | F146: 1 | G146: 32 | H146: BUL
B147: 2301020030185 | C147: SURE DEO POWDER 12X76G | D147: SURE-OSPOW | F147: 1 | G147: 7 | H147: BUL
B148: 2502020150088 | C148: XTRA DETER LIQ PASION TROPICAL 8X1.5L | D148: DL-XTRTROPICAL | E148: 94514424049 | F148: 1 | G148: 2 | H148: BUL
B149: GM-CS0001 | C149: ARTICULOS DE OFICINA | F149: 1 | G149: 15 | H149: UND
B150: GM-CS0002 | C150: ARTICULOS DE LIMPIEZA | F150: 1 | G150: 7 | H150: UND
B151: GM-CS0003 | C151: ARTICULOS DE CAFETERIA | F151: 1 | G151: 8 | H151: UND

Sheet ficha producto (hidden)
B4: CODIGO | C4: TIPO | D4: MANEJA SERIALES | E4: INACTIVO | F4: FECHA DE REGISTRO | G4: DESCRIPCION | H4: MODELO | I4: UNIDADDEEMPAQUE
B5: AC-DOVOLEO-400 | C5: V | D5: NO | E5: NO | F5: 2021-01-14 | G5: ACONDICIONADOR DOVE OLEO NUTRICION 12X400ML | H5: DOVE | I5: 12
B6: AC-DOVRECON-400 | C6: V | D6: NO | E6: NO | F6: 2021-01-14 | G6: ACONDICIONADOR DOVE RECONSTRUCCION COMPLETA 12X400ML | H6: DOVE | I6: 12
B7: AC-SEDCERA-340 | C7: V | D7: NO | E7: NO | F7: 2021-01-14 | G7: ACONDICIONADOR SEDAL CERAMIDAS 12X340ML | H7: SEDAL | I7: 12
B8: AC-SEDKERA-340 | C8: V | D8: NO | E8: NO | F8: 2021-01-14 | G8: ACONDICIONADOR SEDAL KERAT C/ANTIOX 12X340ML | H8: SEDAL | I8: 12
B9: AC-SEDRIZOS-340 | C9: V | D9: NO | E9: NO | F9: 2021-01-14 | G9: ACONDICIONADOR SEDAL RIZOS DEFINIDOS 12X340ML | H9: SEDAL | I9: 12
B10: AC-SUAMIEL-360 | C10: V | D10: NO | E10: NO | F10: 2020-11-26 | G10: SUAVE AC MIEL Y ALMENDRA 12X360ML | H10: SUAVE | I10: 12
B11: AH-DENT-ADWH | C11: V | D11: NO | E11: NO | F11: 2020-06-26 | G11: PAST DENT ARM&HAMMER ADVANCE W | H11: ARM & HAMMER | I11: 12
B12: AH-DENT-CCARE | C12: V | D12: NO | E12: NO | F12: 2020-06-26 | G12: PAST DENT ARM&HAMMER COMPL CARE | H12: ARM & HAMMER | I12: 12
B13: AH-DENT-PEROX | C13: V | D13: NO | E13: NO | F13: 2020-06-26 | G13: PAST DENT ARM&HAMMER PEROX | H13: ARM & HAMMER | I13: 12
B14: AH-FRESH | C14: V | D14: NO | E14: NO | F14: 2020-06-26 | G14: DEO ARM&HAMMER SOLID FRESH | H14: ARM & HAMMER | I14: 12
B15: AH-GELCOOL | C15: V | D15: NO | E15: NO | F15: 2020-06-26 | G15: DEO ARM&HAMMER GEL COOL BLAST | H15: ARM & HAMMER | I15: 12
B16: AH-MAXPWER | C16: V | D16: NO | E16: NO | F16: 2020-06-26 | G16: DEO ARM&HAMMER POWDER FRESH | H16: ARM & HAMMER | I16: 12
B17: AH-MAXSPORT | C17: V | D17: NO | E17: NO | F17: 2020-06-26 | G17: DEO ARM&HAMMER ACTIVE SPORT | H17: ARM & HAMMER | I17: 12
B18: AH-UNSCENTED | C18: V | D18: NO | E18: NO | F18: 2020-06-26 | G18: DEO ARM&HAMMER SOLID UNSCENTED | H18: ARM & HAMMER | I18: 12
B19: AMMENS-BABY125 | C19: V | D19: NO | E19: NO | F19: 2020-06-26 | G19: TALCO AMMENS BABY 125GR | H19: AMMENS | I19: 12
B20: AMMENS-FRESH125 | C20: V | D20: NO | E20: NO | F20: 2020-06-26 | G20: TALCO AMMENS FRESH 125GR | H20: AMMENS | I20: 12
B21: AMMENS-ORI125 | C21: V | D21: NO | E21: NO | F21: 2020-06-26 | G21: TALCO AMMENS ORIGINAL 125GR | H21: AMMENS | I21: 12
B22: AMMENS-PIE60 | C22: V | D22: NO | E22: NO | F22: 2020-06-26 | G22: TALCO AMMENS PIE 60GR | H22: AMMENS | I22: 12
B23: BA-CSOFT-50 | C23: V | D23: NO | E23: NO | F23: 2020-06-26 | G23: BOLAS DE ALG 50 UNIDADES COTTON SOFT | H23: COTTON SOFT | I23: 40
B24: CF-PONDBIO-100 | C24: V | D24: NO | E24: NO | F24: 2020-11-26 | G24: PONDS CR BIOHIDRATANTE 24X100G | H24: PONDS | I24: 24
B25: CF-PONDBIO-50 | C25: V | D25: NO | E25: NO | F25: 2020-11-26 | G25: PONDS CR BIOHIDRATANTE 24X50G | H25: PONDS | I25: 24
B26: CF-PONDC-45 | C26: V | D26: NO | E26: NO | F26: 2020-11-26 | G26: PONDS CR C ORIGINAL 24X45G | H26: PONDS | I26: 24
B27: CF-PONDC-95 | C27: V | D27: NO | E27: NO | F27: 2020-11-26 | G27: PONDS CR C ORIGINAL 24X95G | H27: PONDS | I27: 24
B28: CF-PONDC-SCH10 | C28: V | D28: NO | E28: NO | F28: 2020-11-26 | G28: PONDS CR C ORIGINAL DPL 12X10X10G | H28: PONDS | I28: 120
B29: CF-PONDCLAR-100 | C29: V | D29: NO | E29: NO | F29: 2020-11-26 | G29: PONDS CR CLARANT B3 GRASA 24X100G | H29: PONDS | I29: 24
B30: CF-PONDCLAR-50 | C30: V | D30: NO | E30: NO | F30: 2020-11-26 | G30: PONDS CR CLARANT B3 GRASA 24X50G | H30: PONDS | I30: 24
B31: CF-PONDCPEP-100 | C31: V | D31: NO | E31: NO | F31: 2020-11-26 | G31: PONDS CR C PEPINO 24X100G | H31: PONDS | I31: 24
B32: CF-PONDH-100 | C32: V | D32: NO | E32: NO | F32: 2020-11-26 | G32: PONDS CR H 24X100G | H32: PONDS | I32: 24
B33: CF-PONDH-50 | C33: V | D33: NO | E33: NO | F33: 2020-11-26 | G33: PONDS CR H 24X50G | H33: PONDS | I33: 24
B34: CF-PONDHC-2PK | C34: V | D34: NO | E34: NO | F34: 2021-05-06 | G34: PONDS DUO PACK H100 C45 | H34: PONDS | I34: 18
B35: CF-PONDREJ-100 | C35: V | D35: NO | E35: NO | F35: 2020-11-26 | G35: PONDS CR REJUVENESS DIA 24X100G | H35: PONDS | I35: 24
B36: CF-PONDREJ-50 | C36: V | D36: NO | E36: NO | F36: 2020-11-26 | G36: PONDS CR REJUVENESS 24X50G | H36: PONDS | I36: 24
B37: CF-PONDREJ-SCH10 | C37: V | D37: NO | E37: NO | F37: 2020-11-26 | G37: PONDS CR REJUVENESS SCH 12X10X10G | H37: PONDS | I37: 120
B38: CF-PONDS-100 | C38: V | D38: NO | E38: NO | F38: 2020-11-26 | G38: PONDS CR S HUMECTANTE NUTRITIVA 24X100G | H38: PONDS | I38: 24
B39: CF-PONDS-50 | C39: V | D39: NO | E39: NO | F39: 2020-11-26 | G39: PONDS CR S HUMECTANTE NUTRITIVA 24X50G | H39: PONDS | I39: 24
B40: CF-PONDS-SCH10 | C40: V | D40: NO | E40: NO | F40: 2020-11-26 | G40: PONDS CR S SCH 12X10X10G | H40: PONDS | I40: 120
B41: CP-SEDCERA-300 | C41: V | D41: NO | E41: NO | F41: 2021-01-14 | G41: CREMA DE PEINAR SEDAL CERAMIDAS VIVI 12X300ML | H41: SEDAL | I41: 12
B42: CP-SEDKERA-300 | C42: V | D42: NO | E42: NO | F42: 2021-01-14 | G42: CREMA DE PEINAR SEDAL PEIN KERATINA C/ ANTIOX 12X300ML | H42: SEDAL | I42: 12
B43: CP-SEDRIZOS-300 | C43: V | D43: NO | E43: NO | F43: 2021-01-14 | G43: CREMA DE PEINAR SEDAL RIZOS DEFINIDOS 12X300ML | H43: SEDAL | I43: 12
B44: CP-SEDRIZOS-R10 | C44: V | D44: NO | E44: NO | F44: 2021-06-15 | G44: CREMA DE PEINAR SEDAL RIZOS RISTRA 10ML | H44: SEDAL | I44: 288
B45: CUB-KNORRPOL-12 | C45: V | D45: NO | E45: NO | F45: 2021-02-05 | G45: CUBITO KNORR DE POLLO DESHIDRATADO X 12UN | H45: KNORR | I45: 96
B46: CUB-KNORRPOL-120 | C46: V | D46: NO | E46: NO | F46: 2021-02-05 | G46: CUBITO KNORR DE POLLO DESHIDRATADO X 120UN | H46: KNORR | I46: 12
B47: CUB-KNORRPOL-8 | C47: V | D47: NO | E47: NO | F47: 2021-02-05 | G47: CUBITO KNORR DE POLLO DESHIDRATADO X 8UN | H47: KNORR | I47: 144
B48: DA-CSOFT-70 | C48: V | D48: NO | E48: NO | F48: 2020-06-26 | G48: DISCOS DESMAQ DE ALG COTTON SOFT -70 UND | H48: COTTON SOFT | I48: 48
B49: DEO-AXBS-ANARC | C49: V | D49: NO | E49: NO | F49: 2021-02-17 | G49: AXE BODY SPRAY ANARCHY MALE 113G | H49: AXE | I49: 12
B50: DEO-AXBS-BLCK | C50: V | D50: NO | E50: NO | F50: 2021-02-17 | G50: AXE BODY SPRAY BLACK 113G | H50: AXE | I50: 12
B51: DEO-AXBS-DARK | C51: V | D51: NO | E51: NO | F51: 2021-02-17 | G51: AXE BODY SPRAY DARK TEMPTATION 113G | H51: AXE | I51: 12
B52: DEO-DOVDERM-A150 | C52: V | D52: NO | E52: NO | F52: 2020-11-26 | G52: DOVE DEO AER AP DERMO ACLARANT 12X89G/150ML | H52: DOVE | I52: 12
B53: DEO-DOVDERM-R50 | C53: V | D53: NO | E53: NO | F53: 2020-11-26 | G53: DOVE DEO ROL DERMO ACLARANT 12X50ML | H53: DOVE | I53: 12
B54: DEO-DOVDERM-S50 | C54: V | D54: NO | E54: NO | F54: 2020-11-26 | G54: DOVE DEO STICK DERMO ACLARANT 12X50G | H54: DOVE | I54: 12
B55: DEO-DOVMINV-A150 | C55: V | D55: NO | E55: NO | F55: 2020-11-26 | G55: DOVE DEO AER MEN INVI DRY12X89G/150ML | H55: DOVE | I55: 12
B56: DEO-DOVMINV-S50 | C56: V | D56: NO | E56: NO | F56: 2020-11-26 | G56: DOVE DEO STICK INVISIBLE DRY FM 12X50G | H56: DOVE | I56: 12
B57: DEO-DOVORG-2PK | C57: V | D57: NO | E57: NO | F57: 2021-07-29 | G57: DOVE DEO WOMEN AER ORIGINAL BIPACK 6X2X89G/150ML | H57: DOVE | I57: 6
B58: DEO-DOVORG-A150 | C58: V | D58: NO | E58: NO | F58: 2020-11-26 | G58: DOVE DEO AER AP ORIGINAL 12X89G/150ML | H58: DOVE | I58: 12
B59: DEO-DOVORG-R50 | C59: V | D59: NO | E59: NO | F59: 2020-11-26 | G59: DOVE DEO ROLLON ORIGINAL 12X50ML | H59: DOVE | I59: 12
B60: DEO-DOVORG-S50 | C60: V | D60: NO | E60: NO | F60: 2020-11-26 | G60: DOVE DEO STICK ORIGINAL 12X50G | H60: DOVE | I60: 12
B61: DEO-REXAB-A150 | C61: V | D61: NO | E61: NO | F61: 2020-11-26 | G61: REXONA DEO W AER ANTIB 12X90GR/150ML | H61: REXONA | I61: 12
B62: DEO-REXBAMB-2PK | C62: V | D62: NO | E62: NO | F62: 2021-07-29 | G62: REXONA DEO AER BIPACK BAMB AL VERA 6X2X90GR/150ML | H62: REXONA | I62: 6
B63: DEO-REXBAMB-A150 | C63: V | D63: NO | E63: NO | F63: 2020-11-26 | G63: REXONA DEO AER BAMB AL VERA 12X90GR/150ML | H63: REXONA | I63: 12
B64: DEO-REXCOTT-A150 | C64: V | D64: NO | E64: NO | F64: 2020-11-26 | G64: REXONA DEO AER AP COTTON 12X90GR/150ML | H64: REXONA | I64: 12
B65: DEO-REXCOTT-S50 | C65: V | D65: NO | E65: NO | F65: 2020-11-26 | G65: REXONA DEO STICK AP COTTON 12X50GR | H65: REXONA | I65: 12
B66: DEO-REXEFFI-A153 | C66: V | D66: NO | E66: NO | F66: 2020-11-26 | G66: REXONA DEO AER EFFICIENT 12X88GR/153ML | H66: REXONA | I66: 12
B67: DEO-REXMAB-A150 | C67: V | D67: NO | E67: NO | F67: 2020-11-26 | G67: REXONA DEO MEN AER AB INV 12X90GR/150ML | H67: REXONA | I67: 12
B68: DEO-REXMAB-R50 | C68: V | D68: NO | E68: NO | F68: 2020-11-26 | G68: REXONA DEO MEN ROLLON AB INV 12X50ML | H68: REXONA | I68: 12
B69: DEO-REXMAB-S50 | C69: V | D69: NO | E69: NO | F69: 2020-11-26 | G69: REXONA DEO MEN STICK ANTIB INV 12X50GR | H69: REXONA | I69: 12
B70: DEO-REXSPFAN-A150 | C70: V | D70: NO | E70: NO | F70: 2020-11-26 | G70: REXONA DEO AER AP SPORTFAN 12X90GR/150ML | H70: REXONA | I70: 12
B71: DEO-REXSPFAN-R50 | C71: V | D71: NO | E71: NO | F71: 2020-11-26 | G71: REXONA DEO ROLLON AP SPORTFAN 12X50ML | H71: REXONA | I71: 12
B72: DEO-REXSPFAN-S50 | C72: V | D72: NO | E72: NO | F72: 2020-11-26 | G72: REXONA DEO STICK AP SPORTFAN 12X50GR | H72: REXONA | I72: 12
B73: DEO-REXV8-2PK | C73: V | D73: NO | E73: NO | F73: 2021-07-29 | G73: REXONA DEO AER BIPACK V8 6X2X90GR/150ML | H73: REXONA | I73: 6
B74: DEO-REXV8-A150 | C74: V | D74: NO | E74: NO | F74: 2020-11-26 | G74: REXONA DEO AER AP V8 12X90GR/150ML | H74: REXONA | I74: 12
B75: DEO-REXV8-R50 | C75: V | D75: NO | E75: NO | F75: 2020-11-26 | G75: REXONA DEO ROLLON AP V8 12X50ML | H75: REXONA | I75: 12
B76: DEO-REXV8-S50 | C76: V | D76: NO | E76: NO | F76: 2020-11-26 | G76: REXONA DEO STICK AP V8 12X50GR | H76: REXONA | I76: 12
B77: DL-AHESTALLIDO | C77: V | D77: NO | E77: NO | F77: 2020-06-26 | G77: A&H DETER.LIQ ESTALLIDO LIMP | H77: ARM & HAMMER | I77: 8
B78: DL-AHJARDIN | C78: V | D78: NO | E78: NO | F78: 2020-06-26 | G78: A&H DETER.LIQ JARDIN FLOR | H78: ARM & HAMMER | I78: 8
B79: DL-XTRAMANECER | C79: V | D79: NO | E79: NO | F79: 2020-06-26 | G79: XTRA DET. LIQ FRES AMANECER | H79: XTRA | I79: 8
B80: DL-XTROXI | C80: V | D80: NO | E80: NO | F80: 2020-06-26 | G80: XTRA DET. LIQ OXI CLEAN | H80: XTRA | I80: 8
B81: DL-XTRTROPICAL | C81: V | D81: NO | E81: NO | F81: 2020-06-26 | G81: XTRA DET. LIQ PAS. TROPICAL | H81: XTRA | I81: 8
B82: EU-MARY-1 | C82: V | D82: NO | E82: NO | F82: 2020-06-26 | G82: MARYLIN ESMALTE PROF TONO 1 | H82: MARYLIN | I82: 6
B83: EU-MARY-100 | C83: V | D83: NO | E83: NO | F83: 2020-06-26 | G83: MARYLIN ESMALTE PROF TONO 100 | H83: MARYLIN | I83: 6
B84: EU-MARY-101 | C84: V | D84: NO | E84: NO | F84: 2020-06-26 | G84: MARYLIN ESMALTE PROF TONO 101 | H84: MARYLIN | I84: 6
B85: EU-MARY-102 | C85: V | D85: NO | E85: NO | F85: 2020-06-26 | G85: MARYLIN ESMALTE PROF TONO 102 | H85: MARYLIN | I85: 6
B86: EU-MARY-103 | C86: V | D86: NO | E86: NO | F86: 2020-06-26 | G86: MARYLIN ESMALTE PROF TONO 103 | H86: MARYLIN | I86: 6
B87: EU-MARY-104 | C87: V | D87: NO | E87: NO | F87: 2020-06-26 | G87: MARYLIN ESMALTE PROF TONO 104 | H87: MARYLIN | I87: 6
B88: EU-MARY-108 | C88: V | D88: NO | E88: NO | F88: 2020-06-26 | G88: MARYLIN ESMALTE PROF TONO 108 | H88: MARYLIN | I88: 6
B89: EU-MARY-109 | C89: V | D89: NO | E89: NO | F89: 2020-06-26 | G89: MARYLIN ESMALTE PROF TONO 109 | H89: MARYLIN | I89: 6
B90: EU-MARY-110 | C90: V | D90: NO | E90: NO | F90: 2020-06-26 | G90: MARYLIN ESMALTE PROF TONO 110 | H90: MARYLIN | I90: 6
B91: EU-MARY-115 | C91: V | D91: NO | E91: NO | F91: 2020-06-26 | G91: MARYLIN ESMALTE PROF TONO 115 | H91: MARYLIN | I91: 6
B92: EU-MARY-116 | C92: V | D92: NO | E92: NO | F92: 2020-06-26 | G92: MARYLIN ESMALTE PROF TONO 116 | H92: MARYLIN | I92: 6
B93: EU-MARY-117 | C93: V | D93: NO | E93: NO | F93: 2020-06-26 | G93: MARYLIN ESMALTE PROF TONO 117 | H93: MARYLIN | I93: 6
B94: EU-MARY-118 | C94: V | D94: NO | E94: NO | F94: 2020-06-26 | G94: MARYLIN ESMALTE PROF TONO 118 | H94: MARYLIN | I94: 6
B95: EU-MARY-119 | C95: V | D95: NO | E95: NO | F95: 2020-06-26 | G95: MARYLIN ESMALTE PROF TONO 119 | H95: MARYLIN | I95: 6
B96: EU-MARY-12 | C96: V | D96: NO | E96: NO | F96: 2020-06-26 | G96: MARYLIN ESMALTE PROF TONO 12 | H96: MARYLIN | I96: 6
B97: EU-MARY-120 | C97: V | D97: NO | E97: NO | F97: 2020-06-26 | G97: MARYLIN ESMALTE PROF TONO 120 | H97: MARYLIN | I97: 6
B98: EU-MARY-123 | C98: V | D98: NO | E98: NO | F98: 2020-06-26 | G98: MARYLIN ESMALTE PROF TONO 123 | H98: MARYLIN | I98: 6
B99: EU-MARY-126 | C99: V | D99: NO | E99: NO | F99: 2020-06-26 | G99: MARYLIN ESMALTE PROF TONO 126 | H99: MARYLIN | I99: 6
B100: EU-MARY-13 | C100: V | D100: NO | E100: NO | F100: 2020-06-26 | G100: MARYLIN ESMALTE PROF TONO 13 | H100: MARYLIN | I100: 6
B101: EU-MARY-132 | C101: V | D101: NO | E101: NO | F101: 2020-06-26 | G101: MARYLIN ESMALTE PROF TONO 132 | H101: MARYLIN | I101: 6
B102: EU-MARY-135 | C102: V | D102: NO | E102: NO | F102: 2020-06-26 | G102: MARYLIN ESMALTE PROF TONO 135 | H102: MARYLIN | I102: 6
B103: EU-MARY-136 | C103: V | D103: NO | E103: NO | F103: 2020-06-26 | G103: MARYLIN ESMALTE PROF TONO 136 | H103: MARYLIN | I103: 6
B104: EU-MARY-14 | C104: V | D104: NO | E104: NO | F104: 2020-06-26 | G104: MARYLIN ESMALTE PROF TONO 14 | H104: MARYLIN | I104: 6
B105: EU-MARY-150 | C105: V | D105: NO | E105: NO | F105: 2020-06-26 | G105: MARYLIN ESMALTE PROF TONO 150 | H105: MARYLIN | I105: 6
B106: EU-MARY-153 | C106: V | D106: NO | E106: NO | F106: 2020-06-26 | G106: MARYLIN ESMALTE PROF TONO 153 | H106: MARYLIN | I106: 6
B107: EU-MARY-156 | C107: V | D107: NO | E107: NO | F107: 2020-06-26 | G107: MARYLIN ESMALTE PROF TONO 156 | H107: MARYLIN | I107: 6
B108: EU-MARY-157 | C108: V | D108: NO | E108: NO | F108: 2020-06-26 | G108: MARYLIN ESMALTE PROF TONO 157 | H108: MARYLIN | I108: 6
B109: EU-MARY-158 | C109: V | D109: NO | E109: NO | F109: 2020-06-26 | G109: MARYLIN ESMALTE PROF TONO 158 | H109: MARYLIN | I109: 6
B110: EU-MARY-159 | C110: V | D110: NO | E110: NO | F110: 2020-06-26 | G110: MARYLIN ESMALTE PROF TONO 159 | H110: MARYLIN | I110: 6
B111: EU-MARY-16 | C111: V | D111: NO | E111: NO | F111: 2020-06-26 | G111: MARYLIN ESMALTE PROF TONO 16 | H111: MARYLIN | I111: 6
B112: EU-MARY-160 | C112: V | D112: NO | E112: NO | F112: 2020-06-26 | G112: MARYLIN ESMALTE PROF TONO 160 | H112: MARYLIN | I112: 6
B113: EU-MARY-161 | C113: V | D113: NO | E113: NO | F113: 2020-06-26 | G113: MARYLIN ESMALTE PROF TONO 161 | H113: MARYLIN | I113: 6
B114: EU-MARY-162 | C114: V | D114: NO | E114: NO | F114: 2020-06-26 | G114: MARYLIN ESMALTE PROF TONO 162 | H114: MARYLIN | I114: 6
B115: EU-MARY-163 | C115: V | D115: NO | E115: NO | F115: 2020-06-26 | G115: MARYLIN ESMALTE PROF TONO 163 | H115: MARYLIN | I115: 6
B116: EU-MARY-164 | C116: V | D116: NO | E116: NO | F116: 2020-06-26 | G116: MARYLIN ESMALTE PROF TONO 164 | H116: MARYLIN | I116: 6
B117: EU-MARY-165 | C117: V | D117: NO | E117: NO | F117: 2020-06-26 | G117: MARYLIN ESMALTE PROF TONO 165 | H117: MARYLIN | I117: 6
B118: EU-MARY-166 | C118: V | D118: NO | E118: NO | F118: 2020-06-26 | G118: MARYLIN ESMALTE PROF TONO 166 | H118: MARYLIN | I118: 6
B119: EU-MARY-168 | C119: V | D119: NO | E119: NO | F119: 2020-06-26 | G119: MARYLIN ESMALTE PROF TONO 168 | H119: MARYLIN | I119: 6
B120: EU-MARY-169 | C120: V | D120: NO | E120: NO | F120: 2020-06-26 | G120: MARYLIN ESMALTE PROF TONO 169 | H120: MARYLIN | I120: 6
B121: EU-MARY-170 | C121: V | D121: NO | E121: NO | F121: 2020-06-26 | G121: MARYLIN ESMALTE PROF TONO 170 | H121: MARYLIN | I121: 6
B122: EU-MARY-171 | C122: V | D122: NO | E122: NO | F122: 2020-06-26 | G122: MARYLIN ESMALTE PROF TONO 171 | H122: MARYLIN | I122: 6
B123: EU-MARY-172 | C123: V | D123: NO | E123: NO | F123: 2020-06-26 | G123: MARYLIN ESMALTE PROF TONO 172 | H123: MARYLIN | I123: 6
B124: EU-MARY-173 | C124: V | D124: NO | E124: NO | F124: 2020-06-26 | G124: MARYLIN ESMALTE PROF TONO 173 | H124: MARYLIN | I124: 6
B125: EU-MARY-174 | C125: V | D125: NO | E125: NO | F125: 2020-06-26 | G125: MARYLIN ESMALTE PROF TONO 174 | H125: MARYLIN | I125: 6
B126: EU-MARY-175 | C126: V | D126: NO | E126: NO | F126: 2020-06-26 | G126: MARYLIN ESMALTE PROF TONO 175 | H126: MARYLIN | I126: 6
B127: EU-MARY-177 | C127: V | D127: NO | E127: NO | F127: 2020-06-26 | G127: MARYLIN ESMALTE PROF TONO 177 | H127: MARYLIN | I127: 6
B128: EU-MARY-18 | C128: V | D128: NO | E128: NO | F128: 2020-06-26 | G128: MARYLIN ESMALTE PROF TONO 18 | H128: MARYLIN | I128: 6
B129: EU-MARY-180 | C129: V | D129: NO | E129: NO | F129: 2020-06-26 | G129: MARYLIN ESMALTE PROF TONO 180 | H129: MARYLIN | I129: 6
B130: EU-MARY-183 | C130: V | D130: NO | E130: NO | F130: 2020-06-26 | G130: MARYLIN ESMALTE PROF TONO 183 | H130: MARYLIN | I130: 6
B131: EU-MARY-19 | C131: V | D131: NO | E131: NO | F131: 2020-06-26 | G131: MARYLIN ESMALTE PROF TONO 19 | H131: MARYLIN | I131: 6
B132: EU-MARY-2 | C132: V | D132: NO | E132: NO | F132: 2020-06-26 | G132: MARYLIN ESMALTE PROF TONO 2 | H132: MARYLIN | I132: 6
B133: EU-MARY-21 | C133: V | D133: NO | E133: NO | F133: 2020-06-26 | G133: MARYLIN ESMALTE PROF TONO 21 | H133: MARYLIN | I133: 6
B134: EU-MARY-22 | C134: V | D134: NO | E134: NO | F134: 2020-06-26 | G134: MARYLIN ESMALTE PROF TONO 22 | H134: MARYLIN | I134: 6
B135: EU-MARY-28 | C135: V | D135: NO | E135: NO | F135: 2020-06-26 | G135: MARYLIN ESMALTE PROF TONO 28 | H135: MARYLIN | I135: 6
B136: EU-MARY-3 | C136: V | D136: NO | E136: NO | F136: 2020-06-26 | G136: MARYLIN ESMALTE PROF TONO 3 | H136: MARYLIN | I136: 6
B137: EU-MARY-30 | C137: V | D137: NO | E137: NO | F137: 2020-06-26 | G137: MARYLIN ESMALTE PROF TONO 30 | H137: MARYLIN | I137: 6
B138: EU-MARY-32 | C138: V | D138: NO | E138: NO | F138: 2020-06-26 | G138: MARYLIN ESMALTE PROF TONO 32 | H138: MARYLIN | I138: 6
B139: EU-MARY-37 | C139: V | D139: NO | E139: NO | F139: 2020-06-26 | G139: MARYLIN ESMALTE PROF TONO 37 | H139: MARYLIN | I139: 6
B140: EU-MARY-4 | C140: V | D140: NO | E140: NO | F140: 2020-06-26 | G140: MARYLIN ESMALTE PROF TONO 4 | H140: MARYLIN | I140: 6
B141: EU-MARY-40 | C141: V | D141: NO | E141: NO | F141: 2020-06-26 | G141: MARYLIN ESMALTE PROF TONO 40 | H141: MARYLIN | I141: 6
B142: EU-MARY-41 | C142: V | D142: NO | E142: NO | F142: 2020-06-26 | G142: MARYLIN ESMALTE PROF TONO 41 | H142: MARYLIN | I142: 6
B143: EU-MARY-44 | C143: V | D143: NO | E143: NO | F143: 2020-06-26 | G143: MARYLIN ESMALTE PROF TONO 44 | H143: MARYLIN | I143: 6
B144: EU-MARY-45 | C144: V | D144: NO | E144: NO | F144: 2020-06-26 | G144: MARYLIN ESMALTE PROF TONO 45 | H144: MARYLIN | I144: 6
B145: EU-MARY-47 | C145: V | D145: NO | E145: NO | F145: 2020-06-26 | G145: MARYLIN ESMALTE PROF TONO 47 | H145: MARYLIN | I145: 6
B146: EU-MARY-5 | C146: V | D146: NO | E146: NO | F146: 2020-06-26 | G146: MARYLIN ESMALTE PROF TONO 5 | H146: MARYLIN | I146: 6
B147: EU-MARY-51 | C147: V | D147: NO | E147: NO | F147: 2020-06-26 | G147: MARYLIN ESMALTE PROF TONO 51 | H147: MARYLIN | I147: 6
B148: EU-MARY-52 | C148: V | D148: NO | E148: NO | F148: 2020-06-26 | G148: MARYLIN ESMALTE PROF TONO 52 | H148: MARYLIN | I148: 6
B149: EU-MARY-53 | C149: V | D149: NO | E149: NO | F149: 2020-06-26 | G149: MARYLIN ESMALTE PROF TONO 53 | H149: MARYLIN | I149: 6
B150: EU-MARY-54 | C150: V | D150: NO | E150: NO | F150: 2020-06-26 | G150: MARYLIN ESMALTE PROF TONO 54 | H150: MARYLIN | I150: 6
B151: EU-MARY-57 | C151: V | D151: NO | E151: NO | F151: 2020-06-26 | G151: MARYLIN ESMALTE PROF TONO 57 | H151: MARYLIN | I151: 6
B152: EU-MARY-58 | C152: V | D152: NO | E152: NO | F152: 2020-06-26 | G152: MARYLIN ESMALTE PROF TONO 58 | H152: MARYLIN | I152: 6
B153: EU-MARY-61 | C153: V | D153: NO | E153: NO | F153: 2020-06-26 | G153: MARYLIN ESMALTE PROF TONO 61 | H153: MARYLIN | I153: 6
B154: EU-MARY-68 | C154: V | D154: NO | E154: NO | F154: 2020-06-26 | G154: MARYLIN ESMALTE PROF TONO 68 | H154: MARYLIN | I154: 6
B155: EU-MARY-69 | C155: V | D155: NO | E155: NO | F155: 2020-06-26 | G155: MARYLIN ESMALTE PROF TONO 69 | H155: MARYLIN | I155: 6
B156: EU-MARY-7 | C156: V | D156: NO | E156: NO | F156: 2020-06-26 | G156: MARYLIN ESMALTE PROF TONO 7 | H156: MARYLIN | I156: 6
B157: EU-MARY-70 | C157: V | D157: NO | E157: NO | F157: 2020-06-26 | G157: MARYLIN ESMALTE PROF TONO 70 | H157: MARYLIN | I157: 6
B158: EU-MARY-77 | C158: V | D158: NO | E158: NO | F158: 2020-06-26 | G158: MARYLIN ESMALTE PROF TONO 77 | H158: MARYLIN | I158: 6
B159: EU-MARY-79 | C159: V | D159: NO | E159: NO | F159: 2020-06-26 | G159: MARYLIN ESMALTE PROF TONO 79 | H159: MARYLIN | I159: 6
B160: EU-MARY-82 | C160: V | D160: NO | E160: NO | F160: 2020-06-26 | G160: MARYLIN ESMALTE PROF TONO 82 | H160: MARYLIN | I160: 6
B161: EU-MARY-83 | C161: V | D161: NO | E161: NO | F161: 2020-06-26 | G161: MARYLIN ESMALTE PROF TONO 83 | H161: MARYLIN | I161: 6
B162: EU-MARY-85 | C162: V | D162: NO | E162: NO | F162: 2020-06-26 | G162: MARYLIN ESMALTE PROF TONO 85 | H162: MARYLIN | I162: 6
B163: EU-MARY-89 | C163: V | D163: NO | E163: NO | F163: 2020-06-26 | G163: MARYLIN ESMALTE PROF TONO 89 | H163: MARYLIN | I163: 6
B164: EU-MARY-90 | C164: V | D164: NO | E164: NO | F164: 2020-06-26 | G164: MARYLIN ESMALTE PROF TONO 90 | H164: MARYLIN | I164: 6
B165: EU-MARY-91 | C165: V | D165: NO | E165: NO | F165: 2020-06-26 | G165: MARYLIN ESMALTE PROF TONO 91 | H165: MARYLIN | I165: 6
B166: EU-MARY-94 | C166: V | D166: NO | E166: NO | F166: 2020-06-26 | G166: MARYLIN ESMALTE PROF TONO 94 | H166: MARYLIN | I166: 6
B167: EU-MARY-96 | C167: V | D167: NO | E167: NO | F167: 2020-06-26 | G167: MARYLIN ESMALTE PROF TONO 96 | H167: MARYLIN | I167: 6
B168: EU-MARY-97 | C168: V | D168: NO | E168: NO | F168: 2020-06-26 | G168: MARYLIN ESMALTE PROF TONO 97 | H168: MARYLIN | I168: 6
B169: EU-MARY-98 | C169: V | D169: NO | E169: NO | F169: 2020-06-26 | G169: MARYLIN ESMALTE PROF TONO 98 | H169: MARYLIN | I169: 6
B170: EU-MARY-99 | C170: V | D170: NO | E170: NO | F170: 2020-06-26 | G170: MARYLIN ESMALTE PROF TONO 99 | H170: MARYLIN | I170: 6
B171: EU-MARY-BRILLO | C171: V | D171: NO | E171: NO | F171: 2020-06-26 | G171: MARYLIN ESM PROF BRILLO | H171: MARYLIN | I171: 6
B172: EU-MARY-GEN | C172: V | D172: NO | E172: NO | F172: 2021-06-08 | G172: MARYLIN ESMALTE PROF GENERICO | H172: MARYLIN | I172: 6
B173: HUG-TOAV48 | C173: V | D173: NO | E173: NO | F173: 2020-06-26 | G173: HUGGIES TOALL. HUM LIMPIEZA EFEC. X 48 | H173: HUGGIES | I173: 24
B174: HUG-TOAX80 | C174: V | D174: NO | E174: NO | F174: 2020-06-26 | G174: HUGGIES TOALL. HUM LIMPIEZA COT. X 80 | H174: HUGGIES | I174: 12
B175: JB-DOVCOCO-90 | C175: V | D175: NO | E175: NO | F175: 2020-11-26 | G175: DOVE JAB LECHE DE COCO 48X90G | H175: DOVE | I175: 48
B176: JB-DOVORG-90 | C176: V | D176: NO | E176: NO | F176: 2020-11-26 | G176: DOVE JAB ORIGINAL 48X90G | H176: DOVE | I176: 48
B177: JB-DOVVAN-90 | C177: V | D177: NO | E177: NO | F177: 2020-11-26 | G177: DOVE JAB KAR Y VAINILLA 48X90G | H177: DOVE | I177: 48
B178: JB-LUXJAZ-125 | C178: V | D178: NO | E178: NO | F178: 2021-01-11 | G178: LUX JABON BARRA JAZMIN 48X125G | H178: LUX | I178: 48
B179: JB-LUXJAZ-3PK | C179: V | D179: NO | E179: NO | F179: 2021-07-29 | G179: LUX JABON BARRA JAZMIN 16X3X125G | H179: LUX | I179: 16
B180: JB-LUXORQ-125 | C180: V | D180: NO | E180: NO | F180: 2021-01-11 | G180: LUX JABON BARRA ORQUID NEGRA FR 48X125G | H180: LUX | I180: 48
B181: JB-LUXORQ-3PK | C181: V | D181: NO | E181: NO | F181: 2021-07-29 | G181: JABON BARRA LUX ORQUIDEA NEGRA 16X3X125G | H181: LUX | I181: 16
B182: JB-LUXROSA-125 | C182: V | D182: NO | E182: NO | F182: 2021-01-11 | G182: LUX JABON BARRA ROSAS FR 48X125G | H182: LUX | I182: 48
B183: JB-LUXROSA-3PK | C183: V | D183: NO | E183: NO | F183: 2021-07-29 | G183: JABON BARRA LUX ROSAS FRANCESAS 16X3X125G | H183: LUX | I183: 16
B184: JB-LUXVAN-125 | C184: V | D184: NO | E184: NO | F184: 2021-01-11 | G184: LUX JABON BARRA VAINILLA FR 48X125G | H184: LUX | I184: 48
B185: JB-LUXVAN-3PK | C185: V | D185: NO | E185: NO | F185: 2021-07-29 | G185: JABON BARRA LUX VAINILLA 16X3X125G | H185: LUX | I185: 16
B186: JB-REX7PACK-120 | C186: V | D186: NO | E186: NO | F186: 2021-04-28 | G186: REXONA JABON BARRA 7 PACK 120G | H186: REXONA | I186: 10
B187: JB-REXAVE-120 | C187: V | D187: NO | E187: NO | F187: 2021-01-14 | G187: REXONA JABON BARRA ANTIB AVENA 48X120G | H187: REXONA | I187: 48
B188: JB-REXAVE-3PK | C188: V | D188: NO | E188: NO | F188: 2021-07-29 | G188: REXONA JABON BARRA ANTIB AVENA 16X3X120G | H188: REXONA | I188: 16
B189: JB-REXBAMB-120 | C189: V | D189: NO | E189: NO | F189: 2021-01-11 | G189: REXONA JABON BARRA ANTIB BAMBOO 48X120G | H189: REXONA | I189: 48
B190: JB-REXBAMB-3PK | C190: V | D190: NO | E190: NO | F190: 2021-07-29 | G190: REXONA JABON BARRA ANTIB BAMBOO 16X3X120G | H190: REXONA | I190: 16
B191: JB-REXFRESH-120 | C191: V | D191: NO | E191: NO | F191: 2021-01-14 | G191: REXONA JABON BARRA ANTIB FRESH 48X120G | H191: REXONA | I191: 48
B192: JB-REXFRESH-3PK | C192: V | D192: NO | E192: NO | F192: 2021-07-29 | G192: REXONA JABON BARRA ANTIB FRESH 16X3X120G | H192: REXONA | I192: 16
B193: JB-REXLIMP-120 | C193: V | D193: NO | E193: NO | F193: 2021-01-11 | G193: REXONA JABON BARRA ANTIB LIMPIEZA 48X120G | H193: REXONA | I193: 48
B194: JB-REXLIMP-3PK | C194: V | D194: NO | E194: NO | F194: 2021-07-29 | G194: REXONA JABON BARRA ANTIB LIMPIEZA 16X3X120G | H194: REXONA | I194: 16
B195: KOTEX-DIA | C195: V | D195: NO | E195: NO | F195: 2020-06-26 | G195: KOTEX TOALLA SAN DIURNA | H195: KOTEX | I195: 48
B196: KOTEX-LIN15 | C196: V | D196: NO | E196: NO | F196: 2020-06-26 | G196: KOTEX PROTECTOR DIARIO X15 | H196: KOTEX | I196: 12
B197: KOTEX-LIN50 | C197: V | D197: NO | E197: NO | F197: 2020-06-26 | G197: KOTEX PROTECTOR DIARIO X50 | H197: KOTEX | I197: 12
B198: KOTEX-LINAB50 | C198: V | D198: NO | E198: NO | F198: 2021-03-24 | G198: KOTEX LINER ANTIBACTERIAL 12X50 | H198: KOTEX | I198: 12
B199: KOTEX-LINPURE50 | C199: V | D199: NO | E199: NO | F199: 2021-03-24 | G199: KOTEX LINER PURE 12X50 | H199: KOTEX | I199: 12
B200: KOTEX-NOC | C200: V | D200: NO | E200: NO | F200: 2020-06-26 | G200: KOTEX TOALLA SAN NOC | H200: KOTEX | I200: 12
B201: KOTEX-TAMM | C201: V | D201: NO | E201: NO | F201: 2020-09-29 | G201: TAMPONES KOTEX MEDIUM 12X8 SPORT TTX | H201: KOTEX | I201: 12
B202: KOTEX-TAMS | C202: V | D202: NO | E202: NO | F202: 2020-09-29 | G202: TAMPONES KOTEX SUPER 12X8 TTX | H202: KOTEX | I202: 12
B203: KOTEX-UFAB-R5 | C203: V | D203: NO | E203: NO | F203: 2021-03-24 | G203: KOTEX TOALLA FEM UF AB 10X5X5 RISTRA | H203: KOTEX | I203: 10
... 103 more rows

Sheet LISTA PROFIT (hidden)
B3: LINEA | C3: MODELO | D3: CODIGO ARTICULO | E3: ARTICULO | F3: PRECIO 1 | G3: PRECIO 2 | H3: PRECIO 3 | I3: PRECIO 4 | J3: PRECIO 5
B4: 1 | D4: ESM-MARYLIN | E4: MARYLIN ESMALTE TONOS VARIOS | F4: 1593750 | G4: 1593750 | H4: 1593750 | I4: 1683000 | J4: 0.51
B5: 1 | C5: MARYLIN | D5: EU-MARY-1 | E5: MARYLIN ESMALTE PROF TONO 1 | F5: 1593750 | G5: 1593750 | H5: 1593750 | I5: 1683000 | J5: 0.51
B6: 1 | C6: MARYLIN | D6: EU-MARY-100 | E6: MARYLIN ESMALTE PROF TONO 100 | F6: 1593750 | G6: 1593750 | H6: 1593750 | I6: 1683000 | J6: 0.51
B7: 1 | C7: MARYLIN | D7: EU-MARY-101 | E7: MARYLIN ESMALTE PROF TONO 101 | F7: 1593750 | G7: 1593750 | H7: 1593750 | I7: 1683000 | J7: 0.51
B8: 1 | C8: MARYLIN | D8: EU-MARY-102 | E8: MARYLIN ESMALTE PROF TONO 102 | F8: 1593750 | G8: 1593750 | H8: 1593750 | I8: 1683000 | J8: 0.51
B9: 1 | C9: MARYLIN | D9: EU-MARY-103 | E9: MARYLIN ESMALTE PROF TONO 103 | F9: 1593750 | G9: 1593750 | H9: 1593750 | I9: 1683000 | J9: 0.51 | N9: 0.58
B10: 1 | C10: MARYLIN | D10: EU-MARY-104 | E10: MARYLIN ESMALTE PROF TONO 104 | F10: 1593750 | G10: 1593750 | H10: 1593750 | I10: 1683000 | J10: 0.51
B11: 1 | C11: MARYLIN | D11: EU-MARY-108 | E11: MARYLIN ESMALTE PROF TONO 108 | F11: 1593750 | G11: 1593750 | H11: 1593750 | I11: 1683000 | J11: 0.51
B12: 1 | C12: MARYLIN | D12: EU-MARY-109 | E12: MARYLIN ESMALTE PROF TONO 109 | F12: 1593750 | G12: 1593750 | H12: 1593750 | I12: 1683000 | J12: 0.51
B13: 1 | C13: MARYLIN | D13: EU-MARY-110 | E13: MARYLIN ESMALTE PROF TONO 110 | F13: 1593750 | G13: 1593750 | H13: 1593750 | I13: 1683000 | J13: 0.51
B14: 1 | C14: MARYLIN | D14: EU-MARY-115 | E14: MARYLIN ESMALTE PROF TONO 115 | F14: 1593750 | G14: 1593750 | H14: 1593750 | I14: 1683000 | J14: 0.51
B15: 1 | C15: MARYLIN | D15: EU-MARY-116 | E15: MARYLIN ESMALTE PROF TONO 116 | F15: 1593750 | G15: 1593750 | H15: 1593750 | I15: 1683000 | J15: 0.51
B16: 1 | C16: MARYLIN | D16: EU-MARY-117 | E16: MARYLIN ESMALTE PROF TONO 117 | F16: 1593750 | G16: 1593750 | H16: 1593750 | I16: 1683000 | J16: 0.51
B17: 1 | C17: MARYLIN | D17: EU-MARY-118 | E17: MARYLIN ESMALTE PROF TONO 118 | F17: 1593750 | G17: 1593750 | H17: 1593750 | I17: 1683000 | J17: 0.51
B18: 1 | C18: MARYLIN | D18: EU-MARY-119 | E18: MARYLIN ESMALTE PROF TONO 119 | F18: 1593750 | G18: 1593750 | H18: 1593750 | I18: 1683000 | J18: 0.51
B19: 1 | C19: MARYLIN | D19: EU-MARY-12 | E19: MARYLIN ESMALTE PROF TONO 12 | F19: 1593750 | G19: 1593750 | H19: 1593750 | I19: 1683000 | J19: 0.51
B20: 1 | C20: MARYLIN | D20: EU-MARY-120 | E20: MARYLIN ESMALTE PROF TONO 120 | F20: 1593750 | G20: 1593750 | H20: 1593750 | I20: 1683000 | J20: 0.51
B21: 1 | C21: MARYLIN | D21: EU-MARY-123 | E21: MARYLIN ESMALTE PROF TONO 123 | F21: 1593750 | G21: 1593750 | H21: 1593750 | I21: 1683000 | J21: 0.51
B22: 1 | C22: MARYLIN | D22: EU-MARY-126 | E22: MARYLIN ESMALTE PROF TONO 126 | F22: 1593750 | G22: 1593750 | H22: 1593750 | I22: 1683000 | J22: 0.51
B23: 1 | C23: MARYLIN | D23: EU-MARY-13 | E23: MARYLIN ESMALTE PROF TONO 13 | F23: 1593750 | G23: 1593750 | H23: 1593750 | I23: 1683000 | J23: 0.51
B24: 1 | C24: MARYLIN | D24: EU-MARY-132 | E24: MARYLIN ESMALTE PROF TONO 132 | F24: 1593750 | G24: 1593750 | H24: 1593750 | I24: 1683000 | J24: 0.51
B25: 1 | C25: MARYLIN | D25: EU-MARY-135 | E25: MARYLIN ESMALTE PROF TONO 135 | F25: 1593750 | G25: 1593750 | H25: 1593750 | I25: 1683000 | J25: 0.51
B26: 1 | C26: MARYLIN | D26: EU-MARY-136 | E26: MARYLIN ESMALTE PROF TONO 136 | F26: 1593750 | G26: 1593750 | H26: 1593750 | I26: 1683000 | J26: 0.51
B27: 1 | C27: MARYLIN | D27: EU-MARY-14 | E27: MARYLIN ESMALTE PROF TONO 14 | F27: 1593750 | G27: 1593750 | H27: 1593750 | I27: 1683000 | J27: 0.51
B28: 1 | C28: MARYLIN | D28: EU-MARY-150 | E28: MARYLIN ESMALTE PROF TONO 150 | F28: 1593750 | G28: 1593750 | H28: 1593750 | I28: 1683000 | J28: 0.51
B29: 1 | C29: MARYLIN | D29: EU-MARY-153 | E29: MARYLIN ESMALTE PROF TONO 153 | F29: 1593750 | G29: 1593750 | H29: 1593750 | I29: 1683000 | J29: 0.51
B30: 1 | C30: MARYLIN | D30: EU-MARY-156 | E30: MARYLIN ESMALTE PROF TONO 156 | F30: 1593750 | G30: 1593750 | H30: 1593750 | I30: 1683000 | J30: 0.51
B31: 1 | C31: MARYLIN | D31: EU-MARY-157 | E31: MARYLIN ESMALTE PROF TONO 157 | F31: 1593750 | G31: 1593750 | H31: 1593750 | I31: 1683000 | J31: 0.51
B32: 1 | C32: MARYLIN | D32: EU-MARY-158 | E32: MARYLIN ESMALTE PROF TONO 158 | F32: 1593750 | G32: 1593750 | H32: 1593750 | I32: 1683000 | J32: 0.51
B33: 1 | C33: MARYLIN | D33: EU-MARY-159 | E33: MARYLIN ESMALTE PROF TONO 159 | F33: 1593750 | G33: 1593750 | H33: 1593750 | I33: 1683000 | J33: 0.51
B34: 1 | C34: MARYLIN | D34: EU-MARY-16 | E34: MARYLIN ESMALTE PROF TONO 16 | F34: 1593750 | G34: 1593750 | H34: 1593750 | I34: 1683000 | J34: 0.51
B35: 1 | C35: MARYLIN | D35: EU-MARY-160 | E35: MARYLIN ESMALTE PROF TONO 160 | F35: 1593750 | G35: 1593750 | H35: 1593750 | I35: 1683000 | J35: 0.51
B36: 1 | C36: MARYLIN | D36: EU-MARY-161 | E36: MARYLIN ESMALTE PROF TONO 161 | F36: 1593750 | G36: 1593750 | H36: 1593750 | I36: 1683000 | J36: 0.51
B37: 1 | C37: MARYLIN | D37: EU-MARY-162 | E37: MARYLIN ESMALTE PROF TONO 162 | F37: 1593750 | G37: 1593750 | H37: 1593750 | I37: 1683000 | J37: 0.51
B38: 1 | C38: MARYLIN | D38: EU-MARY-163 | E38: MARYLIN ESMALTE PROF TONO 163 | F38: 1593750 | G38: 1593750 | H38: 1593750 | I38: 1683000 | J38: 0.51
B39: 1 | C39: MARYLIN | D39: EU-MARY-164 | E39: MARYLIN ESMALTE PROF TONO 164 | F39: 1593750 | G39: 1593750 | H39: 1593750 | I39: 1683000 | J39: 0.51
B40: 1 | C40: MARYLIN | D40: EU-MARY-165 | E40: MARYLIN ESMALTE PROF TONO 165 | F40: 1593750 | G40: 1593750 | H40: 1593750 | I40: 1683000 | J40: 0.51
B41: 1 | C41: MARYLIN | D41: EU-MARY-166 | E41: MARYLIN ESMALTE PROF TONO 166 | F41: 1593750 | G41: 1593750 | H41: 1593750 | I41: 1683000 | J41: 0.51
B42: 1 | C42: MARYLIN | D42: EU-MARY-168 | E42: MARYLIN ESMALTE PROF TONO 168 | F42: 1593750 | G42: 1593750 | H42: 1593750 | I42: 1683000 | J42: 0.51
B43: 1 | C43: MARYLIN | D43: EU-MARY-169 | E43: MARYLIN ESMALTE PROF TONO 169 | F43: 1593750 | G43: 1593750 | H43: 1593750 | I43: 1683000 | J43: 0.51
B44: 1 | C44: MARYLIN | D44: EU-MARY-170 | E44: MARYLIN ESMALTE PROF TONO 170 | F44: 1593750 | G44: 1593750 | H44: 1593750 | I44: 1683000 | J44: 0.51
B45: 1 | C45: MARYLIN | D45: EU-MARY-171 | E45: MARYLIN ESMALTE PROF TONO 171 | F45: 1593750 | G45: 1593750 | H45: 1593750 | I45: 1683000 | J45: 0.51
B46: 1 | C46: MARYLIN | D46: EU-MARY-172 | E46: MARYLIN ESMALTE PROF TONO 172 | F46: 1593750 | G46: 1593750 | H46: 1593750 | I46: 1683000 | J46: 0.51
B47: 1 | C47: MARYLIN | D47: EU-MARY-173 | E47: MARYLIN ESMALTE PROF TONO 173 | F47: 1593750 | G47: 1593750 | H47: 1593750 | I47: 1683000 | J47: 0.51
B48: 1 | C48: MARYLIN | D48: EU-MARY-174 | E48: MARYLIN ESMALTE PROF TONO 174 | F48: 1593750 | G48: 1593750 | H48: 1593750 | I48: 1683000 | J48: 0.51
B49: 1 | C49: MARYLIN | D49: EU-MARY-175 | E49: MARYLIN ESMALTE PROF TONO 175 | F49: 1593750 | G49: 1593750 | H49: 1593750 | I49: 1683000 | J49: 0.51
B50: 1 | C50: MARYLIN | D50: EU-MARY-177 | E50: MARYLIN ESMALTE PROF TONO 177 | F50: 1593750 | G50: 1593750 | H50: 1593750 | I50: 1683000 | J50: 0.51
B51: 1 | C51: MARYLIN | D51: EU-MARY-18 | E51: MARYLIN ESMALTE PROF TONO 18 | F51: 1593750 | G51: 1593750 | H51: 1593750 | I51: 1683000 | J51: 0.51
B52: 1 | C52: MARYLIN | D52: EU-MARY-180 | E52: MARYLIN ESMALTE PROF TONO 180 | F52: 1593750 | G52: 1593750 | H52: 1593750 | I52: 1683000 | J52: 0.51
B53: 1 | C53: MARYLIN | D53: EU-MARY-183 | E53: MARYLIN ESMALTE PROF TONO 183 | F53: 1593750 | G53: 1593750 | H53: 1593750 | I53: 1683000 | J53: 0.51
B54: 1 | C54: MARYLIN | D54: EU-MARY-19 | E54: MARYLIN ESMALTE PROF TONO 19 | F54: 1593750 | G54: 1593750 | H54: 1593750 | I54: 1683000 | J54: 0.51
B55: 1 | C55: MARYLIN | D55: EU-MARY-2 | E55: MARYLIN ESMALTE PROF TONO 2 | F55: 1593750 | G55: 1593750 | H55: 1593750 | I55: 1683000 | J55: 0.51
B56: 1 | C56: MARYLIN | D56: EU-MARY-21 | E56: MARYLIN ESMALTE PROF TONO 21 | F56: 1593750 | G56: 1593750 | H56: 1593750 | I56: 1683000 | J56: 0.51
B57: 1 | C57: MARYLIN | D57: EU-MARY-22 | E57: MARYLIN ESMALTE PROF TONO 22 | F57: 1593750 | G57: 1593750 | H57: 1593750 | I57: 1683000 | J57: 0.51
B58: 1 | C58: MARYLIN | D58: EU-MARY-28 | E58: MARYLIN ESMALTE PROF TONO 28 | F58: 1593750 | G58: 1593750 | H58: 1593750 | I58: 1683000 | J58: 0.51
B59: 1 | C59: MARYLIN | D59: EU-MARY-3 | E59: MARYLIN ESMALTE PROF TONO 3 | F59: 1593750 | G59: 1593750 | H59: 1593750 | I59: 1683000 | J59: 0.51
B60: 1 | C60: MARYLIN | D60: EU-MARY-30 | E60: MARYLIN ESMALTE PROF TONO 30 | F60: 1593750 | G60: 1593750 | H60: 1593750 | I60: 1683000 | J60: 0.51
B61: 1 | C61: MARYLIN | D61: EU-MARY-32 | E61: MARYLIN ESMALTE PROF TONO 32 | F61: 1593750 | G61: 1593750 | H61: 1593750 | I61: 1683000 | J61: 0.51
B62: 1 | C62: MARYLIN | D62: EU-MARY-37 | E62: MARYLIN ESMALTE PROF TONO 37 | F62: 1593750 | G62: 1593750 | H62: 1593750 | I62: 1683000 | J62: 0.51
B63: 1 | C63: MARYLIN | D63: EU-MARY-4 | E63: MARYLIN ESMALTE PROF TONO 4 | F63: 1593750 | G63: 1593750 | H63: 1593750 | I63: 1683000 | J63: 0.51
B64: 1 | C64: MARYLIN | D64: EU-MARY-40 | E64: MARYLIN ESMALTE PROF TONO 40 | F64: 1593750 | G64: 1593750 | H64: 1593750 | I64: 1683000 | J64: 0.51
B65: 1 | C65: MARYLIN | D65: EU-MARY-41 | E65: MARYLIN ESMALTE PROF TONO 41 | F65: 1593750 | G65: 1593750 | H65: 1593750 | I65: 1683000 | J65: 0.51
B66: 1 | C66: MARYLIN | D66: EU-MARY-44 | E66: MARYLIN ESMALTE PROF TONO 44 | F66: 1593750 | G66: 1593750 | H66: 1593750 | I66: 1683000 | J66: 0.51
B67: 1 | C67: MARYLIN | D67: EU-MARY-45 | E67: MARYLIN ESMALTE PROF TONO 45 | F67: 1593750 | G67: 1593750 | H67: 1593750 | I67: 1683000 | J67: 0.51
B68: 1 | C68: MARYLIN | D68: EU-MARY-47 | E68: MARYLIN ESMALTE PROF TONO 47 | F68: 1593750 | G68: 1593750 | H68: 1593750 | I68: 1683000 | J68: 0.51
B69: 1 | C69: MARYLIN | D69: EU-MARY-5 | E69: MARYLIN ESMALTE PROF TONO 5 | F69: 1593750 | G69: 1593750 | H69: 1593750 | I69: 1683000 | J69: 0.51
B70: 1 | C70: MARYLIN | D70: EU-MARY-51 | E70: MARYLIN ESMALTE PROF TONO 51 | F70: 1593750 | G70: 1593750 | H70: 1593750 | I70: 1683000 | J70: 0.51
B71: 1 | C71: MARYLIN | D71: EU-MARY-52 | E71: MARYLIN ESMALTE PROF TONO 52 | F71: 1593750 | G71: 1593750 | H71: 1593750 | I71: 1683000 | J71: 0.51
B72: 1 | C72: MARYLIN | D72: EU-MARY-53 | E72: MARYLIN ESMALTE PROF TONO 53 | F72: 1593750 | G72: 1593750 | H72: 1593750 | I72: 1683000 | J72: 0.51
B73: 1 | C73: MARYLIN | D73: EU-MARY-54 | E73: MARYLIN ESMALTE PROF TONO 54 | F73: 1593750 | G73: 1593750 | H73: 1593750 | I73: 1683000 | J73: 0.51
B74: 1 | C74: MARYLIN | D74: EU-MARY-57 | E74: MARYLIN ESMALTE PROF TONO 57 | F74: 1593750 | G74: 1593750 | H74: 1593750 | I74: 1683000 | J74: 0.51
B75: 1 | C75: MARYLIN | D75: EU-MARY-58 | E75: MARYLIN ESMALTE PROF TONO 58 | F75: 1593750 | G75: 1593750 | H75: 1593750 | I75: 1683000 | J75: 0.51
B76: 1 | C76: MARYLIN | D76: EU-MARY-61 | E76: MARYLIN ESMALTE PROF TONO 61 | F76: 1593750 | G76: 1593750 | H76: 1593750 | I76: 1683000 | J76: 0.51
B77: 1 | C77: MARYLIN | D77: EU-MARY-68 | E77: MARYLIN ESMALTE PROF TONO 68 | F77: 1593750 | G77: 1593750 | H77: 1593750 | I77: 1683000 | J77: 0.51
B78: 1 | C78: MARYLIN | D78: EU-MARY-69 | E78: MARYLIN ESMALTE PROF TONO 69 | F78: 1593750 | G78: 1593750 | H78: 1593750 | I78: 1683000 | J78: 0.51
B79: 1 | C79: MARYLIN | D79: EU-MARY-7 | E79: MARYLIN ESMALTE PROF TONO 7 | F79: 1593750 | G79: 1593750 | H79: 1593750 | I79: 1683000 | J79: 0.51
B80: 1 | C80: MARYLIN | D80: EU-MARY-70 | E80: MARYLIN ESMALTE PROF TONO 70 | F80: 1593750 | G80: 1593750 | H80: 1593750 | I80: 1683000 | J80: 0.51
B81: 1 | C81: MARYLIN | D81: EU-MARY-77 | E81: MARYLIN ESMALTE PROF TONO 77 | F81: 1593750 | G81: 1593750 | H81: 1593750 | I81: 1683000 | J81: 0.51
B82: 1 | C82: MARYLIN | D82: EU-MARY-79 | E82: MARYLIN ESMALTE PROF TONO 79 | F82: 1593750 | G82: 1593750 | H82: 1593750 | I82: 1683000 | J82: 0.51
B83: 1 | C83: MARYLIN | D83: EU-MARY-82 | E83: MARYLIN ESMALTE PROF TONO 82 | F83: 1593750 | G83: 1593750 | H83: 1593750 | I83: 1683000 | J83: 0.51
B84: 1 | C84: MARYLIN | D84: EU-MARY-83 | E84: MARYLIN ESMALTE PROF TONO 83 | F84: 1593750 | G84: 1593750 | H84: 1593750 | I84: 1683000 | J84: 0.51
B85: 1 | C85: MARYLIN | D85: EU-MARY-85 | E85: MARYLIN ESMALTE PROF TONO 85 | F85: 1593750 | G85: 1593750 | H85: 1593750 | I85: 1683000 | J85: 0.51
B86: 1 | C86: MARYLIN | D86: EU-MARY-89 | E86: MARYLIN ESMALTE PROF TONO 89 | F86: 1593750 | G86: 1593750 | H86: 1593750 | I86: 1683000 | J86: 0.51
B87: 1 | C87: MARYLIN | D87: EU-MARY-90 | E87: MARYLIN ESMALTE PROF TONO 90 | F87: 1593750 | G87: 1593750 | H87: 1593750 | I87: 1683000 | J87: 0.51
B88: 1 | C88: MARYLIN | D88: EU-MARY-91 | E88: MARYLIN ESMALTE PROF TONO 91 | F88: 1593750 | G88: 1593750 | H88: 1593750 | I88: 1683000 | J88: 0.51
B89: 1 | C89: MARYLIN | D89: EU-MARY-94 | E89: MARYLIN ESMALTE PROF TONO 94 | F89: 1593750 | G89: 1593750 | H89: 1593750 | I89: 1683000 | J89: 0.51
B90: 1 | C90: MARYLIN | D90: EU-MARY-96 | E90: MARYLIN ESMALTE PROF TONO 96 | F90: 1593750 | G90: 1593750 | H90: 1593750 | I90: 1683000 | J90: 0.51
B91: 1 | C91: MARYLIN | D91: EU-MARY-97 | E91: MARYLIN ESMALTE PROF TONO 97 | F91: 1593750 | G91: 1593750 | H91: 1593750 | I91: 1683000 | J91: 0.51
B92: 1 | C92: MARYLIN | D92: EU-MARY-98 | E92: MARYLIN ESMALTE PROF TONO 98 | F92: 1593750 | G92: 1593750 | H92: 1593750 | I92: 1683000 | J92: 0.51
B93: 1 | C93: MARYLIN | D93: EU-MARY-99 | E93: MARYLIN ESMALTE PROF TONO 99 | F93: 1593750 | G93: 1593750 | H93: 1593750 | I93: 1683000 | J93: 0.51
B94: 1 | C94: MARYLIN | D94: EU-MARY-BRILLO | E94: MARYLIN ESM PROF BRILLO | F94: 1593750 | G94: 1593750 | H94: 1593750 | I94: 1683000 | J94: 0.51
B95: 1 | C95: MARYLIN | D95: EU-MARY-GEN | E95: MARYLIN ESMALTE PROF GENERICO | F95: 1593750 | G95: 1593750 | H95: 1593750 | I95: 1683000 | J95: 0.51
B96: 1 | C96: VENTEKS | D96: HA-CSOFT-100 | E96: HISOPOS DE ALGODON COTTON SOFT-100 UND | F96: 1 | G96: 1 | H96: 1 | I96: 1 | J96: 0
B97: 1 | C97: VENTEKS | D97: HIS-CSOFT-100 | E97: HISOPOS DE ALGODON 100 UND | F97: 0 | G97: 0 | H97: 0 | I97: 0 | J97: 0
B98: 1 | C98: MARYLIN | D98: MARY-BSEC | E98: MARYLIN BRILLO SECANTE | F98: 1687500 | G98: 1687500 | H98: 1687500 | I98: 1782000 | J98: 0.54
B99: 1 | C99: MARYLIN | D99: MARY-TAJO | E99: MARYLIN BASE AJO LIMON | F99: 1687500 | G99: 1687500 | H99: 1687500 | I99: 1782000 | J99: 0.54
B100: 1 | C100: MARYLIN | D100: MARY-TFCOL | E100: MARYLIN BASE FORMULA COLOMB | F100: 1687500 | G100: 1687500 | H100: 1687500 | I100: 1782000 | J100: 0.54
B101: 1 | C101: MARYLIN | D101: MARY-TFUS | E101: MARYLIN BASE FUS VITAMINAS | F101: 1687500 | G101: 1687500 | H101: 1687500 | I101: 1782000 | J101: 0.54
B102: 1 | C102: MARYLIN | D102: MARY-TKROSA | E102: MARYLIN BASE KERATINA ROSADA | F102: 1687500 | G102: 1687500 | H102: 1687500 | I102: 1782000 | J102: 0.54
B103: 3 | C103: NA | D103: 18 | E103: ATENCION AL PERSONAL | F103: 0 | G103: 0 | H103: 0 | I103: 0 | J103: 0
B104: 3 | C104: NA | D104: 19 | E104: GASTOS DE SERVICIO MEDICO | F104: 0 | G104: 0 | H104: 0 | I104: 0 | J104: 0
B105: 3 | C105: NA | D105: 44 | E105: MATERIALES Y SUMINISTROS | F105: 0 | G105: 0 | H105: 0 | I105: 0 | J105: 0
B106: 3 | C106: NA | D106: 69 | E106: INSTALACIONES (ACTIVO FIJO) | F106: 0 | G106: 0 | H106: 0 | I106: 0 | J106: 0
B107: 3 | C107: NA | D107: 70 | E107: MOBILIARIO Y EQUIPO (ACTIVO FIJO) | F107: 0 | G107: 0 | H107: 0 | I107: 0 | J107: 0
B108: 3 | D108: 71 | E108: EQUIPOS DE COMPUTACION (ACTIVO FIJO) | F108: 0 | G108: 0 | H108: 0 | I108: 0 | J108: 0
B109: 3 | D109: 72 | E109: MAQUINARIAS Y EQUIPOS (ACTIVO FIJO) | F109: 0 | G109: 0 | H109: 0 | I109: 0 | J109: 0
B110: 3 | D110: 73 | E110: VEHICULOS (ACTIVO FIJO) | F110: 0 | G110: 0 | H110: 0 | I110: 0 | J110: 0
B111: 3 | C111: NA | D111: 74 | E111: GASTOS DE PROMOCION | F111: 0 | G111: 0 | H111: 0 | I111: 0 | J111: 0
B112: 3 | C112: MULTAS | D112: MULTAS | E112: MULTAS | F112: 0 | G112: 0 | H112: 0 | I112: 0 | J112: 0
B113: 3 | C113: RIVA | D113: RIVA | E113: REVERSO DE IVA | F113: 0 | G113: 0 | H113: 0 | I113: 0 | J113: 0
B114: 3 | C114: TASA | D114: TASA | E114: TASA | F114: 0 | G114: 0 | H114: 0 | I114: 0 | J114: 0
B115: 3 | D115: ZDIF-FACTIMP | E115: DIFERENCIAS EN FACTURAS DE IMP'ORTACION | F115: 0 | G115: 0 | H115: 0 | I115: 0 | J115: 0
B116: 7 | C116: DOVE | D116: AC-DOVOLEO-400 | E116: ACONDICIONADOR DOVE OLEO NUTRICION 12X400ML | F116: 8125000 | G116: 8125000 | H116: 8125000 | I116: 8580000 | J116: 2.6
B117: 7 | C117: DOVE | D117: AC-DOVRECON-400 | E117: ACONDICIONADOR DOVE RECONSTRUCCION COMPLETA 12X400ML | F117: 8125000 | G117: 8125000 | H117: 8125000 | I117: 8580000 | J117: 2.6
B118: 7 | C118: SEDAL | D118: AC-SEDCERA-340 | E118: ACONDICIONADOR SEDAL CERAMIDAS 12X340ML | F118: 6375000 | G118: 6375000 | H118: 6375000 | I118: 6732000 | J118: 1.83
B119: 7 | C119: SEDAL | D119: AC-SEDKERA-340 | E119: ACONDICIONADOR SEDAL KERAT C/ANTIOX 12X340ML | F119: 6375000 | G119: 6375000 | H119: 6375000 | I119: 6732000 | J119: 1.83
B120: 7 | C120: SEDAL | D120: AC-SEDRIZOS-340 | E120: ACONDICIONADOR SEDAL RIZOS DEFINIDOS 12X340ML | F120: 6375000 | G120: 6375000 | H120: 6375000 | I120: 6732000 | J120: 1.83
B121: 7 | C121: SUAVE | D121: AC-SUAMIEL-360 | E121: SUAVE AC MIEL Y ALMENDRA 12X360ML | F121: 5312500 | G121: 5312500 | H121: 5312500 | I121: 5610000 | J121: 1.7
B122: 7 | C122: ARM & HAMMER | D122: AH-FRESH | E122: DEO ARM&HAMMER SOLID FRESH | F122: 7500000 | G122: 7500000 | H122: 7500000 | I122: 7920000 | J122: 2.4
B123: 7 | C123: ARM & HAMMER | D123: AH-GELCOOL | E123: DEO ARM&HAMMER GEL COOL BLAST | F123: 8437500 | G123: 8437500 | H123: 8437500 | I123: 8910000 | J123: 2.7
B124: 7 | C124: ARM & HAMMER | D124: AH-MAXPWER | E124: DEO ARM&HAMMER POWDER FRESH | F124: 7500000 | G124: 7500000 | H124: 7500000 | I124: 7920000 | J124: 2.4
B125: 7 | C125: ARM & HAMMER | D125: AH-MAXSPORT | E125: DEO ARM&HAMMER ACTIVE SPORT | F125: 7500000 | G125: 7500000 | H125: 7500000 | I125: 7920000 | J125: 2.4
B126: 7 | C126: ARM & HAMMER | D126: AH-UNSCENTED | E126: DEO ARM&HAMMER SOLID UNSCENTED | F126: 7500000 | G126: 7500000 | H126: 7500000 | I126: 7920000 | J126: 2.4
B127: 7 | C127: AMMENS | D127: AMMENS-BABY125 | E127: TALCO AMMENS BABY 125GR | F127: 6750000 | G127: 6750000 | H127: 6750000 | I127: 7128000 | J127: 2.16
B128: 7 | C128: AMMENS | D128: AMMENS-FRESH | E128: TALCO AMMENS FRESH 110 OZ | F128: 11468750 | G128: 11468750 | H128: 11468750 | I128: 12111000 | J128: 3.67
B129: 7 | C129: AMMENS | D129: AMMENS-FRESH125 | E129: TALCO AMMENS FRESH 125GR | F129: 6750000 | G129: 6750000 | H129: 6750000 | I129: 7128000 | J129: 2.16
B130: 7 | C130: AMMENS | D130: AMMENS-ORI | E130: TALCO AMMENS ORIGINAL 110 OZ | F130: 11468750 | G130: 11468750 | H130: 11468750 | I130: 12111000 | J130: 3.67
B131: 7 | C131: AMMENS | D131: AMMENS-ORI125 | E131: TALCO AMMENS ORIGINAL 125GR | F131: 6750000 | G131: 6750000 | H131: 6750000 | I131: 7128000 | J131: 2.16
B132: 7 | C132: AMMENS | D132: AMMENS-PIE60 | E132: TALCO AMMENS PIE 60GR | F132: 5156250 | G132: 5156250 | H132: 5156250 | I132: 5445000 | J132: 1.65
B133: 7 | C133: COTTON SOFT | D133: BA-CSOFT-50 | E133: BOLAS DE ALG 50 UNIDADES COTTON SOFT | F133: 2000000 | G133: 2000000 | H133: 2000000 | I133: 2112000 | J133: 0.64
B134: 7 | C134: PONDS | D134: CF-PONDBIO-100 | E134: PONDS CR BIOHIDRATANTE 24X100G | F134: 7781250 | G134: 7781250 | H134: 7781250 | I134: 8217000 | J134: 2.49
B135: 7 | C135: PONDS | D135: CF-PONDBIO-50 | E135: PONDS CR BIOHIDRATANTE 24X50G | F135: 4156250 | G135: 4156250 | H135: 4156250 | I135: 4389000 | J135: 1.33
B136: 7 | C136: PONDS | D136: CF-PONDC-45 | E136: PONDS CR C ORIGINAL 24X45G | F136: 2656250 | G136: 2656250 | H136: 2656250 | I136: 2805000 | J136: 0.85
B137: 7 | C137: PONDS | D137: CF-PONDC-95 | E137: PONDS CR C ORIGINAL 24X95G | F137: 4250000 | G137: 4250000 | H137: 4250000 | I137: 4488000 | J137: 1.36
B138: 7 | C138: PONDS | D138: CF-PONDC-SCH10 | E138: PONDS CR C ORIGINAL DPL 12X10X10G | F138: 625000 | G138: 625000 | H138: 625000 | I138: 660000 | J138: 0.2
B139: 7 | C139: PONDS | D139: CF-PONDCLAR-100 | E139: PONDS CR CLARANT B3 GRASA 24X100G | F139: 9000000 | G139: 9000000 | H139: 9000000 | I139: 9504000 | J139: 2.88
B140: 7 | C140: PONDS | D140: CF-PONDCLAR-50 | E140: PONDS CR CLARANT B3 GRASA 24X50G | F140: 5843750 | G140: 5843750 | H140: 5843750 | I140: 6171000 | J140: 1.87
B141: 7 | C141: PONDS | D141: CF-PONDCPEP-100 | E141: PONDS CR C PEPINO 24X100G | F141: 4250000 | G141: 4250000 | H141: 4250000 | I141: 4488000 | J141: 1.36
B142: 7 | C142: PONDS | D142: CF-PONDH-100 | E142: PONDS CR H 24X100G | F142: 6718750 | G142: 6718750 | H142: 6718750 | I142: 7095000 | J142: 2.15
B143: 7 | C143: PONDS | D143: CF-PONDH-50 | E143: PONDS CR H 24X50G | F143: 4156250 | G143: 4156250 | H143: 4156250 | I143: 4389000 | J143: 1.33
B144: 7 | C144: PONDS | D144: CF-PONDHC-2PK | E144: PONDS DUO PACK H100 C45 | F144: 7187500 | G144: 7187500 | H144: 7187500 | I144: 7590000 | J144: 2.3
B145: 7 | C145: PONDS | D145: CF-PONDREJ-100 | E145: PONDS CR REJUVENESS DIA 24X100G | F145: 9000000 | G145: 9000000 | H145: 9000000 | I145: 9504000 | J145: 2.88
B146: 7 | C146: PONDS | D146: CF-PONDREJ-50 | E146: PONDS CR REJUVENESS 24X50G | F146: 5843750 | G146: 5843750 | H146: 5843750 | I146: 6171000 | J146: 1.87
B147: 7 | C147: PONDS | D147: CF-PONDREJ-SCH10 | E147: PONDS CR REJUVENESS SCH 12X10X10G | F147: 1281250 | G147: 1281250 | H147: 1281250 | I147: 1353000 | J147: 0.41
B148: 7 | C148: PONDS | D148: CF-PONDS-100 | E148: PONDS CR S HUMECTANTE NUTRITIVA 24X100G | F148: 7531250 | G148: 7531250 | H148: 7531250 | I148: 7953000 | J148: 2.41
B149: 7 | C149: PONDS | D149: CF-PONDS-50 | E149: PONDS CR S HUMECTANTE NUTRITIVA 24X50G | F149: 4156250 | G149: 4156250 | H149: 4156250 | I149: 4389000 | J149: 1.33
B150: 7 | C150: PONDS | D150: CF-PONDS-SCH10 | E150: PONDS CR S SCH 12X10X10G | F150: 1000000 | G150: 1000000 | H150: 1000000 | I150: 1056000 | J150: 0.32
B151: 7 | C151: SEDAL | D151: CP-SEDCERA-300 | E151: CREMA DE PEINAR SEDAL CERAMIDAS VIVI 12X300ML | F151: 5656250 | G151: 5656250 | H151: 5656250 | I151: 5973000 | J151: 1.81
B152: 7 | C152: SEDAL | D152: CP-SEDCERA-R10 | E152: CREMA DE PEINAR SEDAL RIZOS RISTRA 10ML | F152: 250000 | G152: 250000 | H152: 250000 | I152: 264000 | J152: 0.08
B153: 7 | C153: SEDAL | D153: CP-SEDKERA-300 | E153: CREMA DE PEINAR SEDAL PEIN KERATINA C/ ANTIOX 12X300ML | F153: 5656250 | G153: 5656250 | H153: 5656250 | I153: 5973000 | J153: 1.81
B154: 7 | C154: SEDAL | D154: CP-SEDRIZOS-300 | E154: CREMA DE PEINAR SEDAL RIZOS DEFINIDOS 12X300ML | F154: 5656250 | G154: 5656250 | H154: 5656250 | I154: 5973000 | J154: 1.81
B155: 7 | C155: COTTON SOFT | D155: DA-CSOFT-70 | E155: DISCOS DESMAQ DE ALG COTTON SOFT -70 UND | F155: 2250000 | G155: 2250000 | H155: 2250000 | I155: 2376000 | J155: 0.72
B156: 7 | C156: AXE | D156: DEO-AXBS-ANARC | E156: AXE BODY SPRAY ANARCHY MALE 113G | F156: 6625000 | G156: 6625000 | H156: 6625000 | I156: 6996000 | J156: 2.12
B157: 7 | C157: AXE | D157: DEO-AXBS-BLCK | E157: AXE BODY SPRAY BLACK 113G | F157: 6625000 | G157: 6625000 | H157: 6625000 | I157: 6996000 | J157: 2.12
B158: 7 | C158: AXE | D158: DEO-AXBS-DARK | E158: AXE BODY SPRAY DARK TEMPTATION 113G | F158: 6625000 | G158: 6625000 | H158: 6625000 | I158: 6996000 | J158: 2.12
B159: 7 | C159: DOVE | D159: DEO-DOVDERM-A150 | E159: DOVE DEO AER AP DERMO ACLARANT 12X89G/150ML | F159: 8125000 | G159: 8125000 | H159: 8125000 | I159: 8580000 | J159: 2.6
B160: 7 | C160: DOVE | D160: DEO-DOVDERM-R50 | E160: DOVE DEO ROL DERMO ACLARANT 12X50ML | F160: 3531250 | G160: 3531250 | H160: 3531250 | I160: 3729000 | J160: 1.13
B161: 7 | C161: DOVE | D161: DEO-DOVDERM-S50 | E161: DOVE DEO STICK DERMO ACLARANT 12X50G | F161: 6375000 | G161: 6375000 | H161: 6375000 | I161: 6732000 | J161: 2.04
B162: 7 | C162: DOVE | D162: DEO-DOVMINV-A150 | E162: DOVE DEO AER MEN INVI DRY12X89G/150ML | F162: 8125000 | G162: 8125000 | H162: 8125000 | I162: 8580000 | J162: 2.6
B163: 7 | C163: DOVE | D163: DEO-DOVMINV-S50 | E163: DOVE DEO STICK INVISIBLE DRY FM 12X50G | F163: 6375000 | G163: 6375000 | H163: 6375000 | I163: 6732000 | J163: 2.04
B164: 7 | C164: DOVE | D164: DEO-DOVORG-A150 | E164: DOVE DEO AER AP ORIGINAL 12X89G/150ML | F164: 8125000 | G164: 8125000 | H164: 8125000 | I164: 8580000 | J164: 2.6
B165: 7 | C165: DOVE | D165: DEO-DOVORG-R50 | E165: DOVE DEO ROLLON ORIGINAL 12X50ML | F165: 3531250 | G165: 3531250 | H165: 3531250 | I165: 3729000 | J165: 1.13
B166: 7 | C166: DOVE | D166: DEO-DOVORG-S50 | E166: DOVE DEO STICK ORIGINAL 12X50G | F166: 6375000 | G166: 6375000 | H166: 6375000 | I166: 6732000 | J166: 2.04
B167: 7 | C167: REXONA | D167: DEO-REXAB-A150 | E167: REXONA DEO W AER ANTIB 12X90GR/150ML | F167: 7437500 | G167: 7437500 | H167: 7437500 | I167: 7854000 | J167: 2.38
B168: 7 | C168: REXONA | D168: DEO-REXBAMB-A150 | E168: REXONA DEO AER BAMB AL VERA 12X90GR/150ML | F168: 7437500 | G168: 7437500 | H168: 7437500 | I168: 7854000 | J168: 2.38
B169: 7 | C169: REXONA | D169: DEO-REXCOTT-A150 | E169: REXONA DEO AER AP COTTON 12X90GR/150ML | F169: 7437500 | G169: 7437500 | H169: 7437500 | I169: 7854000 | J169: 2.38
B170: 7 | C170: REXONA | D170: DEO-REXCOTT-S50 | E170: REXONA DEO STICK AP COTTON 12X50GR | F170: 6000000 | G170: 6000000 | H170: 6000000 | I170: 6336000 | J170: 1.92
B171: 7 | C171: REXONA | D171: DEO-REXEFFI-A153 | E171: REXONA DEO AER EFFICIENT 12X88GR/153ML | F171: 7437500 | G171: 7437500 | H171: 7437500 | I171: 7854000 | J171: 2.38
B172: 7 | C172: REXONA | D172: DEO-REXMAB-A150 | E172: REXONA DEO MEN AER AB INV 12X90GR/150ML | F172: 7437500 | G172: 7437500 | H172: 7437500 | I172: 7854000 | J172: 2.38
B173: 7 | C173: REXONA | D173: DEO-REXMAB-R50 | E173: REXONA DEO MEN ROLLON AB INV 12X50ML | F173: 3187500 | G173: 3187500 | H173: 3187500 | I173: 3366000 | J173: 1.02
B174: 7 | C174: REXONA | D174: DEO-REXMAB-S50 | E174: REXONA DEO MEN STICK ANTIB INV 12X50GR | F174: 6000000 | G174: 6000000 | H174: 6000000 | I174: 6336000 | J174: 1.92
B175: 7 | C175: REXONA | D175: DEO-REXSPFAN-A150 | E175: REXONA DEO AER AP SPORTFAN 12X90GR/150ML | F175: 7437500 | G175: 7437500 | H175: 7437500 | I175: 7854000 | J175: 2.38
B176: 7 | C176: REXONA | D176: DEO-REXSPFAN-R50 | E176: REXONA DEO ROLLON AP SPORTFAN 12X50ML | F176: 3187500 | G176: 3187500 | H176: 3187500 | I176: 3366000 | J176: 1.02
B177: 7 | C177: REXONA | D177: DEO-REXSPFAN-S50 | E177: REXONA DEO STICK AP SPORTFAN 12X50GR | F177: 6000000 | G177: 6000000 | H177: 6000000 | I177: 6336000 | J177: 1.92
B178: 7 | C178: REXONA | D178: DEO-REXV8-A150 | E178: REXONA DEO AER AP V8 12X90GR/150ML | F178: 7437500 | G178: 7437500 | H178: 7437500 | I178: 7854000 | J178: 2.38
B179: 7 | C179: REXONA | D179: DEO-REXV8-R50 | E179: REXONA DEO ROLLON AP V8 12X50ML | F179: 3187500 | G179: 3187500 | H179: 3187500 | I179: 3366000 | J179: 1.02
B180: 7 | C180: REXONA | D180: DEO-REXV8-S50 | E180: REXONA DEO STICK AP V8 12X50GR | F180: 6000000 | G180: 6000000 | H180: 6000000 | I180: 6336000 | J180: 1.92
B181: 7 | D181: GA-PUR100 | E181: GEL ANTIBACTERIAL PURISSIMA 100GR | F181: 2343750 | G181: 2343750 | H181: 2343750 | I181: 2475000 | J181: 0.75
B182: 7 | D182: GA-PUR1GAL | E182: GEL ANTIBACTERIAL PURISSIMA 3,750 GR (1GAL) | F182: 49375000 | G182: 49375000 | H182: 49375000 | I182: 52140000 | J182: 15.8
B183: 7 | D183: GA-PUR200 | E183: GEL ANTIBACTERIAL PURISSIMA 200GR | F183: 3750000 | G183: 3750000 | H183: 3750000 | I183: 3960000 | J183: 1.2
B184: 7 | C184: HUGGIES | D184: HUG-TOAV48 | E184: HUGGIES TOALL. HUM LIMPIEZA EFEC. X 48 | F184: 2500000 | G184: 2500000 | H184: 2500000 | I184: 2640000 | J184: 0.8
B185: 7 | C185: HUGGIES | D185: HUG-TOAX80 | E185: HUGGIES TOALL. HUM LIMPIEZA COT. X 80 | F185: 3000000 | G185: 3000000 | H185: 3000000 | I185: 3168000 | J185: 0.96
B186: 7 | C186: DOVE | D186: JB-DOVCOCO-90 | E186: DOVE JAB LECHE DE COCO 48X90G | F186: 2125000 | G186: 2125000 | H186: 2125000 | I186: 2244000 | J186: 0.68
B187: 7 | C187: DOVE | D187: JB-DOVORG-90 | E187: DOVE JAB ORIGINAL 48X90G | F187: 2125000 | G187: 2125000 | H187: 2125000 | I187: 2244000 | J187: 0.68
B188: 7 | C188: DOVE | D188: JB-DOVVAN-90 | E188: DOVE JAB KAR Y VAINILLA 48X90G | F188: 2125000 | G188: 2125000 | H188: 2125000 | I188: 2244000 | J188: 0.68
B189: 7 | C189: LUX | D189: JB-LUXJAZ-125 | E189: LUX JABON BARRA JAZMIN 48X125G | F189: 1500000 | G189: 1500000 | H189: 1500000 | I189: 1584000 | J189: 0.46
B190: 7 | C190: LUX | D190: JB-LUXORQ-125 | E190: LUX JABON BARRA ORQUID NEGRA FR 48X125G | F190: 1500000 | G190: 1500000 | H190: 1500000 | I190: 1584000 | J190: 0.46
B191: 7 | C191: LUX | D191: JB-LUXROSA-125 | E191: LUX JABON BARRA ROSAS FR 48X125G | F191: 1500000 | G191: 1500000 | H191: 1500000 | I191: 1584000 | J191: 0.46
B192: 7 | C192: LUX | D192: JB-LUXVAN-125 | E192: LUX JABON BARRA VAINILLA FR 48X125G | F192: 1500000 | G192: 1500000 | H192: 1500000 | I192: 1584000 | J192: 0.46
B193: 7 | C193: REXONA | D193: JB-REX7PACK-120 | E193: REXONA JABON BARRA 7 PACK 120G | F193: 11218750 | G193: 11218750 | H193: 11218750 | I193: 11847000 | J193: 3.59
B194: 7 | C194: REXONA | D194: JB-REXAVE-120 | E194: REXONA JABON BARRA ANTIB AVENA 48X120G | F194: 1781250 | G194: 1781250 | H194: 1781250 | I194: 1881000 | J194: 0.48
B195: 7 | C195: REXONA | D195: JB-REXBAMB-120 | E195: REXONA JABON BARRA ANTIB BAMBOO 48X120G | F195: 1781250 | G195: 1781250 | H195: 1781250 | I195: 1881000 | J195: 0.48
B196: 7 | C196: REXONA | D196: JB-REXFRESH-120 | E196: REXONA JABON BARRA ANTIB FRESH 48X120G | F196: 1781250 | G196: 1781250 | H196: 1781250 | I196: 1881000 | J196: 0.48
B197: 7 | C197: REXONA | D197: JB-REXLIMP-120 | E197: REXONA JABON BARRA ANTIB LIMPIEZA 48X120G | F197: 1781250 | G197: 1781250 | H197: 1781250 | I197: 1881000 | J197: 0.48
B198: 7 | C198: KOTEX | D198: KOTEX-DIA | E198: KOTEX TOALLA SAN DIURNA | F198: 2156250 | G198: 2156250 | H198: 2156250 | I198: 2277000 | J198: 0.69
B199: 7 | C199: KOTEX | D199: KOTEX-LIN15 | E199: KOTEX PROTECTOR DIARIO X15 | F199: 1343750 | G199: 1343750 | H199: 1343750 | I199: 1419000 | J199: 0.43
B200: 7 | C200: KOTEX | D200: KOTEX-LIN50 | E200: KOTEX PROTECTOR DIARIO X50 | F200: 5218750 | G200: 5218750 | H200: 5218750 | I200: 5511000 | J200: 1.67
B201: 7 | C201: KOTEX | D201: KOTEX-LINAB50 | E201: KOTEX LINER ANTIBACTERIAL 12X50 | F201: 5468750 | G201: 5468750 | H201: 5468750 | I201: 5775000 | J201: 1.75
B202: 7 | C202: KOTEX | D202: KOTEX-LINPURE50 | E202: KOTEX LINER PURE 12X50 | F202: 5875000 | G202: 5875000 | H202: 5875000 | I202: 6204000 | J202: 1.88
... 94 more rows
